Workbook

Sheet 0. Introduction
A2: =INDEX(Languages!B2:E1016,MATCH("tool_name",Languages!A2:A1048576,0),MATCH('0. Introduction'!B6,Languages!B1:E1,0)) -> CargoTrack: Klimawirkungs- und Kostenrechner von Swiss e-Cargo
B4: v.1.0.2
B6: Deutsch
B9: =INDEX(Languages!B2:E1016,MATCH("intro_4",Languages!A2:A1048576,0),MATCH('0. Introduction'!B6,Languages!B1:E1,0)) -> entwickelt von | F9: =INDEX(Languages!B2:E1016,MATCH("intro_1",Languages!A2:A1048576,0),MATCH('0. Introduction'!B6,Languages!B1:E1,0)) -> Willkommen bei CargoTrack, dem CO2-Fussabdruck- und Kostenrechner des Swiss E-Cargo-Projekts. Um Makros zu aktivieren, schliessen Sie diese Datei, klicken Sie mit der rechten Maustaste auf die Datei im Datei-Explorer, wählen Sie „Eigenschaften“ und aktivieren Sie dann das Kontrollkästchen „Entsperren“ auf der Registerkarte „Allgemein“, bevor Sie auf „Apply“ klicken. Wenn beim Öffnen dieser Datei oben eine Warnung über deaktivierte Makros angezeigt wird, aktivieren Sie bitte deren Verwendung. Hinweis: Für dieses Tool sind Microsoft Excel für Windows und eine aktive Internetverbindung erforderlich.
A13: Romain Sacchi, romain.sacchi@psi.ch | F13: =INDEX(Languages!B2:E1016,MATCH("intro_2",Languages!A2:A1048576,0),MATCH('0. Introduction'!B6,Languages!B1:E1,0)) -> CargoTrack von Swiss e-Cargo ist ein vom Paul Scherrer Institut (PSI) entwickelter Rechner für den CO2-Fussabdruck und die Kosten. Dieses Tool ermöglicht einen schnellen Vergleich verschiedener Lkw-Typen anhand der Betriebskosten und Treibhausgasemissionen unter Berücksichtigung aller relevanten Phasen ihres Lebenszyklus. Die Entwicklung dieses Tools wird vom Bundesamt für Energie im Rahmen des Swiss e-Cargo-Projekts unterstützt.
A14: Natacha Bienaimé, nbienaime@student.ethz.ch
A15: Christian Bauer, christian.bauer@psi.ch
B17: =INDEX(Languages!B2:E1016,MATCH("collaboration_with",Languages!A2:A1048576,0),MATCH('0. Introduction'!B6,Languages!B1:E1,0)) -> in Zusammenarbeit mit
F19: =INDEX(Languages!B2:E1016,MATCH("intro_3",Languages!A2:A1048576,0),MATCH('0. Introduction'!B6,Languages!B1:E1,0)) -> Das Tool ist einfach zu bedienen. Es umfasst neben dieser Registerkarte drei weitere Hauptregisterkarten: 1. „Fahrzeuge & Parameter“: Der Benutzer kann mehrere Fahrzeuge zum Vergleich auswählen und deren Parameter anpassen. 2. „Ergebnisse“: Zeigt die Vergleichsergebnisse an. 3. „Details“: Zeigt die Spezifikationen der Fahrzeuge und detaillierte Auswirkungen an. Darüber hinaus werden im Abschnitt „Methodik“ unten der Umfang der Analyse und die zugrunde liegenden Annahmen erläutert.
B22: =INDEX(Languages!B2:E1016,MATCH("intro_5",Languages!A2:A1048576,0),MATCH('0. Introduction'!B6,Languages!B1:E1,0)) -> und finanziert durch

Sheet 1. Vehicles & Params
B1: =INDEX(Languages!$B$2:$E$1016,MATCH("vehicle_selection",Languages!$A$2:$A$1048576,0),MATCH('0. Introduction'!$B$6,Languages!$B$1:$E$1,0)) -> Im Abschnitt „Analyse“ können Sie die Fahrzeuge konfigurieren, die Sie vergleichen möchten. Verwenden Sie die drei Dropdown-Menüs, um die Antriebstechnologie, die Grösse und das Baujahr eines Fahrzeugs auszuwählen. Wählen Sie ausserdem das Jahr des Fahrzeugkaufs aus (Erwerbsjahr = Herstellungsjahr, wenn Sie der Erstbesitzer sind). Fügen Sie die Auswahl mit der Schaltfläche „+“ hinzu oder entfernen Sie das zuletzt hinzugefügte Fahrzeug mit der Schaltfläche „–“. Es können maximal fünf Fahrzeuge gleichzeitig verglichen werden. Sie können die folgenden detaillierten Parameter anpassen (weisse Felder können geändert werden, graue Felder nicht). Geben Sie als Nächstes das Land an, in dem die Fahrzeuge betrieben werden (derzeit beschränkt auf die Schweiz), und wählen Sie die Vergleichseinheit: Fahrzeugkilometer (Fahrzeug-km): Vergleicht Fahrzeuge pro gefahrenem Kilometer, normiert nach ihrer Gesamtlaufleistung. Tonnenkilometer (Tonnen-km): Vergleicht Fahrzeuge pro transportierter Tonne Fracht pro Kilometer, normiert nach Gesamtlaufleistung und Nutzlast. Um die Berechnung zu starten, klicken Sie im Abschnitt „Analyse“ auf „OK“.
F5: =INDEX(Languages!$B$2:$E$1016,MATCH("vehicle_selection2",Languages!$A$2:$A$1048576,0),MATCH('0. Introduction'!$B$6,Languages!$B$1:$E$1,0)) -> Fahrzeugauswahl | L5: =INDEX(Languages!$B$2:$E$1016,MATCH("vehicle_analysis",Languages!$A$2:$A$1048576,0),MATCH('0. Introduction'!$B$6,Languages!$B$1:$E$1,0)) -> Analyse
C7: =INDEX(Languages!$B$2:$E$1016,MATCH("powertrain",Languages!$A$2:$A$1048576,0),MATCH('0. Introduction'!$B$6,Languages!$B$1:$E$1,0)) -> Antrieb | E7: =INDEX(Languages!$B$2:$E$1016,MATCH("category",Languages!$A$2:$A$1048576,0),MATCH('0. Introduction'!$B$6,Languages!$B$1:$E$1,0)) -> Kategorie | G7: =INDEX(Languages!$B$2:$E$1016,MATCH("manufacture_year",Languages!$A$2:$A$1048576,0),MATCH('0. Introduction'!$B$6,Languages!$B$1:$E$1,0)) -> Baujahr | I7: =INDEX(Languages!$B$2:$E$1016,MATCH("current_owner_first_year",Languages!$A$2:$A$1048576,0),MATCH('0. Introduction'!$B$6,Languages!$B$1:$E$1,0)) -> Erwerbsjahr | K7: =INDEX(Languages!$B$2:$E$1016,MATCH("country",Languages!$A$2:$A$1048576,0),MATCH('0. Introduction'!$B$6,Languages!$B$1:$E$1,0)) -> Land | M7: =INDEX(Languages!$B$2:$E$1016,MATCH("func_unit",Languages!$A$2:$A$1048576,0),MATCH('0. Introduction'!$B$6,Languages!$B$1:$E$1,0)) -> Funktionseinheit
C8: Diesel | E8: LKW >20-26t | G8: 2030 | I8: 2030 | K8: CH | M8: Fahrzeugkilometer
D16: =INDEX(Languages!$B$2:$E$1016,MATCH("unit",Languages!$A$2:$A$1048576,0),MATCH('0. Introduction'!$B$6,Languages!$B$1:$E$1,0)) -> Einheit
C17: =INDEX(Languages!$B$2:$E$1016,MATCH("Use parameters",Languages!$A$2:$A$1048576,0),MATCH('0. Introduction'!$B$6,Languages!$B$1:$E$1,0)) -> Nutzungsparameter
B18: cycle | C18: =INDEX(Languages!$B$2:$E$1016,MATCH("cycle",Languages!$A$2:$A$1048576,0),MATCH('0. Introduction'!$B$6,Languages!$B$1:$E$1,0)) -> Art des Einsatzes | D18: =INDEX(Languages!$B$2:$E$1016,MATCH("selection",Languages!$A$2:$A$1048576,0),MATCH('0. Introduction'!$B$6,Languages!$B$1:$E$1,0)) -> Auswahl
B19: lifetime_years | C19: =INDEX(Languages!$B$2:$E$1016,MATCH("lifetime_years",Languages!$A$2:$A$1048576,0),MATCH('0. Introduction'!$B$6,Languages!$B$1:$E$1,0)) -> Lebensdauer | D19: =INDEX(Languages!$B$2:$E$1016,MATCH("years",Languages!$A$2:$A$1048576,0),MATCH('0. Introduction'!$B$6,Languages!$B$1:$E$1,0)) -> Jahre
B20: kilometers per year | C20: =INDEX(Languages!$B$2:$E$1016,MATCH("kilometers per year",Languages!$A$2:$A$1048576,0),MATCH('0. Introduction'!$B$6,Languages!$B$1:$E$1,0)) -> Jährliche Kilometerleistung | D20: =INDEX(Languages!$B$2:$E$1016,MATCH("km/year",Languages!$A$2:$A$1048576,0),MATCH('0. Introduction'!$B$6,Languages!$B$1:$E$1,0)) -> km/Jahr
C22: =INDEX(Languages!$B$2:$E$1016,MATCH("Vehicle parameters",Languages!$A$2:$A$1048576,0),MATCH('0. Introduction'!$B$6,Languages!$B$1:$E$1,0)) -> Fahrzeugparameter
B23: power | C23: =INDEX(Languages!$B$2:$E$1016,MATCH("power",Languages!$A$2:$A$1048576,0),MATCH('0. Introduction'!$B$6,Languages!$B$1:$E$1,0)) -> Leistung | D23: =INDEX(Languages!$B$2:$E$1016,MATCH("kW",Languages!$A$2:$A$1048576,0),MATCH('0. Introduction'!$B$6,Languages!$B$1:$E$1,0)) -> kW
B24: payload | C24: =INDEX(Languages!$B$2:$E$1016,MATCH("payload",Languages!$A$2:$A$1048576,0),MATCH('0. Introduction'!$B$6,Languages!$B$1:$E$1,0)) -> Nutzlast | D24: =INDEX(Languages!$B$2:$E$1016,MATCH("kg",Languages!$A$2:$A$1048576,0),MATCH('0. Introduction'!$B$6,Languages!$B$1:$E$1,0)) -> kg
B25: fuel consumption | C25: =INDEX(Languages!$B$2:$E$1016,MATCH("fuel consumption",Languages!$A$2:$A$1048576,0),MATCH('0. Introduction'!$B$6,Languages!$B$1:$E$1,0)) -> Kraftstoffverbrauch | D25: =INDEX(Languages!$B$2:$E$1016,MATCH("l/100 km",Languages!$A$2:$A$1048576,0),MATCH('0. Introduction'!$B$6,Languages!$B$1:$E$1,0)) -> l/100 km
B26: electricity consumption | C26: =INDEX(Languages!$B$2:$E$1016,MATCH("electricity consumption",Languages!$A$2:$A$1048576,0),MATCH('0. Introduction'!$B$6,Languages!$B$1:$E$1,0)) -> Stromverbrauch | D26: =INDEX(Languages!$B$2:$E$1016,MATCH("kWh/100 km",Languages!$A$2:$A$1048576,0),MATCH('0. Introduction'!$B$6,Languages!$B$1:$E$1,0)) -> kWh/100 km
B27: hydrogen consumption | C27: =INDEX(Languages!$B$2:$E$1016,MATCH("hydrogen consumption",Languages!$A$2:$A$1048576,0),MATCH('0. Introduction'!$B$6,Languages!$B$1:$E$1,0)) -> Wasserstoffverbrauch | D27: =INDEX(Languages!$B$2:$E$1016,MATCH("kg/100 km",Languages!$A$2:$A$1048576,0),MATCH('0. Introduction'!$B$6,Languages!$B$1:$E$1,0)) -> kg/100 km
B28: CNG consumption | C28: =INDEX(Languages!$B$2:$E$1016,MATCH("CNG consumption",Languages!$A$2:$A$1048576,0),MATCH('0. Introduction'!$B$6,Languages!$B$1:$E$1,0)) -> Erdgasverbrauch | D28: =INDEX(Languages!$B$2:$E$1016,MATCH("kg/100 km",Languages!$A$2:$A$1048576,0),MATCH('0. Introduction'!$B$6,Languages!$B$1:$E$1,0)) -> kg/100 km
B29: battery technology | C29: =INDEX(Languages!$B$2:$E$1016,MATCH("battery technology",Languages!$A$2:$A$1048576,0),MATCH('0. Introduction'!$B$6,Languages!$B$1:$E$1,0)) -> Batterietechnologie | D29: =INDEX(Languages!$B$2:$E$1016,MATCH("selection",Languages!$A$2:$A$1048576,0),MATCH('0. Introduction'!$B$6,Languages!$B$1:$E$1,0)) -> Auswahl
B30: electric energy stored | C30: =INDEX(Languages!$B$2:$E$1016,MATCH("electric energy stored",Languages!$A$2:$A$1048576,0),MATCH('0. Introduction'!$B$6,Languages!$B$1:$E$1,0)) -> Batteriekapazität | D30: =INDEX(Languages!$B$2:$E$1016,MATCH("kWh",Languages!$A$2:$A$1048576,0),MATCH('0. Introduction'!$B$6,Languages!$B$1:$E$1,0)) -> kWh
B31: battery lifetime replacements | C31: =INDEX(Languages!$B$2:$E$1016,MATCH("battery lifetime replacement",Languages!$A$2:$A$1048576,0),MATCH('0. Introduction'!$B$6,Languages!$B$1:$E$1,0)) -> Batteriewechsel | D31: =INDEX(Languages!$B$2:$E$1016,MATCH("unit",Languages!$A$2:$A$1048576,0),MATCH('0. Introduction'!$B$6,Languages!$B$1:$E$1,0)) -> Einheit
B32: fuel cell lifetime replacements | C32: =INDEX(Languages!$B$2:$E$1016,MATCH("fuel cell lifetime replacement",Languages!$A$2:$A$1048576,0),MATCH('0. Introduction'!$B$6,Languages!$B$1:$E$1,0)) -> Ersatz des Brennstoffzellenstapels | D32: =INDEX(Languages!$B$2:$E$1016,MATCH("unit",Languages!$A$2:$A$1048576,0),MATCH('0. Introduction'!$B$6,Languages!$B$1:$E$1,0)) -> Einheit
C34: =INDEX(Languages!$B$2:$E$1016,MATCH("Energy parameters",Languages!$A$2:$A$1048576,0),MATCH('0. Introduction'!$B$6,Languages!$B$1:$E$1,0)) -> Energieparameter
B35: electricity | C35: =INDEX(Languages!$B$2:$E$1016,MATCH("electricity",Languages!$A$2:$A$1048576,0),MATCH('0. Introduction'!$B$6,Languages!$B$1:$E$1,0)) -> Strom für LKW-Depot-Ladegerät | D35: =INDEX(Languages!$B$2:$E$1016,MATCH("selection",Languages!$A$2:$A$1048576,0),MATCH('0. Introduction'!$B$6,Languages!$B$1:$E$1,0)) -> Auswahl
B36: daily charger | C36: =INDEX(Languages!$B$2:$E$1016,MATCH("daily charger",Languages!$A$2:$A$1048576,0),MATCH('0. Introduction'!$B$6,Languages!$B$1:$E$1,0)) -> Leistung des Ladegeräts im Depot | D36: =INDEX(Languages!$B$2:$E$1016,MATCH("selection",Languages!$A$2:$A$1048576,0),MATCH('0. Introduction'!$B$6,Languages!$B$1:$E$1,0)) -> Auswahl
B37: trucks using daily charger | C37: =INDEX(Languages!$B$2:$E$1016,MATCH("trucks using daily charger",Languages!$A$2:$A$1048576,0),MATCH('0. Introduction'!$B$6,Languages!$B$1:$E$1,0)) -> Anzahl der Lkw, die Ladestationen nutzen | D37: =INDEX(Languages!$B$2:$E$1016,MATCH("unit",Languages!$A$2:$A$1048576,0),MATCH('0. Introduction'!$B$6,Languages!$B$1:$E$1,0)) -> Einheit
B38: daily charger lifetime | C38: =INDEX(Languages!$B$2:$E$1016,MATCH(B38,Languages!$A$2:$A$1048576,0),MATCH('0. Introduction'!$B$6,Languages!$B$1:$E$1,0)) -> Lebensdauer des Ladegeräts | D38: =INDEX(Languages!$B$2:$E$1016,MATCH("years",Languages!$A$2:$A$1048576,0),MATCH('0. Introduction'!$B$6,Languages!$B$1:$E$1,0)) -> Jahre
B39: share km occasional charger | C39: =INDEX(Languages!$B$2:$E$1016,MATCH("share km occasional charger",Languages!$A$2:$A$1048576,0),MATCH('0. Introduction'!$B$6,Languages!$B$1:$E$1,0)) -> Anteil der mit öffentlichen Ladegeräten zurückgelegten Kilometer | D39: =INDEX(Languages!$B$2:$E$1016,MATCH("% lifetime kilometers",Languages!$A$2:$A$1048576,0),MATCH('0. Introduction'!$B$6,Languages!$B$1:$E$1,0)) -> % km
B40: hydrogen | C40: =INDEX(Languages!$B$2:$E$1016,MATCH("hydrogen",Languages!$A$2:$A$1048576,0),MATCH('0. Introduction'!$B$6,Languages!$B$1:$E$1,0)) -> Wasserstoff | D40: =INDEX(Languages!$B$2:$E$1016,MATCH("selection",Languages!$A$2:$A$1048576,0),MATCH('0. Introduction'!$B$6,Languages!$B$1:$E$1,0)) -> Auswahl
C42: =INDEX(Languages!$B$2:$E$1016,MATCH("Economic parameters",Languages!$A$2:$A$1048576,0),MATCH('0. Introduction'!$B$6,Languages!$B$1:$E$1,0)) -> Wirtschaftliche Parameter
B43: canton | C43: =INDEX(Languages!$B$2:$E$1016,MATCH("canton registration",Languages!$A$2:$A$1048576,0),MATCH('0. Introduction'!$B$6,Languages!$B$1:$E$1,0)) -> Kanton der Registrierung | D43: =INDEX(Languages!$B$2:$E$1016,MATCH("selection",Languages!$A$2:$A$1048576,0),MATCH('0. Introduction'!$B$6,Languages!$B$1:$E$1,0)) -> Auswahl
B44: vehicle purchase | C44: =INDEX(Languages!$B$2:$E$1016,MATCH("vehicle purchase",Languages!$A$2:$A$1048576,0),MATCH('0. Introduction'!$B$6,Languages!$B$1:$E$1,0)) -> Fahrzeugkauf | D44: =INDEX(Languages!$B$2:$E$1016,MATCH("CHF",Languages!$A$2:$A$1048576,0),MATCH('0. Introduction'!$B$6,Languages!$B$1:$E$1,0)) -> CHF
B45: resale_year | C45: =INDEX(Languages!$B$2:$E$1016,MATCH("resale_year",Languages!$A$2:$A$1048576,0),MATCH('0. Introduction'!$B$6,Languages!$B$1:$E$1,0)) -> Jahr des Wiederverkaufs | D45: =INDEX(Languages!$B$2:$E$1016,MATCH("selection",Languages!$A$2:$A$1048576,0),MATCH('0. Introduction'!$B$6,Languages!$B$1:$E$1,0)) -> Auswahl
B46: residual value share | C46: =INDEX(Languages!$B$2:$E$1016,MATCH("residual value share",Languages!$A$2:$A$1048576,0),MATCH('0. Introduction'!$B$6,Languages!$B$1:$E$1,0)) -> Restwertanteil | D46: =INDEX(Languages!$B$2:$E$1016,MATCH("%",Languages!$A$2:$A$1048576,0),MATCH('0. Introduction'!$B$6,Languages!$B$1:$E$1,0)) -> %
B47: yearly insurance | C47: =INDEX(Languages!$B$2:$E$1016,MATCH("yearly insurance",Languages!$A$2:$A$1048576,0),MATCH('0. Introduction'!$B$6,Languages!$B$1:$E$1,0)) -> Jährliche Versicherung | D47: =INDEX(Languages!$B$2:$E$1016,MATCH("CHF/y",Languages!$A$2:$A$1048576,0),MATCH('0. Introduction'!$B$6,Languages!$B$1:$E$1,0)) -> CHF/Jahr
B48: maintenance cost | C48: =INDEX(Languages!$B$2:$E$1016,MATCH("maintenance cost",Languages!$A$2:$A$1048576,0),MATCH('0. Introduction'!$B$6,Languages!$B$1:$E$1,0)) -> Wartungskosten | D48: =INDEX(Languages!$B$2:$E$1016,MATCH("CHF/y",Languages!$A$2:$A$1048576,0),MATCH('0. Introduction'!$B$6,Languages!$B$1:$E$1,0)) -> CHF/Jahr
B49: charger cost per kW | C49: =INDEX(Languages!$B$2:$E$1016,MATCH(B49,Languages!$A$2:$A$1048576,0),MATCH('0. Introduction'!$B$6,Languages!$B$1:$E$1,0)) -> Kosten für Depotladegeräte pro kW | D49: =INDEX(Languages!$B$2:$E$1016,MATCH("CHF/kW",Languages!$A$2:$A$1048576,0),MATCH('0. Introduction'!$B$6,Languages!$B$1:$E$1,0)) -> CHF/kW
B50: charger installation cost per kW | C50: =INDEX(Languages!$B$2:$E$1016,MATCH(B50,Languages!$A$2:$A$1048576,0),MATCH('0. Introduction'!$B$6,Languages!$B$1:$E$1,0)) -> Kosten für die Installation von Depotladegeräten pro kW | D50: =INDEX(Languages!$B$2:$E$1016,MATCH("CHF/kW",Languages!$A$2:$A$1048576,0),MATCH('0. Introduction'!$B$6,Languages!$B$1:$E$1,0)) -> CHF/kW
B51: charger connection cost per kW | C51: =INDEX(Languages!$B$2:$E$1016,MATCH(B51,Languages!$A$2:$A$1048576,0),MATCH('0. Introduction'!$B$6,Languages!$B$1:$E$1,0)) -> Kosten für den Anschluss von Depotladegeräten pro kW | D51: =INDEX(Languages!$B$2:$E$1016,MATCH("CHF/kW",Languages!$A$2:$A$1048576,0),MATCH('0. Introduction'!$B$6,Languages!$B$1:$E$1,0)) -> CHF/kW
B52: grid capacity reserve cost per kW | C52: =INDEX(Languages!$B$2:$E$1016,MATCH(B52,Languages!$A$2:$A$1048576,0),MATCH('0. Introduction'!$B$6,Languages!$B$1:$E$1,0)) -> Kosten für die Netzkapazitätsreserve pro kW | D52: =INDEX(Languages!$B$2:$E$1016,MATCH("CHF/kW/year",Languages!$A$2:$A$1048576,0),MATCH('0. Introduction'!$B$6,Languages!$B$1:$E$1,0)) -> CHF/kW/Jahr
B53: replacement_cost_included | C53: =INDEX(Languages!$B$2:$E$1016,MATCH(B53,Languages!$A$2:$A$1048576,0),MATCH('0. Introduction'!$B$6,Languages!$B$1:$E$1,0)) -> Sind die Kosten für den Austausch der Batterie/Brennstoffzelle (falls zutreffend) enthalten? | D53: =INDEX(Languages!$B$2:$E$1016,MATCH("selection",Languages!$A$2:$A$1048576,0),MATCH('0. Introduction'!$B$6,Languages!$B$1:$E$1,0)) -> Auswahl
B54: share tolled roads | C54: =INDEX(Languages!$B$2:$E$1016,MATCH("share tolled roads",Languages!$A$2:$A$1048576,0),MATCH('0. Introduction'!$B$6,Languages!$B$1:$E$1,0)) -> Anteil der auf mautpflichtigen Strassen ausserhalb der Schweiz zurückgelegten Kilometer | D54: =INDEX(Languages!$B$2:$E$1016,MATCH("%",Languages!$A$2:$A$1048576,0),MATCH('0. Introduction'!$B$6,Languages!$B$1:$E$1,0)) -> %
B55: interest rate | C55: =INDEX(Languages!$B$2:$E$1016,MATCH("interest rate",Languages!$A$2:$A$1048576,0),MATCH('0. Introduction'!$B$6,Languages!$B$1:$E$1,0)) -> Diskontsatz | D55: =INDEX(Languages!$B$2:$E$1016,MATCH("%",Languages!$A$2:$A$1048576,0),MATCH('0. Introduction'!$B$6,Languages!$B$1:$E$1,0)) -> %
B56: fuel cost | C56: =INDEX(Languages!$B$2:$E$1016,MATCH("fuel cost",Languages!$A$2:$A$1048576,0),MATCH('0. Introduction'!$B$6,Languages!$B$1:$E$1,0)) -> Kraftstoffkosten (Diesel) | D56: =INDEX(Languages!$B$2:$E$1016,MATCH("CHF/l",Languages!$A$2:$A$1048576,0),MATCH('0. Introduction'!$B$6,Languages!$B$1:$E$1,0)) -> CHF/l
B57: hydrogen cost | C57: =INDEX(Languages!$B$2:$E$1016,MATCH("hydrogen cost",Languages!$A$2:$A$1048576,0),MATCH('0. Introduction'!$B$6,Languages!$B$1:$E$1,0)) -> Wasserstoffkosten | D57: =INDEX(Languages!$B$2:$E$1016,MATCH("CHF/kg",Languages!$A$2:$A$1048576,0),MATCH('0. Introduction'!$B$6,Languages!$B$1:$E$1,0)) -> CHF/kg
B58: CNG cost | C58: =INDEX(Languages!$B$2:$E$1016,MATCH("GNC cost",Languages!$A$2:$A$1048576,0),MATCH('0. Introduction'!$B$6,Languages!$B$1:$E$1,0)) -> Kraftstoffkosten (Erdgas) | D58: =INDEX(Languages!$B$2:$E$1016,MATCH("CHF/kg",Languages!$A$2:$A$1048576,0),MATCH('0. Introduction'!$B$6,Languages!$B$1:$E$1,0)) -> CHF/kg
B59: electricity cost (daily charger) | C59: =INDEX(Languages!$B$2:$E$1016,MATCH("electricity cost (daily charger)",Languages!$A$2:$A$1048576,0),MATCH('0. Introduction'!$B$6,Languages!$B$1:$E$1,0)) -> Stromkosten (LKW-Depot-Ladegerät) | D59: =INDEX(Languages!$B$2:$E$1016,MATCH("CHF/kWh",Languages!$A$2:$A$1048576,0),MATCH('0. Introduction'!$B$6,Languages!$B$1:$E$1,0)) -> CHF/kWh
B60: electricity cost (occasional charger) | C60: =INDEX(Languages!$B$2:$E$1016,MATCH("electricity cost (occasional charger)",Languages!$A$2:$A$1048576,0),MATCH('0. Introduction'!$B$6,Languages!$B$1:$E$1,0)) -> Stromkosten (Öffentliche Ladestation) | D60: =INDEX(Languages!$B$2:$E$1016,MATCH("CHF/kWh",Languages!$A$2:$A$1048576,0),MATCH('0. Introduction'!$B$6,Languages!$B$1:$E$1,0)) -> CHF/kWh

Sheet List parameters (hidden)
A1: Input parameters | B1: Unit | C1: Type | D1: Description
A2: Use
A3: cycle | C3: Text | D3: Driving cycle. See Cycles.
A4: lifetime kilometers | B4: km | C4: Number | D4: Kilometers over vehicle's lifetime
A5: kilometers per year | B5: km | C5: Number | D5: Kilometers driven annually.
A6: TtW energy | B6: kj | C6: Number | D6: Tank-to-wheel energy expenditure over 1 km.
A7: payload | B7: ton | C7: Number | D7: Truck's payload.
A8: average passengers | B8: unit | C8: Number | D8: Number of passengers (relevant for two-wheelers, cars and buses).
A9: electric utility factor | B9: unitless | C9: Number | D9: 0-1. Share of kilometers driven in electric mode.
A10: target_range | B10: km | C10: Number | D10: Desired range autonomy.
A11: electricity | C11: Text | D11: Specify the technology supplying electricity. Country mix, if unspecified. See Electricity.
A12: diesel | C12: Text | D12: Specify the fuel type. See Diesel.
A13: methane | C13: Text | D13: Specify the fuel type. See Methane.
A14: hydrogen | C14: Text | D14: Specify the fuel type. See Hydrogen.
A16: Vehicle
A17: vehicle_type | C17: Text | D17: Vehicle type: two-wheeler, car, truck, bus. Mandatory. See Vehicle type.
A18: powertrain | C18: Text | D18: Powertrain type. Mandatory. See Powertrains.
A19: size | C19: Text | D19: Size class of the vehicle. Mandatory. See sizes.
A20: year | C20: Number | D20: 2000-2050. Year of vehicle manufacture. Mandatory.
A21: power | B21: kW | C21: Number | D21: Motor/engine power.
A22: curb mass | B22: kg | C22: Number | D22: Vehicel mass, including driver, but excluding payload.
A24: Storage
A25: battery technology | C25: Text | D25: NMC-111, NMC-523, NMC-622, NMC-811, NMC-955, NCA, LFP, LTO, Li-O2, Li-S, SiB.
A26: electric energy stored | B26: kWh | C26: Number | D26: Gross energy storage capacity of the battery.
A28: Geography
A29: country | C29: Text | D29: Country of use. Affects electricity mix, fuel blend, sulfur content in fuel, etc.
A31: Impact assessment
A32: func_unit | C32: Text | D32: Functional unit: vkm, pkm or tkm
A33: scenario | C33: Text | D33: Background scenario: static, SSP2-NPi, SSP2-PkBudg1150, SSP2-PkBudg500
A34: method | C34: Text | D34: Impact assessment method: recipe (ReCiPe) or ef (Environmental Footprint 3.1)
A35: indicator | C35: Text | D35: midpoint or endpoint
A37: Vehicle type
A38: two-wheeler | D38: Includes bicycles, scooters, moped, motorcycles.
A39: car | D39: Passenger cars.
A40: bus | D40: Urban bus and coach.
A41: truck | D41: Rigid truck and semi-trailer truck.
A43: Powertrains | F43: Powertrains (long)
A44: BEV | D44: Battery electric. | F44: =INDEX(Languages!$B$2:$E$1016,MATCH(A44,Languages!$A$2:$A$1048576,0),MATCH('0. Introduction'!$B$6,Languages!$B$1:$E$1,0)) -> Batterieelektrisch | G44: =A44 -> BEV
A45: FCEV | D45: Fuel cell electric. | F45: =INDEX(Languages!$B$2:$E$1016,MATCH(A45,Languages!$A$2:$A$1048576,0),MATCH('0. Introduction'!$B$6,Languages!$B$1:$E$1,0)) -> Brennstoffzellenelektrisch | G45: FCEV
A46: HEV-d | D46: Diesel hybrid. | F46: =INDEX(Languages!$B$2:$E$1016,MATCH(A46,Languages!$A$2:$A$1048576,0),MATCH('0. Introduction'!$B$6,Languages!$B$1:$E$1,0)) -> Hybrid-Diesel | G46: HEV-d
A47: PHEV-d | D47: Diesel plugin hybrid. | F47: =INDEX(Languages!$B$2:$E$1016,MATCH(A47,Languages!$A$2:$A$1048576,0),MATCH('0. Introduction'!$B$6,Languages!$B$1:$E$1,0)) -> Plug-in-Hybrid-Diesel | G47: PHEV-d
A48: ICEV-d | D48: Diesel. | F48: =INDEX(Languages!$B$2:$E$1016,MATCH(A48,Languages!$A$2:$A$1048576,0),MATCH('0. Introduction'!$B$6,Languages!$B$1:$E$1,0)) -> Diesel | G48: ICEV-d
A49: ICEV-g | D49: Compressed gas. | F49: =INDEX(Languages!$B$2:$E$1016,MATCH(A49,Languages!$A$2:$A$1048576,0),MATCH('0. Introduction'!$B$6,Languages!$B$1:$E$1,0)) -> Erdgas | G49: ICEV-g
A51: Sizes
A52: LKW =7,5t | B52: =INDEX(Languages!$B$2:$E$1016,MATCH(A52,Languages!$A$2:$A$1048576,0),MATCH('0. Introduction'!$B$6,Languages!$B$1:$E$1,0)) -> LKW =7,5t | C52: LKW =7,5t | D52: Rigid chassis. Less than 7.5t gross weight.
A53: LKW >7,5-12t | B53: =INDEX(Languages!$B$2:$E$1016,MATCH(A53,Languages!$A$2:$A$1048576,0),MATCH('0. Introduction'!$B$6,Languages!$B$1:$E$1,0)) -> LKW >7,5-12t | C53: LKW >7,5-12t | D53: Rigid chassis. 7.5-12t gross weight.
A54: LKW >12-14t | B54: =INDEX(Languages!$B$2:$E$1016,MATCH(A54,Languages!$A$2:$A$1048576,0),MATCH('0. Introduction'!$B$6,Languages!$B$1:$E$1,0)) -> LKW >12-14t | C54: LKW >12-14t | D54: Rigid chassis. 12-14t gross weight.
A55: LKW >14-20t | B55: =INDEX(Languages!$B$2:$E$1016,MATCH(A55,Languages!$A$2:$A$1048576,0),MATCH('0. Introduction'!$B$6,Languages!$B$1:$E$1,0)) -> LKW >14-20t | C55: LKW >14-20t | D55: Rigid chassis. 14-20t gross weight.
A56: LKW >20-26t | B56: =INDEX(Languages!$B$2:$E$1016,MATCH(A56,Languages!$A$2:$A$1048576,0),MATCH('0. Introduction'!$B$6,Languages!$B$1:$E$1,0)) -> LKW >20-26t | C56: LKW >20-26t | D56: Rigid chassis. 20-26t gross weight.
A57: LKW >26-28t | B57: =INDEX(Languages!$B$2:$E$1016,MATCH(A57,Languages!$A$2:$A$1048576,0),MATCH('0. Introduction'!$B$6,Languages!$B$1:$E$1,0)) -> LKW >26-28t | C57: LKW >26-28t | D57: Rigid chassis. 26-28t gross weight.
A58: LKW >28-32t | B58: =INDEX(Languages!$B$2:$E$1016,MATCH(A58,Languages!$A$2:$A$1048576,0),MATCH('0. Introduction'!$B$6,Languages!$B$1:$E$1,0)) -> LKW >28-32t | C58: LKW >28-32t | D58: Rigid chassis. 28-32t gross weight.
A59: LKW >32t | B59: =INDEX(Languages!$B$2:$E$1016,MATCH(A59,Languages!$A$2:$A$1048576,0),MATCH('0. Introduction'!$B$6,Languages!$B$1:$E$1,0)) -> LKW >32t | C59: LKW >32t | D59: Rigid chassis. More than 32t gross weight.
A60: LZ/SZ =7,5t | B60: =INDEX(Languages!$B$2:$E$1016,MATCH(A60,Languages!$A$2:$A$1048576,0),MATCH('0. Introduction'!$B$6,Languages!$B$1:$E$1,0)) -> LZ/SZ =7,5t | C60: LZ/SZ =7,5t | D60: Semi-trailer truck. 7.5t gross weight.
A61: LZ/SZ >7,5t-14t | B61: =INDEX(Languages!$B$2:$E$1016,MATCH(A61,Languages!$A$2:$A$1048576,0),MATCH('0. Introduction'!$B$6,Languages!$B$1:$E$1,0)) -> LZ/SZ >7,5t-14t | C61: LZ/SZ >7,5t-14t | D61: Semi-trailer truck. 7.5-14t gross weight.
A62: LZ/SZ >14-20t | B62: =INDEX(Languages!$B$2:$E$1016,MATCH(A62,Languages!$A$2:$A$1048576,0),MATCH('0. Introduction'!$B$6,Languages!$B$1:$E$1,0)) -> LZ/SZ >14-20t | C62: LZ/SZ >14-20t | D62: Semi-trailer truck. 14-20t gross weight.
A63: LZ/SZ >20-28t | B63: =INDEX(Languages!$B$2:$E$1016,MATCH(A63,Languages!$A$2:$A$1048576,0),MATCH('0. Introduction'!$B$6,Languages!$B$1:$E$1,0)) -> LZ/SZ >20-28t | C63: LZ/SZ >20-28t | D63: Semi-trailer truck. 20-28t gross weight.
A64: LZ/SZ >28-34t | B64: =INDEX(Languages!$B$2:$E$1016,MATCH(A64,Languages!$A$2:$A$1048576,0),MATCH('0. Introduction'!$B$6,Languages!$B$1:$E$1,0)) -> LZ/SZ >28-34t | C64: LZ/SZ >28-34t | D64: Semi-trailer truck. 28-34t gross weight.
A65: LZ/SZ >34-40t | B65: =INDEX(Languages!$B$2:$E$1016,MATCH(A65,Languages!$A$2:$A$1048576,0),MATCH('0. Introduction'!$B$6,Languages!$B$1:$E$1,0)) -> LZ/SZ >34-40t | C65: LZ/SZ >34-40t | D65: Semi-trailer truck. 34-40t gross weight.
A67: Cycles
A68: Urban delivery
A69: Regional delivery
A70: Long haul
A72: Electricity | E72: Diesel | I72: Methane | M72: Hydrogen
A73: hydro | E73: diesel | I73: methane | M73: hydrogen - electrolysis - PEM | N73: =INDEX(Languages!$B$2:$E$1016,MATCH(M73,Languages!$A$2:$A$1048576,0),MATCH('0. Introduction'!$B$6,Languages!$B$1:$E$1,0)) -> Wasserstoff (Elektrizität), Netzmittelwert | O73: hydrogen - electrolysis - PEM
A74: nuclear | E74: diesel - biodiesel - cooking oil | I74: methane - biomethane - sewage sludge | M74: hydrogen - smr - natural gas | N74: =INDEX(Languages!$B$2:$E$1016,MATCH(M74,Languages!$A$2:$A$1048576,0),MATCH('0. Introduction'!$B$6,Languages!$B$1:$E$1,0)) -> Wasserstoff (Erdgas) | O74: hydrogen - smr - natural gas
A75: gas | E75: diesel - biodiesel - algae | I75: methane - synthetic - coal | M75: hydrogen - electrolysis - PEM (renewables) | N75: =INDEX(Languages!$B$2:$E$1016,MATCH(M75,Languages!$A$2:$A$1048576,0),MATCH('0. Introduction'!$B$6,Languages!$B$1:$E$1,0)) -> Wasserstoff (Elektrizität), erneuerbare Energie | O75: hydrogen - electrolysis - PEM (renewables)
A76: solar | E76: diesel - biodiesel - rapeseed oil | I76: methane - synthetic - electrochemical
A77: wind | E77: diesel - biodiesel - palm oil | I77: methane - synthetic - electrochemical - cement
A78: biomass | E78: diesel - synthetic - FT - coal - economic allocation | I78: methane - synthetic - electrochemical - MSWI
A79: coal | E79: diesel - synthetic - FT - coal - energy allocation | I79: methane - synthetic - biological
A80: oil | E80: diesel - synthetic - FT - coal with CCS - economic allocation | I80: methane - synthetic - biological - cement
A81: geothermal | E81: diesel - synthetic - FT - coal with CCS - energy allocation | I81: methane - synthetic - biological - MSWI
A82: waste | E82: diesel - synthetic - FT - electrolysis - economic allocation
A83: biogas_ccs | E83: diesel - synthetic - FT - electrolysis - energy allocation
A84: biomass_ccs | E84: diesel - synthetic - FT - wood - economic allocation
A85: coal_ccs | E85: diesel - synthetic - FT - wood - energy allocation
A86: gas_ccs | E86: diesel - synthetic - FT - wood with CCS - economic allocation
A87: wood_ccs | E87: diesel - synthetic - FT - wood with CCS - energy allocation
A88: hydro_alpine | E88: diesel - synthetic - methanol - coal - economic allocation
A89: gas_ccgt | E89: diesel - synthetic - methanol - coal - energy allocation
A90: gas_chp | E90: diesel - synthetic - methanol - coal with CCS - economic allocation
A91: solar_thermal | E91: diesel - synthetic - methanol - coal with CCS - energy allocation
A92: wind_offshore | E92: diesel - synthetic - methanol - electrolysis - economic allocation
A93: lignite | E93: diesel - synthetic - methanol - electrolysis - energy allocation
E94: diesel - synthetic - methanol - cement - economic allocation
E95: diesel - synthetic - methanol - cement - energy allocation
A97: Languages | E97: Manufacture years | H97: Daily chargers | I97: Occasional chargers
A98: Deutsch | E98: 2010 | H98: 100 kW | I98: 100 kW
A99: Francais | E99: 2011 | H99: 150 kW | I99: 150 kW
A100: Italiano | E100: 2012 | H100: 200 kW | I100: 200 kW
A101: English | E101: 2013 | H101: 205 kW | I101: 205 kW
E102: 2014 | H102: 300 kW | I102: 300 kW
A103: Alerts | E103: 2015 | H103: 350 kW | I103: 350 kW
A104: max_veh_limit | B104: =INDEX(Languages!$B$2:$E$1016,MATCH(A104,Languages!$A$2:$A$1048576,0),MATCH('0. Introduction'!$B$6,Languages!$B$1:$E$1,0)) -> Sie haben bereits 5 Fahrzeuge hinzugefügt. | E104: 2016 | H104: 500 kW | I104: 500 kW
A105: missing_selection | B105: =INDEX(Languages!$B$2:$E$1016,MATCH(A105,Languages!$A$2:$A$1048576,0),MATCH('0. Introduction'!$B$6,Languages!$B$1:$E$1,0)) -> Bitte wählen Sie einen Motor, eine Kategorie und ein Baujahr aus. | E105: 2017
A106: no_more_vehicles | B106: =INDEX(Languages!$B$2:$E$1016,MATCH(A106,Languages!$A$2:$A$1048576,0),MATCH('0. Introduction'!$B$6,Languages!$B$1:$E$1,0)) -> Es sind keine Fahrzeuge mehr zu entfernen. | E106: 2018
A107: unavailable_vehicle | B107: =INDEX(Languages!$B$2:$E$1016,MATCH(A107,Languages!$A$2:$A$1048576,0),MATCH('0. Introduction'!$B$6,Languages!$B$1:$E$1,0)) -> Fahrzeug nicht verfügbar | E107: 2019
E108: 2020
A109: Countries | E109: 2021
A110: CH | E110: 2022
E111: 2023
E112: 2024
E113: 2025
E114: 2026
E115: 2027
A116: Functional unit | E116: 2028
A117: vkm | B117: =INDEX(Languages!$B$2:$E$1016,MATCH(A117,Languages!$A$2:$A$1048576,0),MATCH('0. Introduction'!$B$6,Languages!$B$1:$E$1,0)) -> Fahrzeugkilometer | C117: vkm | E117: 2029
A118: tkm | B118: =INDEX(Languages!$B$2:$E$1016,MATCH(A118,Languages!$A$2:$A$1048576,0),MATCH('0. Introduction'!$B$6,Languages!$B$1:$E$1,0)) -> Tonnenkilometer | C118: tkm | E118: 2030
E119: 2031
A120: Methods | E120: 2032
A121: CO2/UBP 2021/CED | B121: =INDEX(Languages!$B$2:$E$1016,MATCH(A121,Languages!$A$2:$A$1048576,0),MATCH('0. Introduction'!$B$6,Languages!$B$1:$E$1,0)) -> CO2-Bilanz – Betriebskosten | E121: 2033
E122: 2034
E123: 2035
A124: Scenarios | E124: 2036
A125: static | B125: static | E125: 2037
E126: 2038
A127: Mission types | E127: 2039
A128: Long haul | B128: =INDEX(Languages!$B$2:$E$1016,MATCH(A128,Languages!$A$2:$A$1048576,0),MATCH('0. Introduction'!$B$6,Languages!$B$1:$E$1,0)) -> Fernverkehr | C128: =A128 -> Long haul | E128: 2040
A129: Regional delivery | B129: =INDEX(Languages!$B$2:$E$1016,MATCH(A129,Languages!$A$2:$A$1048576,0),MATCH('0. Introduction'!$B$6,Languages!$B$1:$E$1,0)) -> Regionalverkehr | C129: =A129 -> Regional delivery
A130: Urban delivery | B130: =INDEX(Languages!$B$2:$E$1016,MATCH(A130,Languages!$A$2:$A$1048576,0),MATCH('0. Introduction'!$B$6,Languages!$B$1:$E$1,0)) -> Stadtzustellung | C130: =A130 -> Urban delivery
A132: Battery technologies | E132: Purchase prices | F132: Insurance prices | G132: Maintenance prices
A133: NMC-622 | E133: =INDEX(Languages!$B$2:$E$1016,MATCH("I_dont_know",Languages!$A$2:$A$1048576,0),MATCH('0. Introduction'!$B$6,Languages!$B$1:$E$1,0)) -> Ich weiss es nicht. | F133: =INDEX(Languages!$B$2:$E$1016,MATCH("I_dont_know",Languages!$A$2:$A$1048576,0),MATCH('0. Introduction'!$B$6,Languages!$B$1:$E$1,0)) -> Ich weiss es nicht. | G133: =INDEX(Languages!$B$2:$E$1016,MATCH("I_dont_know",Languages!$A$2:$A$1048576,0),MATCH('0. Introduction'!$B$6,Languages!$B$1:$E$1,0)) -> Ich weiss es nicht.
A134: NMC-811 | E134: 80000 | F134: 1000 | G134: 1000
A135: NMC-523 | E135: =E134+5000 -> 85000 | F135: =F134+1000 -> 2000 | G135: =G134+1000 -> 2000
A136: NMC-111 | E136: =E135+5000 -> 90000 | F136: =F135+1000 -> 3000 | G136: 3000
A137: NMC-955 | E137: 95000 | F137: 4000 | G137: 4000
A138: NCA | E138: 100000 | F138: 5000 | G138: 5000
A139: LFP | E139: 105000 | F139: 6000 | G139: 6000
A140: LTO | E140: 110000 | F140: 7000 | G140: 7000
E141: 115000 | F141: 8000 | G141: 8000
A142: Electricity | E142: 120000 | F142: 9000 | G142: 9000
A143: grid | B143: =INDEX(Languages!$B$2:$E$1016,MATCH(A143,Languages!$A$2:$A$1048576,0),MATCH('0. Introduction'!$B$6,Languages!$B$1:$E$1,0)) -> Netzstrom | C143: grid | E143: 125000 | F143: 10000 | G143: 10000
A144: solar PV | B144: =INDEX(Languages!$B$2:$E$1016,MATCH(A144,Languages!$A$2:$A$1048576,0),MATCH('0. Introduction'!$B$6,Languages!$B$1:$E$1,0)) -> Solarenergie | C144: solar | E144: 130000 | F144: 11000 | G144: 11000
A145: hydro | B145: =INDEX(Languages!$B$2:$E$1016,MATCH(A145,Languages!$A$2:$A$1048576,0),MATCH('0. Introduction'!$B$6,Languages!$B$1:$E$1,0)) -> Wasserkraft | C145: hydro | E145: 135000 | F145: 12000 | G145: 12000
A146: wind | B146: =INDEX(Languages!$B$2:$E$1016,MATCH(A146,Languages!$A$2:$A$1048576,0),MATCH('0. Introduction'!$B$6,Languages!$B$1:$E$1,0)) -> Windkraft | C146: wind | E146: 140000 | F146: 13000 | G146: 13000
A147: nuclear | B147: =INDEX(Languages!$B$2:$E$1016,MATCH(A147,Languages!$A$2:$A$1048576,0),MATCH('0. Introduction'!$B$6,Languages!$B$1:$E$1,0)) -> Kernkraft | C147: nuclear | E147: 145000 | F147: 14000 | G147: 14000
A148: 10_own_90_grid | B148: =INDEX(Languages!$B$2:$E$1016,MATCH(A148,Languages!$A$2:$A$1048576,0),MATCH('0. Introduction'!$B$6,Languages!$B$1:$E$1,0)) -> 10 % Solar-PV vor Ort – 90 % Netzstrom | C148: 10_own_90_grid | E148: 150000 | F148: 15000 | G148: 15000
A149: 20_own_80_grid | B149: =INDEX(Languages!$B$2:$E$1016,MATCH(A149,Languages!$A$2:$A$1048576,0),MATCH('0. Introduction'!$B$6,Languages!$B$1:$E$1,0)) -> 20 % Solar-PV vor Ort – 80 % Netzstrom | C149: 20_own_80_grid | E149: 155000
A150: 30_own_70_grid | B150: =INDEX(Languages!$B$2:$E$1016,MATCH(A150,Languages!$A$2:$A$1048576,0),MATCH('0. Introduction'!$B$6,Languages!$B$1:$E$1,0)) -> 30 % Solar-PV vor Ort – 70 % Netzstrom | C150: 30_own_70_grid | E150: 160000
A151: 40_own_60_grid | B151: =INDEX(Languages!$B$2:$E$1016,MATCH(A151,Languages!$A$2:$A$1048576,0),MATCH('0. Introduction'!$B$6,Languages!$B$1:$E$1,0)) -> 40 % Solar-PV vor Ort – 60 % Netzstrom | C151: 40_own_60_grid | E151: 165000
A152: 50_own_50_grid | B152: =INDEX(Languages!$B$2:$E$1016,MATCH(A152,Languages!$A$2:$A$1048576,0),MATCH('0. Introduction'!$B$6,Languages!$B$1:$E$1,0)) -> 50 % Solar-PV vor Ort – 50 % Netzstrom | C152: 50_own_50_grid | E152: 170000
A153: 60_own_40_grid | B153: =INDEX(Languages!$B$2:$E$1016,MATCH(A153,Languages!$A$2:$A$1048576,0),MATCH('0. Introduction'!$B$6,Languages!$B$1:$E$1,0)) -> 60 % Solarstrom vor Ort – 40 % Stromnetz | C153: 60_own_40_grid | E153: 175000
A154: 70_own_30_grid | B154: =INDEX(Languages!$B$2:$E$1016,MATCH(A154,Languages!$A$2:$A$1048576,0),MATCH('0. Introduction'!$B$6,Languages!$B$1:$E$1,0)) -> 70 % Solarstrom vor Ort – 30 % Stromnetz | C154: 70_own_30_grid | E154: 180000
A155: 80_own_20_grid | B155: =INDEX(Languages!$B$2:$E$1016,MATCH(A155,Languages!$A$2:$A$1048576,0),MATCH('0. Introduction'!$B$6,Languages!$B$1:$E$1,0)) -> 80 % Solarstrom vor Ort – 20 % Stromnetz | C155: 80_own_20_grid | E155: 185000
A156: 90_own_10_grid | B156: =INDEX(Languages!$B$2:$E$1016,MATCH(A156,Languages!$A$2:$A$1048576,0),MATCH('0. Introduction'!$B$6,Languages!$B$1:$E$1,0)) -> 90 % Solarstrom vor Ort – 10 % Stromnetz | C156: 90_own_10_grid | E156: 190000
A157: EU grid | B157: =INDEX(Languages!$B$2:$E$1016,MATCH(A157,Languages!$A$2:$A$1048576,0),MATCH('0. Introduction'!$B$6,Languages!$B$1:$E$1,0)) -> Europäischer Stromnetzstrom | C157: EU grid | E157: 195000
E158: 200000
A159: Results | E159: 205000
A160: energy storage | B160: =INDEX(Languages!$B$2:$E$1016,MATCH(A160,Languages!$A$2:$A$1048576,0),MATCH('0. Introduction'!$B$6,Languages!$B$1:$E$1,0)) -> Energiespeicher | E160: 210000
A161: energy chain | B161: =INDEX(Languages!$B$2:$E$1016,MATCH(A161,Languages!$A$2:$A$1048576,0),MATCH('0. Introduction'!$B$6,Languages!$B$1:$E$1,0)) -> Energie-Lieferkette | E161: 215000
A162: maintenance | B162: =INDEX(Languages!$B$2:$E$1016,MATCH(A162,Languages!$A$2:$A$1048576,0),MATCH('0. Introduction'!$B$6,Languages!$B$1:$E$1,0)) -> Wartung | E162: 220000
A163: road | B163: =INDEX(Languages!$B$2:$E$1016,MATCH(A163,Languages!$A$2:$A$1048576,0),MATCH('0. Introduction'!$B$6,Languages!$B$1:$E$1,0)) -> Strasseninfrastruktur | E163: 225000
A164: direct | B164: =INDEX(Languages!$B$2:$E$1016,MATCH(A164,Languages!$A$2:$A$1048576,0),MATCH('0. Introduction'!$B$6,Languages!$B$1:$E$1,0)) -> direkte Emissionen | E164: 230000
A165: vehicle manufacture and EoL | B165: =INDEX(Languages!$B$2:$E$1016,MATCH(A165,Languages!$A$2:$A$1048576,0),MATCH('0. Introduction'!$B$6,Languages!$B$1:$E$1,0)) ->  | E165: 235000
A166: climate change | B166: =INDEX(Languages!$B$2:$E$1016,MATCH(A166,Languages!$A$2:$A$1048576,0),MATCH('0. Introduction'!$B$6,Languages!$B$1:$E$1,0)) -> Treibhauspotenzial (100 Jahre) | E166: 240000
A167: cost | B167: =INDEX(Languages!$B$2:$E$1016,MATCH(A167,Languages!$A$2:$A$1048576,0),MATCH('0. Introduction'!$B$6,Languages!$B$1:$E$1,0)) -> Betriebskosten | E167: 245000
A168: amortised purchase cost | B168: =INDEX(Languages!$B$2:$E$1016,MATCH(A168,Languages!$A$2:$A$1048576,0),MATCH('0. Introduction'!$B$6,Languages!$B$1:$E$1,0)) -> Anschaffungskosten | E168: 250000
A169: energy cost | B169: =INDEX(Languages!$B$2:$E$1016,MATCH(A169,Languages!$A$2:$A$1048576,0),MATCH('0. Introduction'!$B$6,Languages!$B$1:$E$1,0)) -> Energiekosten | E169: 255000
A170: maintenance cost | B170: =INDEX(Languages!$B$2:$E$1016,MATCH(A170,Languages!$A$2:$A$1048576,0),MATCH('0. Introduction'!$B$6,Languages!$B$1:$E$1,0)) -> Wartungskosten | E170: 260000
A171: amortised component replacement cost | B171: =INDEX(Languages!$B$2:$E$1016,MATCH(A171,Languages!$A$2:$A$1048576,0),MATCH('0. Introduction'!$B$6,Languages!$B$1:$E$1,0)) -> Kosten für den Austausch von Komponenten | E171: 265000
E172: 270000
A173: Swiss cantons | E173: 275000
A174: Zurich | B174: =INDEX(Languages!$B$2:$E$1016,MATCH(A174,Languages!$A$2:$A$1048576,0),MATCH('0. Introduction'!$B$6,Languages!$B$1:$E$1,0)) -> Zürich | C174: Zurich | E174: 280000
A175: Grisons | B175: =INDEX(Languages!$B$2:$E$1016,MATCH(A175,Languages!$A$2:$A$1048576,0),MATCH('0. Introduction'!$B$6,Languages!$B$1:$E$1,0)) -> Graubünden | C175: Grisons | E175: 285000
A176: Ticino | B176: =INDEX(Languages!$B$2:$E$1016,MATCH(A176,Languages!$A$2:$A$1048576,0),MATCH('0. Introduction'!$B$6,Languages!$B$1:$E$1,0)) -> Tessin | C176: Ticino | E176: 290000
A177: Vaud | B177: =INDEX(Languages!$B$2:$E$1016,MATCH(A177,Languages!$A$2:$A$1048576,0),MATCH('0. Introduction'!$B$6,Languages!$B$1:$E$1,0)) -> Waadt | C177: Vaud | E177: 295000
A178: Valais | B178: =INDEX(Languages!$B$2:$E$1016,MATCH(A178,Languages!$A$2:$A$1048576,0),MATCH('0. Introduction'!$B$6,Languages!$B$1:$E$1,0)) -> Wallis | C178: Valais | E178: 300000
A179: Geneva | B179: =INDEX(Languages!$B$2:$E$1016,MATCH(A179,Languages!$A$2:$A$1048576,0),MATCH('0. Introduction'!$B$6,Languages!$B$1:$E$1,0)) -> Genf | C179: Geneva | E179: 305000
A180: Aargau | B180: =INDEX(Languages!$B$2:$E$1016,MATCH(A180,Languages!$A$2:$A$1048576,0),MATCH('0. Introduction'!$B$6,Languages!$B$1:$E$1,0)) -> Aargau | C180: Aargau | E180: 310000
A181: Basel-Landschaft | B181: =INDEX(Languages!$B$2:$E$1016,MATCH(A181,Languages!$A$2:$A$1048576,0),MATCH('0. Introduction'!$B$6,Languages!$B$1:$E$1,0)) -> Basel-Landschaft | C181: Basel-Landschaft | E181: 315000
A182: Fribourg | B182: =INDEX(Languages!$B$2:$E$1016,MATCH(A182,Languages!$A$2:$A$1048576,0),MATCH('0. Introduction'!$B$6,Languages!$B$1:$E$1,0)) -> Freiburg | C182: Fribourg | E182: 320000
A183: Bern | B183: =INDEX(Languages!$B$2:$E$1016,MATCH(A183,Languages!$A$2:$A$1048576,0),MATCH('0. Introduction'!$B$6,Languages!$B$1:$E$1,0)) -> Bern | C183: Bern | E183: 325000
E184: 330000
E185: 335000
E186: 340000
E187: 345000
E188: 350000
E189: 355000
E190: 360000
E191: 365000
E192: 370000
E193: 375000
E194: 380000
E195: 385000
E196: 390000
E197: 395000
E198: 400000
E199: 405000
E200: =E199+5000 -> 410000
A201: Comments | E201: 415000
A202: cycle | B202: ="comment_"&A202 -> comment_cycle | C202: =INDEX(Languages!$B$2:$E$1016,MATCH(B202,Languages!$A$2:$A$1048576,0),MATCH('0. Introduction'!$B$6,Languages!$B$1:$E$1,0)) -> Art der Mission, für die der Lkw ausgelegt sein soll. Beeinflusst die empfohlene Reichweite, die jährliche Kilometerleistung und die Lebensdauer des Fahrzeugs. | E202: 420000
A203: lifetime kilometers | B203: ="comment_"&A203 -> comment_lifetime kilometers | C203: =INDEX(Languages!$B$2:$E$1016,MATCH(B203,Languages!$A$2:$A$1048576,0),MATCH('0. Introduction'!$B$6,Languages!$B$1:$E$1,0)) -> Die vom Lkw während seiner technischen Lebensdauer (einschliesslich aller Eigentümer) zurückgelegten Kilometer. Für die Kostenberechnung werden nur die zwischen Anschaffung und Die vom Lkw während seiner technischen Lebensdauer (einschliesslich aller Eigentümer) zurückgelegten Kilometer. Für die Kostenberechnung werden nur die zwischen Anschaffung und Wiederverkauf zurückgelegten Kilometer berücksichtigt. | E203: 425000
A204: kilometers per year | B204: comment_kilometers per year | C204: =INDEX(Languages!$B$2:$E$1016,MATCH(B204,Languages!$A$2:$A$1048576,0),MATCH('0. Introduction'!$B$6,Languages!$B$1:$E$1,0)) -> Die Kilometer, die der Lkw jährlich zurücklegt. | E204: 430000
A205: power | B205: comment_power | C205: =INDEX(Languages!$B$2:$E$1016,MATCH(B205,Languages!$A$2:$A$1048576,0),MATCH('0. Introduction'!$B$6,Languages!$B$1:$E$1,0)) -> Die maximale Motorleistung des Fahrzeugs. | E205: 435000
A206: payload | B206: comment_payload | C206: =INDEX(Languages!$B$2:$E$1016,MATCH(B206,Languages!$A$2:$A$1048576,0),MATCH('0. Introduction'!$B$6,Languages!$B$1:$E$1,0)) -> Die durchschnittliche Ladungsmasse in Kilogramm. | E206: 440000
A207: fuel consumption | B207: comment_fuel consumption | C207: =INDEX(Languages!$B$2:$E$1016,MATCH(B207,Languages!$A$2:$A$1048576,0),MATCH('0. Introduction'!$B$6,Languages!$B$1:$E$1,0)) -> Der Kraftstoffverbrauch in Litern pro 100 km. | E207: 445000
A208: electricity consumption | B208: comment_electricity consumption | C208: =INDEX(Languages!$B$2:$E$1016,MATCH(B208,Languages!$A$2:$A$1048576,0),MATCH('0. Introduction'!$B$6,Languages!$B$1:$E$1,0)) -> Der Stromverbrauch in kWh pro 100 km, ohne Ladungsverluste. Es wird ein Ladungsverlust von 10 % angenommen. | E208: 450000
A209: hydrogen consumption | B209: comment_hydrogen consumption | C209: =INDEX(Languages!$B$2:$E$1016,MATCH(B209,Languages!$A$2:$A$1048576,0),MATCH('0. Introduction'!$B$6,Languages!$B$1:$E$1,0)) -> Der Wasserstoffverbrauch in kg pro 100 km. | E209: 455000
A210: CNG consumption | B210: comment_CNG consumption | C210: =INDEX(Languages!$B$2:$E$1016,MATCH(B210,Languages!$A$2:$A$1048576,0),MATCH('0. Introduction'!$B$6,Languages!$B$1:$E$1,0)) -> Der Erdgasverbrauch in kg pro 100 km. | E210: 460000
A211: battery technology | B211: comment_battery technology | C211: =INDEX(Languages!$B$2:$E$1016,MATCH(B211,Languages!$A$2:$A$1048576,0),MATCH('0. Introduction'!$B$6,Languages!$B$1:$E$1,0)) -> Batterietechnologie. Derzeit sind die meisten NMC-622 oder NMC-811. | E211: 465000
... 62 more rows

Sheet Languages (hidden)
B1: Deutsch | C1: Francais | D1: Italiano | E1: English
A2: intro_1 | B2: Willkommen bei CargoTrack, dem CO2-Fussabdruck- und Kostenrechner des Swiss E-Cargo-Projekts. Um Makros zu aktivieren, schliessen Sie diese Datei, klicken Sie mit der rechten Maustaste auf die Datei im Datei-Explorer, wählen Sie „Eigenschaften“ und aktivieren Sie dann das Kontrollkästchen „Entsperren“ auf der Registerkarte „Allgemein“, bevor Sie auf „Apply“ klicken. Wenn beim Öffnen dieser Datei oben eine Warnung über deaktivierte Makros angezeigt wird, aktivieren Sie bitte deren Verwendung. Hinweis: Für dieses Tool sind Microsoft Excel für Windows und eine aktive Internetverbindung erforderlich. | C2: Bienvenue dans CargoTrack, le calculateur d'empreinte carbone et de coûts de Swiss e-Cargo. Pour activer les macros, fermez ce fichier, cliquez avec le bouton droit de la souris sur le fichier dans l'Explorateur de fichiers, sélectionnez Propriétés, puis cochez la case Débloquer dans l'onglet Général avant de cliquer sur Apply. Lorsque vous ouvrez ce fichier, si un avertissement concernant les macros désactivées s'affiche, veuillez activer leur utilisation. Remarque : cet outil nécessite Microsoft Excel pour Windows et une connexion Internet active. | D2: Benvenuti su CargoTrack, il calcolatore dell'impronta di carbonio e dei costi del progetto Swiss e-Cargo. Per abilitare le macro, chiudete questo file, fate clic con il tasto destro del mouse sul file in Esplora file, selezionate Proprietà, quindi selezionate la casella Sblocca nella scheda Generale prima di fare clic su Apply. All'apertura di questo file, se viene visualizzato un avviso relativo alle macro disabilitate, abilitate il loro utilizzo. Nota: questo strumento richiede Microsoft Excel per Windows e una connessione Internet attiva. | E2: Welcome to CargoTrack, the carbon footprint and cost calculator of Swiss e-Cargo project. To enable macros, close this file, right-click the file in File Explorer, select Properties, and then check the Unblock box on the General tab before clicking "Apply". When opening this file, If a warning is displayed above about disabled Macros, please enable their use. Note: This tool requires Microsoft Excel for Windows and an active internet connection.
A3: intro_2 | B3: CargoTrack von Swiss e-Cargo ist ein vom Paul Scherrer Institut (PSI) entwickelter Rechner für den CO2-Fussabdruck und die Kosten. Dieses Tool ermöglicht einen schnellen Vergleich verschiedener Lkw-Typen anhand der Betriebskosten und Treibhausgasemissionen unter Berücksichtigung aller relevanten Phasen ihres Lebenszyklus. Die Entwicklung dieses Tools wird vom Bundesamt für Energie im Rahmen des Swiss e-Cargo-Projekts unterstützt. | C3: CargoTrack de Swiss e-Cargo est un calculateur d'empreinte carbone et de coûts développé par l'Institut Paul Scherrer (PSI). Cet outil permet de comparer rapidement différents types de camions en fonction de leurs coûts de possession et de leurs émissions de gaz à effet de serre, en tenant compte de toutes les phases pertinentes de leur cycle de vie. Le développement de cet outil est soutenu par l'Office fédéral de l'énergie, dans le cadre du projet Swiss e-Cargo. | D3: CargoTrack di Swiss e-Cargo è un calcolatore dell'impronta di carbonio e dei costi sviluppato dall'Istituto Paul Scherrer (PSI). Questo strumento consente un rapido confronto tra diversi tipi di autocarri in base ai costi di proprietà e alle emissioni di gas serra, tenendo conto di tutte le fasi rilevanti del loro ciclo di vita. Lo sviluppo di questo strumento è sostenuto dall'Ufficio federale dell'energia svizzero, nell'ambito del progetto Swiss e-Cargo. | E3: Swiss e-Cargo's CargoTrack is a carbon footprint and cost calculator developed by the Paul Scherrer Institute (PSI). This tool allows for quick comparison of various truck types based on ownership costs and greenhouse gas emissions, considering all relevant phases of their life cycle. The development of this tool is supported by the Swiss Federal Office for Energy, as part of the Swiss e-Cargo project.
A4: intro_3 | B4: Das Tool ist einfach zu bedienen. Es umfasst neben dieser Registerkarte drei weitere Hauptregisterkarten: 1. „Fahrzeuge & Parameter“: Der Benutzer kann mehrere Fahrzeuge zum Vergleich auswählen und deren Parameter anpassen. 2. „Ergebnisse“: Zeigt die Vergleichsergebnisse an. 3. „Details“: Zeigt die Spezifikationen der Fahrzeuge und detaillierte Auswirkungen an. Darüber hinaus werden im Abschnitt „Methodik“ unten der Umfang der Analyse und die zugrunde liegenden Annahmen erläutert. | C4: Cet outil est facile à utiliser. Il comporte trois onglets principaux en plus de celui-ci : 1. « Véhicules et paramètres » : l'utilisateur peut sélectionner plusieurs véhicules à comparer et ajuster leurs paramètres. 2. « Résultats » : affiche les résultats de la comparaison. 3. « Détails » : affiche les spécifications des véhicules et les résultats détaillés de l'impact. De plus, une section « Méthodologie » ci-dessous explique la portée de l'analyse et les hypothèses de conduite. | D4: Lo strumento è facile da usare. Oltre a questa, si concentra su tre schede principali: 1. “Veicoli e parametri”: l'utente può selezionare più veicoli da confrontare e regolarne i parametri. 2. “Risultati”: mostra i risultati del confronto. 3. ‘Dettagli’: mostra le specifiche dei veicoli e i risultati dettagliati dell'impatto. Inoltre, la sezione “Metodologia” sottostante spiega l'ambito dell'analisi e le ipotesi di guida. | E4: The tool is easy to use. It focuses on three main tabs besides this one: 1. "Vehicles & Params": the user can select multiple vehicles to compare and adjust their parameters. 2. "Results": displays the comparison outcomes. 3. "Details": shows the vehicles' specifications and detailed impact results. Additionally, a "Methodology" section below explains the scope of the analysis and the driving assumptions.
A5: intro_4 | B5: entwickelt von | C5: développé par | D5: sviluppato da | E5: developed by
A6: intro_5 | B6: und finanziert durch | C6: et financé par | D6: e finanziato da | E6: and funded by
A7: tool_name | B7: CargoTrack: Klimawirkungs- und Kostenrechner von Swiss e-Cargo | C7: CargoTrack : calculateur d'empreinte carbone et de coûts de Swiss e-Cargo | D7: CargoTrack: Calcolatore dell'impatto climatico e dei costi di Swiss e-Cargo | E7: CargoTrack: Swiss e-Cargo's Climate impacts and Cost calculator
A8: collaboration_with | B8: in Zusammenarbeit mit | C8: en collaboration avec | D8: in collaborazione con | E8: in collaboration with
A9: BEV | B9: Batterieelektrisch | C9: Électrique à batterie | D9: Elettrico a batteria | E9: Battery electric
A10: FCEV | B10: Brennstoffzellenelektrisch | C10: Électrique à pile à combustible | D10: Elettrico a celle a combustibile | E10: Fuel cell electric
A11: HEV-d | B11: Hybrid-Diesel | C11: Hybride diesel | D11: Ibrido diesel | E11: Hybrid diesel
A12: PHEV-d | B12: Plug-in-Hybrid-Diesel | C12: Hybride rechargeable diesel | D12: Ibrido diesel plug-in | E12: Plugin hybrid diesel
A13: ICEV-d | B13: Diesel | C13: Diesel | D13: Diesel | E13: Diesel
A14: ICEV-g | B14: Erdgas | C14: Gaz naturel | D14: Gas naturale | E14: Natural gas
A15: powertrain | B15: Antrieb | C15: Moto-propulsion | D15: Motopropulsione | E15: Powertrain
A16: category | B16: Kategorie | C16: Catégorie | D16: Categoria | E16: Category
A17: manufacture_year | B17: Baujahr | C17: Année de fabrication | D17: Anno di fabbricazione | E17: Year of manufacture
A18: vehicle_selection | B18: Im Abschnitt „Analyse“ können Sie die Fahrzeuge konfigurieren, die Sie vergleichen möchten. Verwenden Sie die drei Dropdown-Menüs, um die Antriebstechnologie, die Grösse und das Baujahr eines Fahrzeugs auszuwählen. Wählen Sie ausserdem das Jahr des Fahrzeugkaufs aus (Erwerbsjahr = Herstellungsjahr, wenn Sie der Erstbesitzer sind). Fügen Sie die Auswahl mit der Schaltfläche „+“ hinzu oder entfernen Sie das zuletzt hinzugefügte Fahrzeug mit der Schaltfläche „–“. Es können maximal fünf Fahrzeuge gleichzeitig verglichen werden. Sie können die folgenden detaillierten Parameter anpassen (weisse Felder können geändert werden, graue Felder nicht). Geben Sie als Nächstes das Land an, in dem die Fahrzeuge betrieben werden (derzeit beschränkt auf die Schweiz), und wählen Sie die Vergleichseinheit: Fahrzeugkilometer (Fahrzeug-km): Vergleicht Fahrzeuge pro gefahrenem Kilometer, normiert nach ihrer Gesamtlaufleistung. Tonnenkilometer (Tonnen-km): Vergleicht Fahrzeuge pro transportierter Tonne Fracht pro Kilometer, normiert nach Gesamtlaufleistung und Nutzlast. Um die Berechnung zu starten, klicken Sie im Abschnitt „Analyse“ auf „OK“. | C18: Dans la section Analyse, vous pouvez configurer les véhicules que vous souhaitez comparer. Utilisez les trois menus déroulants pour sélectionner la technologie de propulsion, la taille et l'année de fabrication d'un véhicule. Sélectionnez également l'année d'acquisition du véhicule (année d'acquisition = année de fabrication si vous êtes le premier propriétaire). Ajoutez la sélection à l'aide du bouton « + » ou supprimez le dernier véhicule ajouté à l'aide du bouton « – ». Il est possible de comparer jusqu'à cinq véhicules à la fois. Vous pouvez régler les paramètres détaillés ci-dessous (les cellules blanches peuvent être modifiées, les cellules grises ne peuvent pas l'être). Ensuite, précisez le pays dans lequel les véhicules circulent (actuellement limité à la Suisse) et choisissez l'unité de comparaison : Véhicule-kilomètre (véhicule-km) : compare les véhicules par kilomètre parcouru, normalisé en fonction de leur kilométrage total. Tonne-kilomètre (tonne-km) : compare les véhicules par tonne de marchandises transportées par kilomètre, normalisé en fonction du kilométrage total et de la charge utile. Pour lancer le calcul, cliquez sur « OK » dans la section Analyse. | D18: Nella sezione Analisi è possibile configurare i veicoli che si desidera confrontare. Utilizzare i tre menu a tendina per selezionare la tecnologia di propulsione, le dimensioni e l'anno di produzione di un veicolo. Seleziona anche l'anno di acquisto del veicolo (anno di produzione = anno di acquisto se sei il primo proprietario). Aggiungere la selezione con il pulsante “+” o rimuovere l'ultimo veicolo aggiunto con il pulsante “–”. È possibile confrontare contemporaneamente un massimo di cinque veicoli. È possibile regolare i parametri dettagliati riportati di seguito (le celle bianche possono essere modificate, quelle grigie no). Successivamente, specificare il Paese in cui operano i veicoli (attualmente limitato alla Svizzera) e scegliere l'unità di confronto: Veicolo-chilometro (veicolo-km): confronta i veicoli per chilometro percorso, normalizzati in base al loro chilometraggio totale. Tonnellata-chilometro (tonnellata-km): confronta i veicoli per tonnellata di carico trasportato per chilometro, normalizzati in base al chilometraggio totale e al carico utile. Per avviare il calcolo, fare clic su “OK” nella sezione Analisi. | E18: In the Analysis section, you can configure the vehicles you want to compare. Use the three dropdown menus to select a vehicle’s propulsion technology, size, and manufacturing year. Also, select the year of the vehicle acquisition (acquisition year = manufacturing year if you are the first owner). Add the selection with the “+” button or remove the last vehicle added with the “–” button. A maximum of five vehicles can be compared at once. You can adjust detailed parameters below (white cells can be modified, grey cells cannot). Next, specify the country where the vehicles operate (currently limited to Switzerland) and choose the unit of comparison: Vehicle-kilometer (vehicle-km): compares vehicles per kilometer driven, normalized by their total lifetime mileage. Ton-kilometer (ton-km): compares vehicles per ton of cargo transported per kilometer, normalized by both lifetime mileage and payload. To start the calculation, click “OK” in the Analysis section.
A19: vehicle_selection2 | B19: Fahrzeugauswahl | C19: Sélection des véhicules | D19: Selezione dei veicoli | E19: Vehicle selection
A20: vehicle_analysis | B20: Analyse | C20: Analyse | D20: Analisi | E20: Analysis
A21: Use parameters | B21: Nutzungsparameter | C21: Paramètres d'utilisation | D21: Parametri di utilizzo | E21: Usage parameters
A22: country | B22: Land | C22: Pays | D22: Paese | E22: Country
A23: cycle | B23: Art des Einsatzes | C23: Type de mission | D23: Tipo di missione | E23: Type of mission
A24: lifetime kilometers | B24: Gesamtkilometerleistung | C24: Kilométrage total | D24: Chilometraggio totale | E24: Total mileage
A25: kilometers per year | B25: Jährliche Kilometerleistung | C25: Kilométrage annuel | D25: Chilometraggio annuale | E25: Annual mileage
A26: Vehicle parameters | B26: Fahrzeugparameter | C26: Paramètres du véhicule | D26: Parametri del veicolo | E26: Vehicle parameters
A27: power | B27: Leistung | C27: Puissance | D27: Potenza | E27: Power
A28: curb mass | B28: Leergewicht | C28: Poids à vide | D28: Peso a vuoto | E28: Unladen weight
A29: fuel consumption | B29: Kraftstoffverbrauch | C29: Consommation de carburant | D29: Consumo di carburante | E29: Fuel consumption
A30: hydrogen consumption | B30: Wasserstoffverbrauch | C30: Consommation d'hydrogène | D30: Consumo di idrogeno | E30: Hydrogen consumption
A31: electricity consumption | B31: Stromverbrauch | C31: Consommation d'électricité | D31: Consumo di elettricità | E31: Electricity consumption
A32: CNG consumption | B32: Erdgasverbrauch | C32: Consommation de gaz naturel | D32: Consumo di gas naturale | E32: CNG consumption
A33: payload | B33: Nutzlast | C33: Charge utile | D33: Carico utile | E33: Payload
A34: electric utility factor | B34: Elektrischer Nutzfaktor | C34: Facteur d'utilité électrique | D34: Fattore di utilità elettrica | E34: Electric utility factor
A35: target_range | B35: Reichweite | C35: Autonomie | D35: Autonomia | E35: Range
A36: battery technology | B36: Batterietechnologie | C36: Technologie de batterie | D36: Tecnologia della batteria | E36: Battery technology
A37: electric energy stored | B37: Batteriekapazität | C37: Capacité de la batterie | D37: Capacità della batteria | E37: Stored electrical energy
A38: Energy parameters | B38: Energieparameter | C38: Paramètres énergétiques | D38: Parametri energetici | E38: Energy parameters
A39: daily charger | B39: Leistung des Ladegeräts im Depot | C39: Puissance du chargeur au dépôt | D39: Potenza del caricatore al deposito | E39: Power of depot charger
A40: trucks using daily charger | B40: Anzahl der Lkw, die Ladestationen nutzen | C40: Nombre de camions utilisant le chargeur au dépôt | D40: Numero di camion che utilizzano il caricatore del deposito | E40: No. of trucks using depot charger
A41: occasional charger | B41: Leistung öffentlicher Ladegeräte | C41: Puissance du chargeur public | D41: Potenza del caricatore pubblico | E41: Power of public charger
A42: share km occasional charger | B42: Anteil der mit öffentlichen Ladegeräten zurückgelegten Kilometer | C42: Part des kilomètres parcourus à l'aide d'une borne de recharge publique | D42: Quota di km utilizzando caricatori pubblici | E42: Public charger km share
A43: fuel cost | B43: Kraftstoffkosten (Diesel) | C43: Coût du carburant (diesel) | D43: Costo del carburante (diesel) | E43: Fuel cost (diesel)
A44: GNC cost | B44: Kraftstoffkosten (Erdgas) | C44: Coût du carburant (gaz naturel) | D44: Costo del carburante (gas naturale) | E44: Fuel cost (natural gas)
A45: hydrogen cost | B45: Wasserstoffkosten | C45: Coût de l'hydrogène | D45: Costo dell'idrogeno | E45: Hydrogen cost
A46: electricity cost (daily charger) | B46: Stromkosten (LKW-Depot-Ladegerät) | C46: Coût de l'électricité (chargeur au dépôt) | D46: Costo dell'elettricità (Caricatore al terminal dei camion) | E46: Electricity cost (depot charger)
A47: electricity cost (occasional charger) | B47: Stromkosten (Öffentliche Ladestation) | C47: Coût de l'électricité (chargeur public) | D47: Costo dell'elettricità (caricatore occasionale) | E47: Electricity cost (public charger)
A48: Economic parameters | B48: Wirtschaftliche Parameter | C48: Paramètres économiques | D48: Parametri economici | E48: Economic parameters
A49: Interest rate | B49: Diskontsatz | C49: Taux d'actualisation | D49: Tasso di sconto | E49: Discount rate
A50: current_owner_first_year | B50: Erwerbsjahr | C50: Année d'acquisition | D50: Anno di acquisizione | E50: Acquisition year
A51: Impact assessment parameters | B51: Parameter zur Wirkungsbewertung | C51: Paramètres d'évaluation d'impact | D51: Parametri di valutazione dell'impatto | E51: Impact assessment parameters
A52: func_unit | B52: Funktionseinheit | C52: Unité fonctionnelle | D52: Unità funzionale | E52: Functional unit
A53: scenario | B53: Szenario | C53: Scénario | D53: Scenario | E53: Scenario
A54: method | B54: Methode | C54: Méthode | D54: Metodo | E54: Method
A55: indicator | B55: Indikator | C55: Indicateur | D55: Indicatore | E55: Indicator
A56: selection | B56: Auswahl | C56: sélection | D56: selezione | E56: selection
A57: km over lifetime | B57: km | C57: km | D57: km | E57: km
A58: km/year | B58: km/Jahr | C58: km/an | D58: km/anno | E58: km/year
A59: kW | B59: kW | C59: kW | D59: kW | E59: kW
A60: kg | B60: kg | C60: kg | D60: kg | E60: kg
A61: l/100 km | B61: l/100 km | C61: l/100 km | D61: l/100 km | E61: l/100 km
A62: kWh/100 km | B62: kWh/100 km | C62: kWh/100 km | D62: kWh/100 km | E62: kWh/100 km
A63: kg/100 km | B63: kg/100 km | C63: kg/100 km | D63: kg/100 km | E63: kg/100 km
A64: % km electric mode | B64: % km im Elektromodus | C64: % km en mode électrique | D64: % km in modalità elettrica | E64: % km in electric mode
A65: km | B65: km | C65: km | D65: km | E65: km
A66: kWh | B66: kWh | C66: kWh | D66: kWh | E66: kWh
A67: unit | B67: Einheit | C67: unité | D67: unità | E67: unit
A68: % lifetime kilometers | B68: % km | C68: % km | D68: % km | E68: % km
A69: % | B69: % | C69: % | D69: % | E69: %
A70: CHF/l | B70: CHF/l | C70: CHF/l | D70: CHF/l | E70: CHF/l
A71: CHF/kWh | B71: CHF/kWh | C71: CHF/kWh | D71: CHF/kWh | E71: CHF/kWh
A72: CHF/kg | B72: CHF/kg | C72: CHF/kg | D72: CHF/kg | E72: CHF/kg
A73: max_veh_limit | B73: Sie haben bereits 5 Fahrzeuge hinzugefügt. | C73: Vous avez déjà ajouté 5 véhicules. | D73: Hai già aggiunto 5 veicoli. | E73: You've already added 5 vehicles.
A74: missing_selection | B74: Bitte wählen Sie einen Motor, eine Kategorie und ein Baujahr aus. | C74: Veuillez sélectionner une motorisation, une catégorie et une année. | D74: Selezionare una motorizzazione, una categoria e un anno. | E74: Please select an engine type, category and year.
A75: no_more_vehicles | B75: Es sind keine Fahrzeuge mehr zu entfernen. | C75: Il n'y a plus de véhicules à enlever. | D75: Non ci sono più veicoli da rimuovere. | E75: No vehicles left to remove.
A76: vkm | B76: Fahrzeugkilometer | C76: véhicule-km | D76: veicolo-km | E76: vehicle-km
A77: tkm | B77: Tonnenkilometer | C77: tonne-km | D77: tonnellata-km | E77: ton-km
A78: CO2/UBP 2021/CED | B78: CO2-Bilanz – Betriebskosten | C78: Empreinte carbone - Coûts kilometriques | D78: Impronta di carbonio - Costi di proprietà | E78: Carbon footprint - Ownership costs
A79: Urban delivery | B79: Stadtzustellung | C79: Livraison urbaine | D79: Consegna urbana | E79: Urban delivery
A80: Regional delivery | B80: Regionalverkehr | C80: Transport régional | D80: Trasporto regionale | E80: Regional haul
A81: Long haul | B81: Fernverkehr | C81: Transport longue distance | D81: Trasporto a lunga distanza | E81: Long haul
A82: Business As Usual | B82: Business As Usual | C82: Business As Usual | D82: Business As Usual | E82: Business As Usual
A83: unavailable_vehicle | B83: Fahrzeug nicht verfügbar | C83: Véhicule indisponible | D83: Veicolo non disponibile | E83: Vehicle not available
A84: grid | B84: Netzstrom | C84: Électricité du réseau | D84: Elettricità di rete | E84: Grid electricity
A85: EU grid | B85: Europäischer Stromnetzstrom | C85: Électricité du réseau européen | D85: Rete elettrica europea | E85: European grid electricity
A86: solar PV | B86: Solarenergie | C86: Solaire photovoltaïque | D86: Solare fotovoltaico | E86: Solar PV
A87: hydro | B87: Wasserkraft | C87: Hydroélectrique | D87: Idroelettrico | E87: Hydro
A88: wind | B88: Windkraft | C88: Éolien | D88: Eolico | E88: Wind
A89: nuclear | B89: Kernkraft | C89: Nucléaire | D89: Nucleare | E89: Nuclear
A90: 10_own_90_grid | B90: 10 % Solar-PV vor Ort – 90 % Netzstrom | C90: 10 % solaire photovoltaïque sur site - 90 % réseau | D90: 10% fotovoltaico in loco - 90% rete | E90: 10% on-site Solar PV - 90% grid
A91: 20_own_80_grid | B91: 20 % Solar-PV vor Ort – 80 % Netzstrom | C91: 20 % solaire photovoltaïque sur site - 80 % réseau | D91: 20% fotovoltaico in loco - 80% rete | E91: 20% on-site Solar PV - 80% grid
A92: 30_own_70_grid | B92: 30 % Solar-PV vor Ort – 70 % Netzstrom | C92: 30 % solaire photovoltaïque sur site - 70 % réseau | D92: 30% fotovoltaico in loco - 70% rete | E92: 30% on-site Solar PV - 70% grid
A93: 40_own_60_grid | B93: 40 % Solar-PV vor Ort – 60 % Netzstrom | C93: 40 % solaire photovoltaïque sur site - 60 % réseau | D93: 40% fotovoltaico in loco - 60% rete | E93: 40% on-site Solar PV - 60% grid
A94: 50_own_50_grid | B94: 50 % Solar-PV vor Ort – 50 % Netzstrom | C94: 50 % solaire photovoltaïque sur site - 50 % réseau | D94: 50% fotovoltaico in loco - 50% rete | E94: 50% on-site Solar PV - 50% grid
A95: 60_own_40_grid | B95: 60 % Solarstrom vor Ort – 40 % Stromnetz | C95: 60 % solaire photovoltaïque sur site - 40 % réseau | D95: 60% energia solare fotovoltaica in loco - 40% rete elettrica | E95: 60% on-site Solar PV - 40% grid
A96: 70_own_30_grid | B96: 70 % Solarstrom vor Ort – 30 % Stromnetz | C96: 70 % solaire photovoltaïque sur site - 30 % réseau | D96: 70% energia solare fotovoltaica in loco - 30% rete elettrica | E96: 70% on-site Solar PV - 30% grid
A97: 80_own_20_grid | B97: 80 % Solarstrom vor Ort – 20 % Stromnetz | C97: 80 % solaire photovoltaïque sur site - 20 % réseau | D97: 80% energia solare fotovoltaica in loco - 20% rete elettrica | E97: 80% on-site Solar PV - 20% grid
A98: 90_own_10_grid | B98: 90 % Solarstrom vor Ort – 10 % Stromnetz | C98: 90 % solaire photovoltaïque sur site - 10 % réseau | D98: 90% energia solare fotovoltaica in loco - 10% rete elettrica | E98: 90% on-site Solar PV - 10% grid
A99: electricity | B99: Strom für LKW-Depot-Ladegerät | C99: Électricité pour chargeur au dépôt | D99: Strom für LKW-Depot-Ladegerät | E99: Electricity for depot charger
A100: glider | B100: Fahrgestell | C100: Châssis | D100: Telaio | E100: Chassis
A101: powertrain | B101: Antriebsstrang | C101: Groupe motopropulseur | D101: Gruppo motopropulsore | E101: Powertrain
A102: energy storage | B102: Energiespeicher | C102: Stockage d'énergie | D102: Accumulo di energia | E102: Energy storage
A103: energy chain | B103: Energie-Lieferkette | C103: Approvisionnement en énergie | D103: Fornitura di energia | E103: Energy supply
A104: maintenance | B104: Wartung | C104: Maintenance | D104: Manutenzione | E104: Maintenance
A105: EoL | B105: End-of-life | C105: Fin de vie | D105: Fine vita (EoL) | E105: End-of-life
A106: road | B106: Strasseninfrastruktur | C106: Infrastructure routière | D106: Infrastrutture stradali | E106: Road infrastructure
A107: direct | B107: direkte Emissionen | C107: Emissions directes | D107: Emissioni dirette | E107: Direct emissions
A108: charger | B108: Ladegerät | C108: Chargeur | D108: Caricabatterie | E108: Charger
A109: vehicle manufacture | B109: Fahrzeugherstellung | C109: Fabrication du véhicule | D109: Produzione di veicoli | E109: Vehicle manufacture
A110: climate change | B110: Treibhauspotenzial (100 Jahre) | C110: Potentiel de réchauffement global (100 ans) | D110: Potenziale di riscaldamento globale (100 anni) | E110: Global Warming Potential (100y)
A111: battery lifetime replacement | B111: Batteriewechsel | C111: Remplacement de la batterie | D111: Sostituzione della batteria | E111: Battery replacement
A112: hydrogen | B112: Wasserstoff | C112: hydrogène | D112: idrogeno | E112: Hydrogen
A113: hydrogen - electrolysis - PEM | B113: Wasserstoff (Elektrizität), Netzmittelwert | C113: Hydrogène (électrique), moyenne du réseau | D113: Idrogeno (elettricità), media di rete | E113: Hydrogen (elec.), grid average
A114: hydrogen - electrolysis - PEM (renewables) | B114: Wasserstoff (Elektrizität), erneuerbare Energie | C114: Hydrogène (électrique), énergie renouvelable | D114: Idrogeno (elettricità), energia rinnovabile | E114: Hydrogen (elec.), renewable energy
A115: hydrogen - smr - natural gas | B115: Wasserstoff (Erdgas) | C115: Hydrogène (gaz naturel) | D115: Idrogeno (gas naturale) | E115: Hydrogen (nat. gas)
A116: I_dont_know | B116: Ich weiss es nicht. | C116: Je ne le connais pas | D116: Non lo so. | E116: I do not know it
A117: vehicle purchase | B117: Fahrzeugkauf | C117: Achat d'un véhicule | D117: Acquisto veicolo | E117: Vehicle purchase
A118: yearly insurance | B118: Jährliche Versicherung | C118: Assurance annuelle | D118: Assicurazione annuale | E118: Yearly insurance
A119: CHF | B119: CHF | C119: CHF | D119: CHF | E119: CHF
A120: CHF/y | B120: CHF/Jahr | C120: CHF/an | D120: CHF/anno | E120: CHF/year
A121: maintenance cost | B121: Wartungskosten | C121: Coût d'entretien | D121: Costo di manutenzione | E121: Maintenance cost
A122: heavy vehicle fee | B122: Schwerfahrzeuggebühr | C122: Taxe sur les véhicules lourds | D122: Tassa sui veicoli pesanti | E122: Heavy vehicle fee
A123: road tax | B123: Kantonale Fahrzeugsteuer | C123: Taxe cantonale sur les véhicules | D123: Tassa cantonale sui veicoli | E123: Cantonal Vehicle tax
A124: CHF/y/km | B124: CHF/Jahr/km | C124: CHF/an/km | D124: CHF/anno/km | E124: CHF/year/km
A125: canton registration | B125: Kanton der Registrierung | C125: Canton d'immatriculation | D125: Cantone di registrazione | E125: Canton of registration
A126: Zurich | B126: Zürich | C126: Zurich | D126: Zurigo | E126: Zurich
A127: Bern | B127: Bern | C127: Berne | D127: Berna | E127: Bern
A128: Lucerne | B128: Luzern | C128: Lucerne | D128: Lucerna | E128: Lucerne
A129: Uri | B129: Uri | C129: Uri | D129: Uri | E129: Uri
A130: Schwyz | B130: Schwyz | C130: Schwytz | D130: Svitto | E130: Schwyz
A131: Obwalden | B131: Obwalden | C131: Obwald | D131: Obvaldo | E131: Obwalden
A132: Nidwalden | B132: Nidwalden | C132: Nidwald | D132: Nidvaldo | E132: Nidwalden
A133: Glarus | B133: Glarus | C133: Glaris | D133: Glarona | E133: Glarus
A134: Zug | B134: Zug | C134: Zoug | D134: Zugo | E134: Zug
A135: Fribourg | B135: Freiburg | C135: Fribourg | D135: Friburgo | E135: Fribourg
A136: Solothurn | B136: Solothurn | C136: Soleure | D136: Soletta | E136: Solothurn
A137: Basel-Stadt | B137: Basel-Stadt | C137: Bâle-Ville | D137: Basilea Città | E137: Basel-City
A138: Basel-Landschaft | B138: Basel-Landschaft | C138: Bâle-Campagne | D138: Basilea Campagna | E138: Basel-Country
A139: Schaffhausen | B139: Schaffhausen | C139: Schaffhouse | D139: Sciaffusa | E139: Schaffhausen
A140: Appenzell Ausserrhoden | B140: Appenzell Ausserrhoden | C140: Appenzell Rhodes-Extérieures | D140: Appenzello Esterno | E140: Appenzell Ausserrhoden
A141: Appenzell Innerrhoden | B141: Appenzell Innerrhoden | C141: Appenzell Rhodes-Intérieures | D141: Appenzello Interno | E141: Appenzell Innerrhoden
A142: St. Gallen | B142: St. Gallen | C142: Saint-Gall | D142: San Gallo | E142: St. Gallen
A143: Grisons | B143: Graubünden | C143: Grisons | D143: Grigioni | E143: Grisons
A144: Aargau | B144: Aargau | C144: Argovie | D144: Argovia | E144: Aargau
A145: Thurgau | B145: Thurgau | C145: Thurgovie | D145: Turgovia | E145: Thurgau
A146: Ticino | B146: Tessin | C146: Tessin | D146: Ticino | E146: Ticino
A147: Vaud | B147: Waadt | C147: Vaud | D147: Vaud | E147: Vaud
A148: Valais | B148: Wallis | C148: Valais | D148: Vallese | E148: Valais
A149: Neuchâtel | B149: Neuenburg | C149: Neuchâtel | D149: Neuchâtel | E149: Neuchâtel
A150: Geneva | B150: Genf | C150: Genève | D150: Ginevra | E150: Geneva
A151: Jura | B151: Jura | C151: Jura | D151: Giura | E151: Jura
A152: amortised purchase cost | B152: Anschaffungskosten | C152: Coût d'achat | D152: Costo di acquisto | E152: Purchase cost
A153: energy cost | B153: Energiekosten | C153: Coût énergétique | D153: Costo energetico | E153: Energy cost
A154: maintenance cost | B154: Wartungskosten | C154: Coût d'entretien | D154: Costo di manutenzione | E154: Maintenance cost
A155: amortised component replacement cost | B155: Kosten für den Austausch von Komponenten | C155: Coût de remplacement des composants | D155: Costo di sostituzione dei componenti | E155: Component replacement cost
A156: cost | B156: Betriebskosten | C156: Coûts kilométriques | D156: Costi di proprietà | E156: Ownership costs
A157: fuel cell lifetime replacement | B157: Ersatz des Brennstoffzellenstapels | C157: Remplacement de la pile à combustible | D157: Sostituzione dello stack di celle a combustibile | E157: Fuel cell stack replacement
A158: comment_cycle | B158: Art der Mission, für die der Lkw ausgelegt sein soll. Beeinflusst die empfohlene Reichweite, die jährliche Kilometerleistung und die Lebensdauer des Fahrzeugs. | C158: Type de mission pour laquelle le camion doit être conçu. Influence l'autonomie suggérée, le kilométrage annuel et la durée de vie du véhicule. | D158: Tipo di missione per cui il camion dovrebbe essere progettato. Influisce sull'autonomia suggerita, sul chilometraggio annuale e sulla durata di vita del veicolo. | E158: Type of mission the truck should be designed to achieved. Influences the suggested range autonomy, annual milage and lifetime of the vehicle.
A159: comment_lifetime kilometers | B159: Die vom Lkw während seiner technischen Lebensdauer (einschliesslich aller Eigentümer) zurückgelegten Kilometer. Für die Kostenberechnung werden nur die zwischen Anschaffung und Die vom Lkw während seiner technischen Lebensdauer (einschliesslich aller Eigentümer) zurückgelegten Kilometer. Für die Kostenberechnung werden nur die zwischen Anschaffung und Wiederverkauf zurückgelegten Kilometer berücksichtigt. | C159: Kilomètres parcourus par le camion au cours de sa durée de vie technique (tous propriétaires confondus). Pour le calcul des coûts, seuls les kilomètres parcourus entre l'acquisition et la revente sont pris en compte. | D159: I chilometri percorsi dal camion durante la sua vita tecnica (compresi tutti i proprietari). Ai fini del calcolo dei costi, vengono considerati solo i chilometri percorsi tra l'acquisto e la rivendita. | E159: The kilometers driven by the truck over its technical lifetime (includes all owners). For cost calculations, only the kilometers driven between acquisition and resale are considered.
A160: comment_kilometers per year | B160: Die Kilometer, die der Lkw jährlich zurücklegt. | C160: Kilométrage parcouru par le camion chaque année. | D160: I chilometri percorsi dal camion ogni anno. | E160: The kilometers driven by the truck annually.
A161: comment_power | B161: Die maximale Motorleistung des Fahrzeugs. | C161: Puissance maximale du moteur du véhicule. | D161: La potenza massima del motore del veicolo. | E161: The peak engine power of the vehicle.
A162: comment_payload | B162: Die durchschnittliche Ladungsmasse in Kilogramm. | C162: La masse moyenne du chargement, en kilogrammes. | D162: La massa media del carico, in chilogrammi. | E162: The average cargo mass, in kilograms.
A163: comment_fuel consumption | B163: Der Kraftstoffverbrauch in Litern pro 100 km. | C163: La consommation de carburant, en litres aux 100 km. | D163: Il consumo di carburante, in litri per 100 km. | E163: The fuel consumption, in liters per 100 km.
A164: comment_electricity consumption | B164: Der Stromverbrauch in kWh pro 100 km, ohne Ladungsverluste. Es wird ein Ladungsverlust von 10 % angenommen. | C164: La consommation d'électricité, en kWh aux 100 km, hors pertes de charge. Une perte de charge de 10 % est supposée. | D164: Il consumo di elettricità, in kWh per 100 km, escluse le perdite di carica. Si ipotizza una perdita di carica del 10%. | E164: The electricity consumption, in kWh per 100 km, excluding charging losses. A 10% charging loss is assumed.
A165: comment_hydrogen consumption | B165: Der Wasserstoffverbrauch in kg pro 100 km. | C165: La consommation d'hydrogène, en kg aux 100 km. | D165: Il consumo di idrogeno, in kg per 100 km. | E165: The hydrogen consumption, in kg per 100 km.
A166: comment_CNG consumption | B166: Der Erdgasverbrauch in kg pro 100 km. | C166: La consommation de gaz naturel, en kg aux 100 km. | D166: Il consumo di gas naturale, in kg per 100 km. | E166: The natural gas consumption, in kg per 100 km.
A167: comment_battery technology | B167: Batterietechnologie. Derzeit sind die meisten NMC-622 oder NMC-811. | C167: La technologie des batteries. Actuellement, la plupart sont des NMC-622 ou NMC-811. | D167: Tecnologia delle batterie. Attualmente, la maggior parte sono NMC-622 o NMC-811. | E167: Battery technology. Currently, most are NMC-622 or NMC-811.
A168: comment_electric energy stored | B168: Bruttospeicherkapazität. Zur Schätzung der Reichweite wird eine maximale Entladetiefe von 80 % angenommen. | C168: La capacité de stockage brute. Une profondeur de décharge maximale de 80 % est prise en compte pour estimer l'autonomie. | D168: Capacità di stoccaggio lorda. Per stimare l'autonomia si considera una profondità di scarica massima dell'80%. | E168: Gross storage capacity. A maximum depth of discharge of 80% is considered to estimate the range autonomy.
A169: comment_battery lifetime replacement | B169: Anzahl der Auswechslungen während der Lebensdauer des Fahrzeugs. | C169: Le nombre de remplacements au cours de la durée de vie du véhicule. | D169: Numero di sostituzioni nel corso della vita utile del veicolo. | E169: Number of replacement over the vehicle's lifetime.
A170: comment_fuel cell lifetime replacement | B170: Anzahl der Auswechslungen während der Lebensdauer des Fahrzeugs. | C170: Le nombre de remplacements au cours de la durée de vie du véhicule. | D170: Numero di sostituzioni nel corso della vita utile del veicolo. | E170: Number of replacement over the vehicle's lifetime.
A171: comment_electricity | B171: Art des zum Laden der Batterie verwendeten Stroms. | C171: Type d'électricité utilisé pour recharger la batterie. | D171: Tipo di elettricità utilizzata per caricare la batteria. | E171: Type of electricity used to charge the batery.
A172: comment_daily charger | B172: Leistung des täglichen Ladegeräts (nur BEV-Lkw). | C172: Puissance de sortie du chargeur quotidien (camions BEV uniquement). | D172: Potenza erogata dal caricatore giornaliero (solo camion BEV). | E172: Power output of the depot charger (BEV trucks only).
A173: comment_trucks using daily charger | B173: Anzahl der vom täglichen Ladegerät versorgten Lkw. | C173: Nombre de camions desservis par le chargeur quotidien. | D173: Numero di camion serviti dal caricatore giornaliero. | E173: Number of trucks served by the depot charger.
A174: comment_occasional charger | B174: Leistung des gelegentlichen Ladegeräts (nur BEV-Lkw). | C174: Puissance de sortie du chargeur occasionnel (camions BEV uniquement). | D174: Potenza erogata dal caricatore occasionale (solo camion BEV). | E174: Power output of the occasional charger (BEV trucks only).
A175: comment_share km occasional charger | B175: Anteil der mit dem gelegentlichen Ladegerät zurückgelegten Kilometer. | C175: Part des kilomètres parcourus grâce au chargeur occasionnel. | D175: Quota di chilometri alimentati dal caricatore occasionale. | E175: Share of kilometers powered by the occasional charger.
A176: comment_hydrogen | B176: Art des Wasserstoffs. | C176: Type d'hydrogène. | D176: Tipo di idrogeno. | E176: Type of hydrogen.
A177: comment_canton
A178: comment_vehicle purchase | B178: Kaufpreis des Fahrzeugs ohne Mehrwertsteuer. Wird nicht angegeben, erfolgt eine Schätzung anhand des Modells. | C178: Prix d'achat du véhicule, hors TVA. Il est estimé par le modèle s'il n'est pas précisé. | D178: Prezzo di acquisto del veicolo, IVA esclusa. Se non specificato, viene stimato in base al modello. | E178: Vehicle purchase price, excluding VAT. It is estimated by the model if left unspecified.
A179: comment_yearly insurance | B179: Jährliche Versicherungskosten. Wird nicht angegeben, erfolgt eine Schätzung anhand des Modells. | C179: Coût annuel de l'assurance. Il est estimé par le modèle s'il n'est pas précisé. | D179: Costo annuale dell'assicurazione. Se non specificato, viene stimato in base al modello. | E179: Yearly insurance cost. It is estimated by the model if left unspecified.
A180: comment_maintenance cost | B180: Jährliche Wartungskosten ohne aussergewöhnlichen Austausch von Komponenten. Wird nicht angegeben, erfolgt eine Schätzung anhand des Modells. | C180: Coût annuel de l'entretien, hors remplacement de composants exceptionnels. Il est estimé par le modèle s'il n'est pas précisé. | D180: Costo annuale di manutenzione, esclusa la sostituzione di componenti eccezionali. Se non specificato, viene stimato in base al modello. | E180: Yearly maintenance cost, excluding exceptional components replacement. It is estimated by the model if left unspecified.
A181: comment_interest rate | B181: Der Diskontsatz, der verwendet wird, um Kosten, die zu unterschiedlichen Zeitpunkten anfallen, in äquivalente Jahres- oder Kilometerwerte umzurechnen. | C181: Le taux d'actualisation utilisé pour convertir les coûts survenant à différents moments en valeurs annuelles ou par kilomètre équivalentes. | D181: Il tasso di sconto utilizzato per convertire i costi sostenuti in momenti diversi in valori equivalenti annuali o per chilometro. | E181: The discount rate used to translate costs occurring at different points in time into equivalent annual or per-kilometer values
A182: comment_charger cost per kW | B182: Die physische DC-Schnellladestation selbst kostet je nach Nennleistung etwa 230 bis 500 CHF pro kW. | C182: Le chargeur rapide CC physique lui-même coûte entre 230 et 500 CHF par kW, selon la puissance nominale. | D182: Il caricatore rapido fisico CC costa circa 230-500 CHF per kW a seconda della potenza nominale. | E182: The physical DC fast charger unit itself, costing about CHF 230–500 per kW depending on power rating.
A183: comment_charger installation cost per kW | B183: Standortvorbereitung, Verkabelung, Fundamente und Arbeitsaufwand, in der Regel 120 bis 260 CHF pro kW. | C183: Préparation du site, câblage, fondations et main-d'œuvre, généralement entre 120 et 260 CHF par kW. | D183: Preparazione del sito, cablaggio, fondazioni e manodopera, solitamente 120-260 CHF per kW. | E183: Site preparation, cabling, foundations, and labor, usually CHF 120–260 per kW.
A184: comment_charger connection cost per kW | B184: Anschluss an das Stromnetz und Aufrüstung von Transformatoren oder Zuleitungen, wobei die Kosten bei vorhandener Reservekapazität vernachlässigbar sind, bei neuen Mittelspannungsanschlüssen jedoch bis zu 500 CHF pro kW oder mehr betragen können. | C184: Raccordement au réseau électrique et mise à niveau des transformateurs ou des alimentations, allant d'un coût négligeable s'il existe une capacité disponible à environ 500 CHF par kW ou plus pour les nouveaux raccordements moyenne tension. | D184: Allacciamento alla rete elettrica e aggiornamenti del trasformatore o dell'alimentatore, che vanno da un costo trascurabile se esiste capacità di riserva fino a circa 500 CHF per kW o più per i nuovi allacciamenti a media tensione. | E184: Utility hookup and transformer or feeder upgrades, ranging from negligible if spare capacity exists up to ~CHF 500 per kW or more for new medium-voltage connections.
A185: comment_grid capacity reserve cost per kW | B185: Laufende Netznutzungsgebühren für die Reservierung von Netzkapazität, in der Regel 120 bis 220 CHF pro kW und Jahr. | C185: Frais de demande de service publics pour la réservation de la capacité du réseau, généralement entre 120 et 220 CHF par kW et par an. | D185: Costi di domanda continua per la prenotazione della capacità di rete, comunemente 120-220 CHF per kW all'anno. | E185: Ongoing utility demand charges for reserving grid capacity, commonly CHF 120–220 per kW per year
A186: comment_fuel cost
A187: comment_hydrogen cost
A188: comment_CNG cost
A189: comment_electricity cost (daily charger) | B189: Stromkosten an der Ladestation. Infrastrukturkosten und Mehrwertsteuer müssen ausgeschlossen werden. | C189: Coût de l'électricité au dépôt. Ne doit pas inclure les coûts d'infrastructure et la TVA. | D189: Costo dell'elettricità presso il deposito. Esclude i costi infrastrutturali e l'IVA. | E189: Cost of electricity at the depot charge. Must exclude infrastructure costs and VAT.
A190: comment_electricity cost (occasional charger) | B190: Stromkosten an der öffentlichen Ladestation. Infrastrukturkosten und Verbrauchsteuern sind enthalten, Mehrwertsteuer ist ausgeschlossen. | C190: Coût de l'électricité à la borne publique. Comprend les coûts d'infrastructure et les droits d'accise, mais exclut la TVA. | D190: Costo dell'elettricità presso il caricatore pubblico. Include i costi infrastrutturali e le accise, ma esclude l'IVA. | E190: Cost of electricity at the public charger. Includes infrastructure costs and excise duties but excludes VAT.
A191: resale_year | B191: Jahr des Wiederverkaufs | C191: Année de revente | D191: Anno di rivendita | E191: Year of resale
A192: residual value share | B192: Restwertanteil | C192: Part de la valeur résiduelle | D192: Quota di valore residuo | E192: Residual value share
A193: comment_resale_year | B193: Jahr des Eigentums, in dem der Lkw verkauft wird (d. h. Ende der ersten Nutzungsdauer). | C193: Année de propriété au cours de laquelle le camion est vendu (c'est-à-dire à la fin de la première période d'utilisation). | D193: Anno di proprietà in cui il camion viene venduto (ovvero alla fine del primo periodo di utilizzo). | E193: Year of ownership at which the truck is sold (i.e. end of first-use period).
A194: comment_residual value share | B194: Anteil der ursprünglichen Anschaffungskosten, der beim Wiederverkauf voraussichtlich wieder hereingeholt werden kann. | C194: Fraction du coût d'achat initial qui devrait être récupérée lors de la revente. | D194: Quota del costo di acquisto originale che si prevede di recuperare al momento della rivendita. | E194: Fraction of the original purchase cost expected to be recovered at resale.
A195: share tolled roads | B195: Anteil der auf mautpflichtigen Strassen ausserhalb der Schweiz zurückgelegten Kilometer | C195: Part du kilométrage parcouru sur les routes à péage hors de Suisse | D195: Quota di km percorsi su strade a pedaggio fuori dalla Svizzera | E195: Share of km driven on tolled roads outside Switzerland
A196: comment_share tolled roads | B196: Dient zur Berechnung der Mautgebühren beim Betrieb des Lkw ausserhalb der Schweiz. | C196: Utilisé pour calculer les frais de péage lors de l'utilisation du camion en dehors de la Suisse. | D196: Utilizzato per calcolare i pedaggi quando si guida il camion al di fuori della Svizzera. | E196: Used to calculate toll charges when operating the truck outside of Switzerland.
A197: description_spider_chart | B197: Bietet einen multikriteriellen Vergleich von Fahrzeugen anhand von vier normalisierten Indikatoren: Klimaauswirkungen pro Fahrzeugkilometer oder Tonnenkilometer, Kosten pro Fahrzeugkilometer oder Tonnenkilometer (amortisiert), Reichweite und verfügbare Nutzlast. Die Kostenachse spiegelt dieselbe amortisierte Kostenbasis wider, die auch in der untenstehenden gestapelten Kostenaufstellung verwendet wird. | C197: Fournit une comparaison multicritères des véhicules à partir de quatre indicateurs normalisés : impact climatique par véhicule-km ou tonne-km, coût par véhicule-km ou tonne-km (amorti), autonomie et charge utile disponible. L'axe des coûts reflète la même base de coûts amortis que celle utilisée dans le graphique des coûts cumulés ci-dessous. | D197: Fornisce un confronto multicriterio dei veicoli sulla base di quattro indicatori normalizzati: impatto climatico per veicolo-km o tonnellata-km, costo per veicolo-km o tonnellata-km (ammortizzato), autonomia e carico utile disponibile. L'asse dei costi riflette la stessa base di costo ammortizzato utilizzata nel grafico dei costi cumulativi riportato di seguito. | E197: Provides a multi-criteria comparison of vehicles across four normalized indicators: climate impacts per vehicle-km or ton-km, cost per vehicle-km or ton-km (amortized), range, and available payload. The cost axis reflects the same amortized cost basis used in the stacked cost plot below.
A198: description_bar_climate | B198: Zeigt die über die gesamte Lebensdauer gemittelten Treibhausgasemissionen pro Fahrzeugkilometer oder Tonnenkilometer, aufgeschlüsselt nach Lebenszyklusphasen (Herstellung und Ende der Lebensdauer, Energiekette wie Kraftstoff- und Stromversorgung, Wartung, Strasseninfrastruktur, direkte Abgase/Nicht-Abgase). Die Auswirkungen auf das Klima werden in der Zukunft nicht diskontiert. | C198: Affiche les émissions moyennes de GES sur la durée de vie par véhicule-km ou tonne-km, ventilées par étape du cycle de vie (fabrication et fin de vie, chaîne énergétique, telle que l'approvisionnement en carburant et en électricité , maintenance (véhicule et route), infrastructure routière, émissions directes/non directes). Les impacts climatiques ne sont pas actualisés dans le futur. | D198: Mostra le emissioni medie di gas serra per veicolo-km o tonnellata-km, suddivise per fase del ciclo di vita (produzione e fine vita, catena energetica, come fornitura di carburante ed elettricità, manutenzione, infrastrutture stradali, scarichi diretti/non diretti). Gli impatti climatici non sono scontati in futuro. | E198: Displays the lifetime-averaged GHG emissions per vehicle-km or ton-km, broken down by life cycle stage (manufacture & end-of-life, energy chain (such as fuel and electricity supply), charger, maintenance, road infrastructure, direct exhaust/non-exhaust). Climate impacts are not discounted in the future.
A199: description_cumulative_climate | B199: Zeigt die kumulativen Klimaauswirkungen (kg CO₂-Äquivalent) im Vergleich zu den gefahrenen Kilometern, beginnend bei 0 km mit den Treibhausgasemissionen, die der Fahrzeugherstellung entsprechen, und steigend mit jedem km entsprechend den Emissionen pro Fahrzeugkilometer oder Tonnenkilometer jedes Fahrzeugs, einschliesslich der Treibhausgasemissionen aus Energieversorgung, Abgasemissionen, Strasseninfrastruktur und Wartung. Dieses Diagramm zeigt, ob ein sauberer Betrieb letztendlich die höheren Emissionen aufwiegt. | C199: Affiche les impacts climatiques cumulés (kg CO₂-eq) par rapport au nombre de kilomètres parcourus, en commençant à 0 km avec les émissions de GES correspondant à la fabrication du véhicule, du chargeur électrique (si pertinent) et en augmentant à chaque km en fonction des émissions par véhicule-km ou tonne-km de chaque véhicule, afin d'inclure les émissions de GES provenant de l'approvisionnement en énergie, des émissions d'échappement, des infrastructures routières et de l'entretien. Ce graphique met en évidence si un fonctionnement plus propre l'emporte finalement sur des émissions intrinsèques plus élevées. | D199: Mostra gli impatti climatici cumulativi (kg CO₂-eq) rispetto ai chilometri percorsi, partendo da 0 km con le emissioni di gas serra corrispondenti alla produzione del veicolo e aumentando con ogni km in base alle emissioni per veicolo-km o tonnellata-km di ciascun veicolo, per includere le emissioni di gas serra derivanti dalla fornitura di energia, dalle emissioni di scarico, dalle infrastrutture stradali e dalla manutenzione. Questo grafico evidenzia se un funzionamento più pulito alla fine supera le emissioni incorporate più elevate. | E199: Shows the cumulative climate impacts (kg CO₂-eq) vs. kilometers driven, starting at 0 km with the GHG emissions corresponding to the vehicle manufacture and the charger if applicable, and rising with each km according to the per vehicle-km or ton-km emissions of each vehicle, to include GHG emissions from energy supply, exhaust emissions, road infrastructure and maintenance. This plot highlights whether cleaner operation eventually outweighs higher embodied emissions.
A200: description_bar_costs | B200: Zeigt die Aufschlüsselung der über die Lebensdauer gemittelten Kosten pro Fahrzeugkilometer oder Tonnenkilometer. Die Vorlaufkosten (Kauf, Austausch von Komponenten, Infrastruktur usw.) werden über die Lebensdauer unter Verwendung des Diskontsatzes amortisiert, während die nutzungsabhängigen Kosten (Energie, kantonale Fahrzeugsteuern, Leistungsabhängige Schwerverkehrsabgabe (LSVA), Mautgebühren, Versicherung, Wartung) pro Kilometer bleiben. | C200: Montre la répartition des coûts moyens sur la durée de vie par km parcouru ou par tonne-km. Les coûts initiaux (achat, remplacement de composants, infrastructure, etc.) sont amortis sur la durée de vie à l'aide du taux d'actualisation, tandis que les coûts liés à l'utilisation (énergie, taxes cantonales sur les véhicules, redevance sur le trafic des poids lourds liée aux prestations (RPLP), péages, assurance, entretien) restent par km. | D200: Mostra la ripartizione dei costi medi per km o tonnellata-km per tutta la durata di vita del veicolo. I costi iniziali (acquisto, sostituzione di componenti, infrastrutture, ecc.) sono ammortizzati per tutta la durata di vita utilizzando il tasso di sconto, mentre i costi basati sull'utilizzo (energia, tasse cantonali sui veicoli, Leistungsabhängige Schwerverkehrsabgabe (LSVA), pedaggi, assicurazione, manutenzione) rimangono per km. | E200: Shows the breakdown of lifetime-averaged costs per vehicle-km or ton-km. Upfront costs (purchase, component replacements, infrastructure, etc.) are amortized over the lifetime using the discount rate, while usage-based costs (energy, cantonal vehicle taxes, Leistungsabhängige Schwerverkehrsabgabe (LSVA), tolls, insurance, maintenance) remain per-km.
... 36 more rows

Sheet default parameters (hidden)
A1: powertrain | B1: size | C1: year | D1: lifetime_years (urban delivery) | E1: lifetime kilometers (urban delivery) | F1: kilometers per year (urban delivery) | G1: lifetime_years (urban delivery) | H1: lifetime kilometers (regional delivery) | I1: kilometers per year (regional delivery) | J1: lifetime_years (long haul) | K1: lifetime kilometers (long haul) | L1: kilometers per year (long haul) | M1: power | N1: curb mass | O1: fuel consumption (urban delivery) | P1: fuel consumption (regional delivery) | Q1: fuel consumption (long haul) | R1: hydrogen consumption (urban delivery) | S1: hydrogen consumption (regional delivery) | T1: hydrogen consumption (long haul) | U1: electricity consumption (urban delivery) | V1: electricity consumption (regional delivery) | W1: electricity consumption (long haul) | X1: CNG consumption (urban delivery) | Y1: CNG consumption (regional delivery) | Z1: CNG consumption (long haul) | AA1: payload | AB1: electric utility factor | AC1: target_range | AD1: electric energy stored (urban delivery) | AE1: electric energy stored (regional delivery) | AF1: electric energy stored (long haul) | AG1: battery lifetime replacements | AH1: fuel cell lifetime replacements | AI1: trucks using daily charger | AJ1: share km occasional charger | AK1: vehicle purchase | AL1: yearly insurance | AM1: maintenance cost | AN1: charger cost per kW | AO1: daily charger lifetime | AP1: charger installation cost per kW | AQ1: charger connection cost per kW | AR1: grid capacity reserve cost per kW | AS1: Interest rate | AT1: fuel cost | AU1: hydrogen cost | AV1: CNG cost | AW1: residual value share | AX1: share tolled roads | AY1: electricity cost (daily charger) | AZ1: electricity cost (occasional charger)
A2: ICEV-d | B2: LKW =7,5t | C2: 2000 | D2: 15 | E2: =D2*F2 -> 158868 | F2: =I2*0.8 -> 10591.2 | G2: 15 | H2: =G2*I2 -> 198585 | I2: 13239 | J2: 15 | K2: =J2*L2 -> 287948.25 | L2: =I2*1.45 -> 19196.55 | M2: 150 | N2: 2117.021973 | O2: 13.86120584 | P2: 11.50295867 | Q2: 11.50295867 | AA2: 1125 | AC2: 800 | AK2: 80000 | AL2: 5000 | AM2: 10000 | AS2: 0.09 | AT2: 1.5 | AW2: 0.15 | AX2: 0.05
A3: ICEV-d | B3: LKW =7,5t | C3: 2001 | D3: 15 | E3: =D3*F3 -> 158868 | F3: =I3*0.8 -> 10591.2 | G3: 15 | H3: =G3*I3 -> 198585 | I3: 13239 | J3: 15 | K3: =J3*L3 -> 287948.25 | L3: =I3*1.45 -> 19196.55 | M3: 150 | N3: 2117.021973 | O3: 13.86120584 | P3: 11.50295867 | Q3: 11.50295867 | AA3: 1125 | AC3: 800 | AK3: 80000 | AL3: 5000 | AM3: 10000 | AS3: 0.09 | AT3: 1.5 | AW3: 0.15 | AX3: 0.05
A4: ICEV-d | B4: LKW =7,5t | C4: 2002 | D4: 15 | E4: 158868 | F4: 10591.2 | G4: 15 | H4: 198585 | I4: 13239 | J4: 15 | K4: 287948.25 | L4: 19196.55 | M4: 150 | N4: 2117.021973 | O4: 13.86120584 | P4: 11.50295867 | Q4: 11.50295867 | AA4: 1125 | AC4: 800 | AK4: 80000 | AL4: 5000 | AM4: 10000 | AS4: 0.09 | AT4: 1.5 | AW4: 0.15 | AX4: 0.05
A5: ICEV-d | B5: LKW =7,5t | C5: 2003 | D5: 15 | E5: 158868 | F5: 10591.2 | G5: 15 | H5: 198585 | I5: 13239 | J5: 15 | K5: 287948.25 | L5: 19196.55 | M5: 150 | N5: 2117.021973 | O5: 13.86120584 | P5: 11.50295867 | Q5: 11.50295867 | AA5: 1125 | AC5: 800 | AK5: 80000 | AL5: 5000 | AM5: 10000 | AS5: 0.09 | AT5: 1.5 | AW5: 0.15 | AX5: 0.05
A6: ICEV-d | B6: LKW =7,5t | C6: 2004 | D6: 15 | E6: 158868 | F6: 10591.2 | G6: 15 | H6: 198585 | I6: 13239 | J6: 15 | K6: 287948.25 | L6: 19196.55 | M6: 150 | N6: 2117.021973 | O6: 13.86120584 | P6: 11.50295867 | Q6: 11.50295867 | AA6: 1125 | AC6: 800 | AK6: 80000 | AL6: 5000 | AM6: 10000 | AS6: 0.09 | AT6: 1.5 | AW6: 0.15 | AX6: 0.05
A7: ICEV-d | B7: LKW =7,5t | C7: 2005 | D7: 15 | E7: 158868 | F7: 10591.2 | G7: 15 | H7: 198585 | I7: 13239 | J7: 15 | K7: 287948.25 | L7: 19196.55 | M7: 150 | N7: 2117.021973 | O7: 13.86120584 | P7: 11.50295867 | Q7: 11.50295867 | AA7: 1125 | AC7: 800 | AK7: 80000 | AL7: 5000 | AM7: 10000 | AS7: 0.09 | AT7: 1.5 | AW7: 0.15 | AX7: 0.05
A8: ICEV-d | B8: LKW =7,5t | C8: 2006 | D8: 15 | E8: 158868 | F8: 10591.2 | G8: 15 | H8: 198585 | I8: 13239 | J8: 15 | K8: 287948.25 | L8: 19196.55 | M8: 150 | N8: 2117.021973 | O8: 13.86120584 | P8: 11.50295867 | Q8: 11.50295867 | AA8: 1125 | AC8: 800 | AK8: 80000 | AL8: 5000 | AM8: 10000 | AS8: 0.09 | AT8: 1.5 | AW8: 0.15 | AX8: 0.05
A9: ICEV-d | B9: LKW =7,5t | C9: 2007 | D9: 15 | E9: 158868 | F9: 10591.2 | G9: 15 | H9: 198585 | I9: 13239 | J9: 15 | K9: 287948.25 | L9: 19196.55 | M9: 150 | N9: 2117.021973 | O9: 13.86120584 | P9: 11.50295867 | Q9: 11.50295867 | AA9: 1125 | AC9: 800 | AK9: 80000 | AL9: 5000 | AM9: 10000 | AS9: 0.09 | AT9: 1.5 | AW9: 0.15 | AX9: 0.05
A10: ICEV-d | B10: LKW =7,5t | C10: 2008 | D10: 15 | E10: 158868 | F10: 10591.2 | G10: 15 | H10: 198585 | I10: 13239 | J10: 15 | K10: 287948.25 | L10: 19196.55 | M10: 150 | N10: 2117.021973 | O10: 13.86120584 | P10: 11.50295867 | Q10: 11.50295867 | AA10: 1125 | AC10: 800 | AK10: 80000 | AL10: 5000 | AM10: 10000 | AS10: 0.09 | AT10: 1.5 | AW10: 0.15 | AX10: 0.05
A11: ICEV-d | B11: LKW =7,5t | C11: 2009 | D11: 15 | E11: 158868 | F11: 10591.2 | G11: 15 | H11: 198585 | I11: 13239 | J11: 15 | K11: 287948.25 | L11: 19196.55 | M11: 150 | N11: 2117.021973 | O11: 13.86120584 | P11: 11.50295867 | Q11: 11.50295867 | AA11: 1125 | AC11: 800 | AK11: 80000 | AL11: 5000 | AM11: 10000 | AS11: 0.09 | AT11: 1.5 | AW11: 0.15 | AX11: 0.05
A12: ICEV-d | B12: LKW =7,5t | C12: 2010 | D12: 15 | E12: 158868 | F12: 10591.2 | G12: 15 | H12: 198585 | I12: 13239 | J12: 15 | K12: 287948.25 | L12: 19196.55 | M12: 150 | N12: 2117.021973 | O12: 13.86120584 | P12: 11.50295867 | Q12: 11.50295867 | AA12: 1125 | AC12: 800 | AK12: 80000 | AL12: 5000 | AM12: 10000 | AS12: 0.09 | AT12: 1.5 | AW12: 0.15 | AX12: 0.05
A13: ICEV-d | B13: LKW =7,5t | C13: 2011 | D13: 15 | E13: 158868 | F13: 10591.2 | G13: 15 | H13: 198585 | I13: 13239 | J13: 15 | K13: 287948.25 | L13: 19196.55 | M13: 150 | N13: 2117.021973 | O13: 13.86120584 | P13: 11.50295867 | Q13: 11.50295867 | AA13: 1125 | AC13: 800 | AK13: 80000 | AL13: 5000 | AM13: 10000 | AS13: 0.09 | AT13: 1.5 | AW13: 0.15 | AX13: 0.05
A14: ICEV-d | B14: LKW =7,5t | C14: 2012 | D14: 15 | E14: 158868 | F14: 10591.2 | G14: 15 | H14: 198585 | I14: 13239 | J14: 15 | K14: 287948.25 | L14: 19196.55 | M14: 150 | N14: 2117.021973 | O14: 13.86120584 | P14: 11.50295867 | Q14: 11.50295867 | AA14: 1125 | AC14: 800 | AK14: 80000 | AL14: 5000 | AM14: 10000 | AS14: 0.09 | AT14: 1.5 | AW14: 0.15 | AX14: 0.05
A15: ICEV-d | B15: LKW =7,5t | C15: 2013 | D15: 15 | E15: 158868 | F15: 10591.2 | G15: 15 | H15: 198585 | I15: 13239 | J15: 15 | K15: 287948.25 | L15: 19196.55 | M15: 150 | N15: 2117.021973 | O15: 13.86120584 | P15: 11.50295867 | Q15: 11.50295867 | AA15: 1125 | AC15: 800 | AK15: 80000 | AL15: 5000 | AM15: 10000 | AS15: 0.09 | AT15: 1.5 | AW15: 0.15 | AX15: 0.05
A16: ICEV-d | B16: LKW =7,5t | C16: 2014 | D16: 15 | E16: 158868 | F16: 10591.2 | G16: 15 | H16: 198585 | I16: 13239 | J16: 15 | K16: 287948.25 | L16: 19196.55 | M16: 150 | N16: 2117.021973 | O16: 13.86120584 | P16: 11.50295867 | Q16: 11.50295867 | AA16: 1125 | AC16: 800 | AK16: 80000 | AL16: 5000 | AM16: 10000 | AS16: 0.09 | AT16: 1.5 | AW16: 0.15 | AX16: 0.05
A17: ICEV-d | B17: LKW =7,5t | C17: 2015 | D17: 15 | E17: 158868 | F17: 10591.2 | G17: 15 | H17: 198585 | I17: 13239 | J17: 15 | K17: 287948.25 | L17: 19196.55 | M17: 150 | N17: 2117.021973 | O17: 13.86120584 | P17: 11.50295867 | Q17: 11.50295867 | AA17: 1125 | AC17: 800 | AK17: 80000 | AL17: 5000 | AM17: 10000 | AS17: 0.09 | AT17: 1.5 | AW17: 0.15 | AX17: 0.05
A18: ICEV-d | B18: LKW =7,5t | C18: 2016 | D18: 15 | E18: 158868 | F18: 10591.2 | G18: 15 | H18: 198585 | I18: 13239 | J18: 15 | K18: 287948.25 | L18: 19196.55 | M18: 150 | N18: 2117.021973 | O18: 13.86120584 | P18: 11.50295867 | Q18: 11.50295867 | AA18: 1125 | AC18: 800 | AK18: 80000 | AL18: 5000 | AM18: 10000 | AS18: 0.09 | AT18: 1.5 | AW18: 0.15 | AX18: 0.05
A19: ICEV-d | B19: LKW =7,5t | C19: 2017 | D19: 15 | E19: 158868 | F19: 10591.2 | G19: 15 | H19: 198585 | I19: 13239 | J19: 15 | K19: 287948.25 | L19: 19196.55 | M19: 150 | N19: 2117.021973 | O19: 13.86120584 | P19: 11.50295867 | Q19: 11.50295867 | AA19: 1125 | AC19: 800 | AK19: 80000 | AL19: 5000 | AM19: 10000 | AS19: 0.09 | AT19: 1.5 | AW19: 0.15 | AX19: 0.05
A20: ICEV-d | B20: LKW =7,5t | C20: 2018 | D20: 15 | E20: 158868 | F20: 10591.2 | G20: 15 | H20: 198585 | I20: 13239 | J20: 15 | K20: 287948.25 | L20: 19196.55 | M20: 150 | N20: 2117.021973 | O20: 13.86120584 | P20: 11.50295867 | Q20: 11.50295867 | AA20: 1125 | AC20: 800 | AK20: 80000 | AL20: 5000 | AM20: 10000 | AS20: 0.09 | AT20: 1.5 | AW20: 0.15 | AX20: 0.05
A21: ICEV-d | B21: LKW =7,5t | C21: 2019 | D21: 15 | E21: 158868 | F21: 10591.2 | G21: 15 | H21: 198585 | I21: 13239 | J21: 15 | K21: 287948.25 | L21: 19196.55 | M21: 150 | N21: 2117.021973 | O21: 13.86120584 | P21: 11.50295867 | Q21: 11.50295867 | AA21: 1125 | AC21: 800 | AK21: 80000 | AL21: 5000 | AM21: 10000 | AS21: 0.09 | AT21: 1.5 | AW21: 0.15 | AX21: 0.05
A22: ICEV-d | B22: LKW =7,5t | C22: 2020 | D22: 15 | E22: 158868 | F22: 10591.2 | G22: 15 | H22: 198585 | I22: 13239 | J22: 15 | K22: 287948.25 | L22: 19196.55 | M22: 150 | N22: 2117.021973 | O22: 13.86120584 | P22: 11.50295867 | Q22: 11.50295867 | AA22: 1125 | AC22: 800 | AK22: 80000 | AL22: 5000 | AM22: 10000 | AS22: 0.09 | AT22: 1.5 | AW22: 0.15 | AX22: 0.05
A23: ICEV-d | B23: LKW =7,5t | C23: 2021 | D23: 15 | E23: 158868 | F23: 10591.2 | G23: 15 | H23: 198585 | I23: 13239 | J23: 15 | K23: 287948.25 | L23: 19196.55 | M23: 150 | N23: 2117.021973 | O23: 13.86120584 | P23: 11.50295867 | Q23: 11.50295867 | AA23: 1125 | AC23: 800 | AK23: 80000 | AL23: 5000 | AM23: 10000 | AS23: 0.09 | AT23: 1.5 | AW23: 0.15 | AX23: 0.05
A24: ICEV-d | B24: LKW =7,5t | C24: 2022 | D24: 15 | E24: 158868 | F24: 10591.2 | G24: 15 | H24: 198585 | I24: 13239 | J24: 15 | K24: 287948.25 | L24: 19196.55 | M24: 150 | N24: 2117.021973 | O24: 13.86120584 | P24: 11.50295867 | Q24: 11.50295867 | AA24: 1125 | AC24: 800 | AK24: 80000 | AL24: 5000 | AM24: 10000 | AS24: 0.09 | AT24: 1.5 | AW24: 0.15 | AX24: 0.05
A25: ICEV-d | B25: LKW =7,5t | C25: 2023 | D25: 15 | E25: 158868 | F25: 10591.2 | G25: 15 | H25: 198585 | I25: 13239 | J25: 15 | K25: 287948.25 | L25: 19196.55 | M25: 150 | N25: 2117.021973 | O25: 13.86120584 | P25: 11.50295867 | Q25: 11.50295867 | AA25: 1125 | AC25: 800 | AK25: 80000 | AL25: 5000 | AM25: 10000 | AS25: 0.09 | AT25: 1.5 | AW25: 0.15 | AX25: 0.05
A26: ICEV-d | B26: LKW =7,5t | C26: 2024 | D26: 15 | E26: 158868 | F26: 10591.2 | G26: 15 | H26: 198585 | I26: 13239 | J26: 15 | K26: 287948.25 | L26: 19196.55 | M26: 150 | N26: 2117.021973 | O26: 13.86120584 | P26: 11.50295867 | Q26: 11.50295867 | AA26: 1125 | AC26: 800 | AK26: 80000 | AL26: 5000 | AM26: 10000 | AS26: 0.09 | AT26: 1.5 | AW26: 0.15 | AX26: 0.05
A27: ICEV-d | B27: LKW =7,5t | C27: 2025 | D27: 15 | E27: 158868 | F27: 10591.2 | G27: 15 | H27: 198585 | I27: 13239 | J27: 15 | K27: 287948.25 | L27: 19196.55 | M27: 150 | N27: 2117.021973 | O27: 13.86120584 | P27: 11.50295867 | Q27: 11.50295867 | AA27: 1125 | AC27: 800 | AK27: 80000 | AL27: 5000 | AM27: 10000 | AS27: 0.09 | AT27: 1.5 | AW27: 0.15 | AX27: 0.05
A28: ICEV-d | B28: LKW =7,5t | C28: 2026 | D28: 15 | E28: 158868 | F28: 10591.2 | G28: 15 | H28: 198585 | I28: 13239 | J28: 15 | K28: 287948.25 | L28: 19196.55 | M28: 150 | N28: 2117.021973 | O28: 13.86120584 | P28: 11.50295867 | Q28: 11.50295867 | AA28: 1125 | AC28: 800 | AK28: 80000 | AL28: 5000 | AM28: 10000 | AS28: 0.09 | AT28: 1.5 | AW28: 0.15 | AX28: 0.05
A29: ICEV-d | B29: LKW =7,5t | C29: 2027 | D29: 15 | E29: 158868 | F29: 10591.2 | G29: 15 | H29: 198585 | I29: 13239 | J29: 15 | K29: 287948.25 | L29: 19196.55 | M29: 150 | N29: 2117.021973 | O29: 13.86120584 | P29: 11.50295867 | Q29: 11.50295867 | AA29: 1125 | AC29: 800 | AK29: 80000 | AL29: 5000 | AM29: 10000 | AS29: 0.09 | AT29: 1.5 | AW29: 0.15 | AX29: 0.05
A30: ICEV-d | B30: LKW =7,5t | C30: 2028 | D30: 15 | E30: 158868 | F30: 10591.2 | G30: 15 | H30: 198585 | I30: 13239 | J30: 15 | K30: 287948.25 | L30: 19196.55 | M30: 150 | N30: 2117.021973 | O30: 13.86120584 | P30: 11.50295867 | Q30: 11.50295867 | AA30: 1125 | AC30: 800 | AK30: 80000 | AL30: 5000 | AM30: 10000 | AS30: 0.09 | AT30: 1.5 | AW30: 0.15 | AX30: 0.05
A31: ICEV-d | B31: LKW =7,5t | C31: 2029 | D31: 15 | E31: 158868 | F31: 10591.2 | G31: 15 | H31: 198585 | I31: 13239 | J31: 15 | K31: 287948.25 | L31: 19196.55 | M31: 150 | N31: 2117.021973 | O31: 13.86120584 | P31: 11.50295867 | Q31: 11.50295867 | AA31: 1125 | AC31: 800 | AK31: 80000 | AL31: 5000 | AM31: 10000 | AS31: 0.09 | AT31: 1.5 | AW31: 0.15 | AX31: 0.05
A32: ICEV-d | B32: LKW =7,5t | C32: 2030 | D32: 15 | E32: 158868 | F32: 10591.2 | G32: 15 | H32: 198585 | I32: 13239 | J32: 15 | K32: 287948.25 | L32: 19196.55 | M32: 150 | N32: 2117.021973 | O32: 13.86120584 | P32: 11.50295867 | Q32: 11.50295867 | AA32: 1125 | AC32: 800 | AK32: 80000 | AL32: 5000 | AM32: 10000 | AS32: 0.09 | AT32: 1.5 | AW32: 0.15 | AX32: 0.05
A33: ICEV-g | B33: LKW =7,5t | C33: 2000 | D33: 15 | E33: 158868 | F33: 10591.2 | G33: 15 | H33: 198585 | I33: 13239 | J33: 15 | K33: 287948.25 | L33: 19196.55 | M33: 135 | N33: 2308.125488 | X33: 12.913726 | Y33: 10.71667621 | Z33: 10.71667621 | AA33: 1125 | AC33: 800 | AK33: 98000 | AL33: 5000 | AM33: 10000 | AS33: 0.09 | AV33: 2.3 | AW33: 0.15 | AX33: 0.05
A34: ICEV-g | B34: LKW =7,5t | C34: 2001 | D34: 15 | E34: 158868 | F34: 10591.2 | G34: 15 | H34: 198585 | I34: 13239 | J34: 15 | K34: 287948.25 | L34: 19196.55 | M34: 135 | N34: 2308.125488 | X34: 12.913726 | Y34: 10.71667621 | Z34: 10.71667621 | AA34: 1125 | AC34: 800 | AK34: 98000 | AL34: 5000 | AM34: 10000 | AS34: 0.09 | AV34: 2.3 | AW34: 0.15 | AX34: 0.05
A35: ICEV-g | B35: LKW =7,5t | C35: 2002 | D35: 15 | E35: 158868 | F35: 10591.2 | G35: 15 | H35: 198585 | I35: 13239 | J35: 15 | K35: 287948.25 | L35: 19196.55 | M35: 135 | N35: 2308.125488 | X35: 12.913726 | Y35: 10.71667621 | Z35: 10.71667621 | AA35: 1125 | AC35: 800 | AK35: 98000 | AL35: 5000 | AM35: 10000 | AS35: 0.09 | AV35: 2.3 | AW35: 0.15 | AX35: 0.05
A36: ICEV-g | B36: LKW =7,5t | C36: 2003 | D36: 15 | E36: 158868 | F36: 10591.2 | G36: 15 | H36: 198585 | I36: 13239 | J36: 15 | K36: 287948.25 | L36: 19196.55 | M36: 135 | N36: 2308.125488 | X36: 12.913726 | Y36: 10.71667621 | Z36: 10.71667621 | AA36: 1125 | AC36: 800 | AK36: 98000 | AL36: 5000 | AM36: 10000 | AS36: 0.09 | AV36: 2.3 | AW36: 0.15 | AX36: 0.05
A37: ICEV-g | B37: LKW =7,5t | C37: 2004 | D37: 15 | E37: 158868 | F37: 10591.2 | G37: 15 | H37: 198585 | I37: 13239 | J37: 15 | K37: 287948.25 | L37: 19196.55 | M37: 135 | N37: 2308.125488 | X37: 12.913726 | Y37: 10.71667621 | Z37: 10.71667621 | AA37: 1125 | AC37: 800 | AK37: 98000 | AL37: 5000 | AM37: 10000 | AS37: 0.09 | AV37: 2.3 | AW37: 0.15 | AX37: 0.05
A38: ICEV-g | B38: LKW =7,5t | C38: 2005 | D38: 15 | E38: 158868 | F38: 10591.2 | G38: 15 | H38: 198585 | I38: 13239 | J38: 15 | K38: 287948.25 | L38: 19196.55 | M38: 135 | N38: 2308.125488 | X38: 12.913726 | Y38: 10.71667621 | Z38: 10.71667621 | AA38: 1125 | AC38: 800 | AK38: 98000 | AL38: 5000 | AM38: 10000 | AS38: 0.09 | AV38: 2.3 | AW38: 0.15 | AX38: 0.05
A39: ICEV-g | B39: LKW =7,5t | C39: 2006 | D39: 15 | E39: 158868 | F39: 10591.2 | G39: 15 | H39: 198585 | I39: 13239 | J39: 15 | K39: 287948.25 | L39: 19196.55 | M39: 135 | N39: 2308.125488 | X39: 12.913726 | Y39: 10.71667621 | Z39: 10.71667621 | AA39: 1125 | AC39: 800 | AK39: 98000 | AL39: 5000 | AM39: 10000 | AS39: 0.09 | AV39: 2.3 | AW39: 0.15 | AX39: 0.05
A40: ICEV-g | B40: LKW =7,5t | C40: 2007 | D40: 15 | E40: 158868 | F40: 10591.2 | G40: 15 | H40: 198585 | I40: 13239 | J40: 15 | K40: 287948.25 | L40: 19196.55 | M40: 135 | N40: 2308.125488 | X40: 12.913726 | Y40: 10.71667621 | Z40: 10.71667621 | AA40: 1125 | AC40: 800 | AK40: 98000 | AL40: 5000 | AM40: 10000 | AS40: 0.09 | AV40: 2.3 | AW40: 0.15 | AX40: 0.05
A41: ICEV-g | B41: LKW =7,5t | C41: 2008 | D41: 15 | E41: 158868 | F41: 10591.2 | G41: 15 | H41: 198585 | I41: 13239 | J41: 15 | K41: 287948.25 | L41: 19196.55 | M41: 135 | N41: 2308.125488 | X41: 12.913726 | Y41: 10.71667621 | Z41: 10.71667621 | AA41: 1125 | AC41: 800 | AK41: 98000 | AL41: 5000 | AM41: 10000 | AS41: 0.09 | AV41: 2.3 | AW41: 0.15 | AX41: 0.05
A42: ICEV-g | B42: LKW =7,5t | C42: 2009 | D42: 15 | E42: 158868 | F42: 10591.2 | G42: 15 | H42: 198585 | I42: 13239 | J42: 15 | K42: 287948.25 | L42: 19196.55 | M42: 135 | N42: 2308.125488 | X42: 12.913726 | Y42: 10.71667621 | Z42: 10.71667621 | AA42: 1125 | AC42: 800 | AK42: 98000 | AL42: 5000 | AM42: 10000 | AS42: 0.09 | AV42: 2.3 | AW42: 0.15 | AX42: 0.05
A43: ICEV-g | B43: LKW =7,5t | C43: 2010 | D43: 15 | E43: 158868 | F43: 10591.2 | G43: 15 | H43: 198585 | I43: 13239 | J43: 15 | K43: 287948.25 | L43: 19196.55 | M43: 135 | N43: 2308.125488 | X43: 12.913726 | Y43: 10.71667621 | Z43: 10.71667621 | AA43: 1125 | AC43: 800 | AK43: 98000 | AL43: 5000 | AM43: 10000 | AS43: 0.09 | AV43: 2.3 | AW43: 0.15 | AX43: 0.05
A44: ICEV-g | B44: LKW =7,5t | C44: 2011 | D44: 15 | E44: 158868 | F44: 10591.2 | G44: 15 | H44: 198585 | I44: 13239 | J44: 15 | K44: 287948.25 | L44: 19196.55 | M44: 135 | N44: 2308.125488 | X44: 12.913726 | Y44: 10.71667621 | Z44: 10.71667621 | AA44: 1125 | AC44: 800 | AK44: 98000 | AL44: 5000 | AM44: 10000 | AS44: 0.09 | AV44: 2.3 | AW44: 0.15 | AX44: 0.05
A45: ICEV-g | B45: LKW =7,5t | C45: 2012 | D45: 15 | E45: 158868 | F45: 10591.2 | G45: 15 | H45: 198585 | I45: 13239 | J45: 15 | K45: 287948.25 | L45: 19196.55 | M45: 135 | N45: 2308.125488 | X45: 12.913726 | Y45: 10.71667621 | Z45: 10.71667621 | AA45: 1125 | AC45: 800 | AK45: 98000 | AL45: 5000 | AM45: 10000 | AS45: 0.09 | AV45: 2.3 | AW45: 0.15 | AX45: 0.05
A46: ICEV-g | B46: LKW =7,5t | C46: 2013 | D46: 15 | E46: 158868 | F46: 10591.2 | G46: 15 | H46: 198585 | I46: 13239 | J46: 15 | K46: 287948.25 | L46: 19196.55 | M46: 135 | N46: 2308.125488 | X46: 12.913726 | Y46: 10.71667621 | Z46: 10.71667621 | AA46: 1125 | AC46: 800 | AK46: 98000 | AL46: 5000 | AM46: 10000 | AS46: 0.09 | AV46: 2.3 | AW46: 0.15 | AX46: 0.05
A47: ICEV-g | B47: LKW =7,5t | C47: 2014 | D47: 15 | E47: 158868 | F47: 10591.2 | G47: 15 | H47: 198585 | I47: 13239 | J47: 15 | K47: 287948.25 | L47: 19196.55 | M47: 135 | N47: 2308.125488 | X47: 12.913726 | Y47: 10.71667621 | Z47: 10.71667621 | AA47: 1125 | AC47: 800 | AK47: 98000 | AL47: 5000 | AM47: 10000 | AS47: 0.09 | AV47: 2.3 | AW47: 0.15 | AX47: 0.05
A48: ICEV-g | B48: LKW =7,5t | C48: 2015 | D48: 15 | E48: 158868 | F48: 10591.2 | G48: 15 | H48: 198585 | I48: 13239 | J48: 15 | K48: 287948.25 | L48: 19196.55 | M48: 135 | N48: 2308.125488 | X48: 12.913726 | Y48: 10.71667621 | Z48: 10.71667621 | AA48: 1125 | AC48: 800 | AK48: 98000 | AL48: 5000 | AM48: 10000 | AS48: 0.09 | AV48: 2.3 | AW48: 0.15 | AX48: 0.05
A49: ICEV-g | B49: LKW =7,5t | C49: 2016 | D49: 15 | E49: 158868 | F49: 10591.2 | G49: 15 | H49: 198585 | I49: 13239 | J49: 15 | K49: 287948.25 | L49: 19196.55 | M49: 135 | N49: 2308.125488 | X49: 12.913726 | Y49: 10.71667621 | Z49: 10.71667621 | AA49: 1125 | AC49: 800 | AK49: 98000 | AL49: 5000 | AM49: 10000 | AS49: 0.09 | AV49: 2.3 | AW49: 0.15 | AX49: 0.05
A50: ICEV-g | B50: LKW =7,5t | C50: 2017 | D50: 15 | E50: 158868 | F50: 10591.2 | G50: 15 | H50: 198585 | I50: 13239 | J50: 15 | K50: 287948.25 | L50: 19196.55 | M50: 135 | N50: 2308.125488 | X50: 12.913726 | Y50: 10.71667621 | Z50: 10.71667621 | AA50: 1125 | AC50: 800 | AK50: 98000 | AL50: 5000 | AM50: 10000 | AS50: 0.09 | AV50: 2.3 | AW50: 0.15 | AX50: 0.05
A51: ICEV-g | B51: LKW =7,5t | C51: 2018 | D51: 15 | E51: 158868 | F51: 10591.2 | G51: 15 | H51: 198585 | I51: 13239 | J51: 15 | K51: 287948.25 | L51: 19196.55 | M51: 135 | N51: 2308.125488 | X51: 12.913726 | Y51: 10.71667621 | Z51: 10.71667621 | AA51: 1125 | AC51: 800 | AK51: 98000 | AL51: 5000 | AM51: 10000 | AS51: 0.09 | AV51: 2.3 | AW51: 0.15 | AX51: 0.05
A52: ICEV-g | B52: LKW =7,5t | C52: 2019 | D52: 15 | E52: 158868 | F52: 10591.2 | G52: 15 | H52: 198585 | I52: 13239 | J52: 15 | K52: 287948.25 | L52: 19196.55 | M52: 135 | N52: 2308.125488 | X52: 12.913726 | Y52: 10.71667621 | Z52: 10.71667621 | AA52: 1125 | AC52: 800 | AK52: 98000 | AL52: 5000 | AM52: 10000 | AS52: 0.09 | AV52: 2.3 | AW52: 0.15 | AX52: 0.05
A53: ICEV-g | B53: LKW =7,5t | C53: 2020 | D53: 15 | E53: 158868 | F53: 10591.2 | G53: 15 | H53: 198585 | I53: 13239 | J53: 15 | K53: 287948.25 | L53: 19196.55 | M53: 135 | N53: 2308.125488 | X53: 12.913726 | Y53: 10.71667621 | Z53: 10.71667621 | AA53: 1125 | AC53: 800 | AK53: 98000 | AL53: 5000 | AM53: 10000 | AS53: 0.09 | AV53: 2.3 | AW53: 0.15 | AX53: 0.05
A54: ICEV-g | B54: LKW =7,5t | C54: 2021 | D54: 15 | E54: 158868 | F54: 10591.2 | G54: 15 | H54: 198585 | I54: 13239 | J54: 15 | K54: 287948.25 | L54: 19196.55 | M54: 135 | N54: 2308.125488 | X54: 12.913726 | Y54: 10.71667621 | Z54: 10.71667621 | AA54: 1125 | AC54: 800 | AK54: 98000 | AL54: 5000 | AM54: 10000 | AS54: 0.09 | AV54: 2.3 | AW54: 0.15 | AX54: 0.05
A55: ICEV-g | B55: LKW =7,5t | C55: 2022 | D55: 15 | E55: 158868 | F55: 10591.2 | G55: 15 | H55: 198585 | I55: 13239 | J55: 15 | K55: 287948.25 | L55: 19196.55 | M55: 135 | N55: 2308.125488 | X55: 12.913726 | Y55: 10.71667621 | Z55: 10.71667621 | AA55: 1125 | AC55: 800 | AK55: 98000 | AL55: 5000 | AM55: 10000 | AS55: 0.09 | AV55: 2.3 | AW55: 0.15 | AX55: 0.05
A56: ICEV-g | B56: LKW =7,5t | C56: 2023 | D56: 15 | E56: 158868 | F56: 10591.2 | G56: 15 | H56: 198585 | I56: 13239 | J56: 15 | K56: 287948.25 | L56: 19196.55 | M56: 135 | N56: 2308.125488 | X56: 12.913726 | Y56: 10.71667621 | Z56: 10.71667621 | AA56: 1125 | AC56: 800 | AK56: 98000 | AL56: 5000 | AM56: 10000 | AS56: 0.09 | AV56: 2.3 | AW56: 0.15 | AX56: 0.05
A57: ICEV-g | B57: LKW =7,5t | C57: 2024 | D57: 15 | E57: 158868 | F57: 10591.2 | G57: 15 | H57: 198585 | I57: 13239 | J57: 15 | K57: 287948.25 | L57: 19196.55 | M57: 135 | N57: 2308.125488 | X57: 12.913726 | Y57: 10.71667621 | Z57: 10.71667621 | AA57: 1125 | AC57: 800 | AK57: 98000 | AL57: 5000 | AM57: 10000 | AS57: 0.09 | AV57: 2.3 | AW57: 0.15 | AX57: 0.05
A58: ICEV-g | B58: LKW =7,5t | C58: 2025 | D58: 15 | E58: 158868 | F58: 10591.2 | G58: 15 | H58: 198585 | I58: 13239 | J58: 15 | K58: 287948.25 | L58: 19196.55 | M58: 135 | N58: 2308.125488 | X58: 12.913726 | Y58: 10.71667621 | Z58: 10.71667621 | AA58: 1125 | AC58: 800 | AK58: 98000 | AL58: 5000 | AM58: 10000 | AS58: 0.09 | AV58: 2.3 | AW58: 0.15 | AX58: 0.05
A59: ICEV-g | B59: LKW =7,5t | C59: 2026 | D59: 15 | E59: 158868 | F59: 10591.2 | G59: 15 | H59: 198585 | I59: 13239 | J59: 15 | K59: 287948.25 | L59: 19196.55 | M59: 135 | N59: 2308.125488 | X59: 12.913726 | Y59: 10.71667621 | Z59: 10.71667621 | AA59: 1125 | AC59: 800 | AK59: 98000 | AL59: 5000 | AM59: 10000 | AS59: 0.09 | AV59: 2.3 | AW59: 0.15 | AX59: 0.05
A60: ICEV-g | B60: LKW =7,5t | C60: 2027 | D60: 15 | E60: 158868 | F60: 10591.2 | G60: 15 | H60: 198585 | I60: 13239 | J60: 15 | K60: 287948.25 | L60: 19196.55 | M60: 135 | N60: 2308.125488 | X60: 12.913726 | Y60: 10.71667621 | Z60: 10.71667621 | AA60: 1125 | AC60: 800 | AK60: 98000 | AL60: 5000 | AM60: 10000 | AS60: 0.09 | AV60: 2.3 | AW60: 0.15 | AX60: 0.05
A61: ICEV-g | B61: LKW =7,5t | C61: 2028 | D61: 15 | E61: 158868 | F61: 10591.2 | G61: 15 | H61: 198585 | I61: 13239 | J61: 15 | K61: 287948.25 | L61: 19196.55 | M61: 135 | N61: 2308.125488 | X61: 12.913726 | Y61: 10.71667621 | Z61: 10.71667621 | AA61: 1125 | AC61: 800 | AK61: 98000 | AL61: 5000 | AM61: 10000 | AS61: 0.09 | AV61: 2.3 | AW61: 0.15 | AX61: 0.05
A62: ICEV-g | B62: LKW =7,5t | C62: 2029 | D62: 15 | E62: 158868 | F62: 10591.2 | G62: 15 | H62: 198585 | I62: 13239 | J62: 15 | K62: 287948.25 | L62: 19196.55 | M62: 135 | N62: 2308.125488 | X62: 12.913726 | Y62: 10.71667621 | Z62: 10.71667621 | AA62: 1125 | AC62: 800 | AK62: 98000 | AL62: 5000 | AM62: 10000 | AS62: 0.09 | AV62: 2.3 | AW62: 0.15 | AX62: 0.05
A63: ICEV-g | B63: LKW =7,5t | C63: 2030 | D63: 15 | E63: 158868 | F63: 10591.2 | G63: 15 | H63: 198585 | I63: 13239 | J63: 15 | K63: 287948.25 | L63: 19196.55 | M63: 135 | N63: 2308.125488 | X63: 12.913726 | Y63: 10.71667621 | Z63: 10.71667621 | AA63: 1125 | AC63: 800 | AK63: 98000 | AL63: 5000 | AM63: 10000 | AS63: 0.09 | AV63: 2.3 | AW63: 0.15 | AX63: 0.05
A64: HEV-d | B64: LKW =7,5t | C64: 2000 | D64: 15 | E64: 158868 | F64: 10591.2 | G64: 15 | H64: 198585 | I64: 13239 | J64: 15 | K64: 287948.25 | L64: 19196.55 | M64: 134.9143524 | N64: 2055.093506 | O64: 14.43074544 | P64: 12.46486902 | Q64: 12.46486902 | AA64: 1125 | AC64: 800 | AK64: 105000 | AL64: 5000 | AM64: 10000 | AS64: 0.09 | AT64: 1.5 | AW64: 0.15 | AX64: 0.05
A65: HEV-d | B65: LKW =7,5t | C65: 2001 | D65: 15 | E65: 158868 | F65: 10591.2 | G65: 15 | H65: 198585 | I65: 13239 | J65: 15 | K65: 287948.25 | L65: 19196.55 | M65: 134.9143524 | N65: 2055.093506 | O65: 14.43074544 | P65: 12.46486902 | Q65: 12.46486902 | AA65: 1125 | AC65: 800 | AK65: 105000 | AL65: 5000 | AM65: 10000 | AS65: 0.09 | AT65: 1.5 | AW65: 0.15 | AX65: 0.05
A66: HEV-d | B66: LKW =7,5t | C66: 2002 | D66: 15 | E66: 158868 | F66: 10591.2 | G66: 15 | H66: 198585 | I66: 13239 | J66: 15 | K66: 287948.25 | L66: 19196.55 | M66: 134.9143524 | N66: 2055.093506 | O66: 14.43074544 | P66: 12.46486902 | Q66: 12.46486902 | AA66: 1125 | AC66: 800 | AK66: 105000 | AL66: 5000 | AM66: 10000 | AS66: 0.09 | AT66: 1.5 | AW66: 0.15 | AX66: 0.05
A67: HEV-d | B67: LKW =7,5t | C67: 2003 | D67: 15 | E67: =D67*F67 -> 158868 | F67: =I67*0.8 -> 10591.2 | G67: 15 | H67: =G67*I67 -> 198585 | I67: 13239 | J67: 15 | K67: =J67*L67 -> 287948.25 | L67: =I67*1.45 -> 19196.55 | M67: 134.9143524 | N67: 2055.093506 | O67: 14.43074544 | P67: 12.46486902 | Q67: 12.46486902 | AA67: 1125 | AC67: 800 | AK67: 105000 | AL67: 5000 | AM67: 10000 | AS67: 0.09 | AT67: 1.5 | AW67: 0.15 | AX67: 0.05
A68: HEV-d | B68: LKW =7,5t | C68: 2004 | D68: 15 | E68: 158868 | F68: 10591.2 | G68: 15 | H68: 198585 | I68: 13239 | J68: 15 | K68: 287948.25 | L68: 19196.55 | M68: 134.9143524 | N68: 2055.093506 | O68: 14.43074544 | P68: 12.46486902 | Q68: 12.46486902 | AA68: 1125 | AC68: 800 | AK68: 105000 | AL68: 5000 | AM68: 10000 | AS68: 0.09 | AT68: 1.5 | AW68: 0.15 | AX68: 0.05
A69: HEV-d | B69: LKW =7,5t | C69: 2005 | D69: 15 | E69: 158868 | F69: 10591.2 | G69: 15 | H69: 198585 | I69: 13239 | J69: 15 | K69: 287948.25 | L69: 19196.55 | M69: 134.9143524 | N69: 2055.093506 | O69: 14.43074544 | P69: 12.46486902 | Q69: 12.46486902 | AA69: 1125 | AC69: 800 | AK69: 105000 | AL69: 5000 | AM69: 10000 | AS69: 0.09 | AT69: 1.5 | AW69: 0.15 | AX69: 0.05
A70: HEV-d | B70: LKW =7,5t | C70: 2006 | D70: 15 | E70: 158868 | F70: 10591.2 | G70: 15 | H70: 198585 | I70: 13239 | J70: 15 | K70: 287948.25 | L70: 19196.55 | M70: 134.9143524 | N70: 2055.093506 | O70: 14.43074544 | P70: 12.46486902 | Q70: 12.46486902 | AA70: 1125 | AC70: 800 | AK70: 105000 | AL70: 5000 | AM70: 10000 | AS70: 0.09 | AT70: 1.5 | AW70: 0.15 | AX70: 0.05
A71: HEV-d | B71: LKW =7,5t | C71: 2007 | D71: 15 | E71: 158868 | F71: 10591.2 | G71: 15 | H71: 198585 | I71: 13239 | J71: 15 | K71: 287948.25 | L71: 19196.55 | M71: 134.9143524 | N71: 2055.093506 | O71: 14.43074544 | P71: 12.46486902 | Q71: 12.46486902 | AA71: 1125 | AC71: 800 | AK71: 105000 | AL71: 5000 | AM71: 10000 | AS71: 0.09 | AT71: 1.5 | AW71: 0.15 | AX71: 0.05
A72: HEV-d | B72: LKW =7,5t | C72: 2008 | D72: 15 | E72: 158868 | F72: 10591.2 | G72: 15 | H72: 198585 | I72: 13239 | J72: 15 | K72: 287948.25 | L72: 19196.55 | M72: 134.9143524 | N72: 2055.093506 | O72: 14.43074544 | P72: 12.46486902 | Q72: 12.46486902 | AA72: 1125 | AC72: 800 | AK72: 105000 | AL72: 5000 | AM72: 10000 | AS72: 0.09 | AT72: 1.5 | AW72: 0.15 | AX72: 0.05
A73: HEV-d | B73: LKW =7,5t | C73: 2009 | D73: 15 | E73: 158868 | F73: 10591.2 | G73: 15 | H73: 198585 | I73: 13239 | J73: 15 | K73: 287948.25 | L73: 19196.55 | M73: 134.9143524 | N73: 2055.093506 | O73: 14.43074544 | P73: 12.46486902 | Q73: 12.46486902 | AA73: 1125 | AC73: 800 | AK73: 105000 | AL73: 5000 | AM73: 10000 | AS73: 0.09 | AT73: 1.5 | AW73: 0.15 | AX73: 0.05
A74: HEV-d | B74: LKW =7,5t | C74: 2010 | D74: 15 | E74: 158868 | F74: 10591.2 | G74: 15 | H74: 198585 | I74: 13239 | J74: 15 | K74: 287948.25 | L74: 19196.55 | M74: 134.9143524 | N74: 2055.093506 | O74: 14.43074544 | P74: 12.46486902 | Q74: 12.46486902 | AA74: 1125 | AC74: 800 | AK74: 105000 | AL74: 5000 | AM74: 10000 | AS74: 0.09 | AT74: 1.5 | AW74: 0.15 | AX74: 0.05
A75: HEV-d | B75: LKW =7,5t | C75: 2011 | D75: 15 | E75: 158868 | F75: 10591.2 | G75: 15 | H75: 198585 | I75: 13239 | J75: 15 | K75: 287948.25 | L75: 19196.55 | M75: 134.9143524 | N75: 2055.093506 | O75: 14.43074544 | P75: 12.46486902 | Q75: 12.46486902 | AA75: 1125 | AC75: 800 | AK75: 105000 | AL75: 5000 | AM75: 10000 | AS75: 0.09 | AT75: 1.5 | AW75: 0.15 | AX75: 0.05
A76: HEV-d | B76: LKW =7,5t | C76: 2012 | D76: 15 | E76: 158868 | F76: 10591.2 | G76: 15 | H76: 198585 | I76: 13239 | J76: 15 | K76: 287948.25 | L76: 19196.55 | M76: 134.9143524 | N76: 2055.093506 | O76: 14.43074544 | P76: 12.46486902 | Q76: 12.46486902 | AA76: 1125 | AC76: 800 | AK76: 105000 | AL76: 5000 | AM76: 10000 | AS76: 0.09 | AT76: 1.5 | AW76: 0.15 | AX76: 0.05
A77: HEV-d | B77: LKW =7,5t | C77: 2013 | D77: 15 | E77: 158868 | F77: 10591.2 | G77: 15 | H77: 198585 | I77: 13239 | J77: 15 | K77: 287948.25 | L77: 19196.55 | M77: 134.9143524 | N77: 2055.093506 | O77: 14.43074544 | P77: 12.46486902 | Q77: 12.46486902 | AA77: 1125 | AC77: 800 | AK77: 105000 | AL77: 5000 | AM77: 10000 | AS77: 0.09 | AT77: 1.5 | AW77: 0.15 | AX77: 0.05
A78: HEV-d | B78: LKW =7,5t | C78: 2014 | D78: 15 | E78: 158868 | F78: 10591.2 | G78: 15 | H78: 198585 | I78: 13239 | J78: 15 | K78: 287948.25 | L78: 19196.55 | M78: 134.9143524 | N78: 2055.093506 | O78: 14.43074544 | P78: 12.46486902 | Q78: 12.46486902 | AA78: 1125 | AC78: 800 | AK78: 105000 | AL78: 5000 | AM78: 10000 | AS78: 0.09 | AT78: 1.5 | AW78: 0.15 | AX78: 0.05
A79: HEV-d | B79: LKW =7,5t | C79: 2015 | D79: 15 | E79: 158868 | F79: 10591.2 | G79: 15 | H79: 198585 | I79: 13239 | J79: 15 | K79: 287948.25 | L79: 19196.55 | M79: 134.9143524 | N79: 2055.093506 | O79: 14.43074544 | P79: 12.46486902 | Q79: 12.46486902 | AA79: 1125 | AC79: 800 | AK79: 105000 | AL79: 5000 | AM79: 10000 | AS79: 0.09 | AT79: 1.5 | AW79: 0.15 | AX79: 0.05
A80: HEV-d | B80: LKW =7,5t | C80: 2016 | D80: 15 | E80: 158868 | F80: 10591.2 | G80: 15 | H80: 198585 | I80: 13239 | J80: 15 | K80: 287948.25 | L80: 19196.55 | M80: 134.9143524 | N80: 2055.093506 | O80: 14.43074544 | P80: 12.46486902 | Q80: 12.46486902 | AA80: 1125 | AC80: 800 | AK80: 105000 | AL80: 5000 | AM80: 10000 | AS80: 0.09 | AT80: 1.5 | AW80: 0.15 | AX80: 0.05
A81: HEV-d | B81: LKW =7,5t | C81: 2017 | D81: 15 | E81: 158868 | F81: 10591.2 | G81: 15 | H81: 198585 | I81: 13239 | J81: 15 | K81: 287948.25 | L81: 19196.55 | M81: 134.9143524 | N81: 2055.093506 | O81: 14.43074544 | P81: 12.46486902 | Q81: 12.46486902 | AA81: 1125 | AC81: 800 | AK81: 105000 | AL81: 5000 | AM81: 10000 | AS81: 0.09 | AT81: 1.5 | AW81: 0.15 | AX81: 0.05
A82: HEV-d | B82: LKW =7,5t | C82: 2018 | D82: 15 | E82: 158868 | F82: 10591.2 | G82: 15 | H82: 198585 | I82: 13239 | J82: 15 | K82: 287948.25 | L82: 19196.55 | M82: 134.9143524 | N82: 2055.093506 | O82: 14.43074544 | P82: 12.46486902 | Q82: 12.46486902 | AA82: 1125 | AC82: 800 | AK82: 105000 | AL82: 5000 | AM82: 10000 | AS82: 0.09 | AT82: 1.5 | AW82: 0.15 | AX82: 0.05
A83: HEV-d | B83: LKW =7,5t | C83: 2019 | D83: 15 | E83: 158868 | F83: 10591.2 | G83: 15 | H83: 198585 | I83: 13239 | J83: 15 | K83: 287948.25 | L83: 19196.55 | M83: 134.9143524 | N83: 2055.093506 | O83: 14.43074544 | P83: 12.46486902 | Q83: 12.46486902 | AA83: 1125 | AC83: 800 | AK83: 105000 | AL83: 5000 | AM83: 10000 | AS83: 0.09 | AT83: 1.5 | AW83: 0.15 | AX83: 0.05
A84: HEV-d | B84: LKW =7,5t | C84: 2020 | D84: 15 | E84: 158868 | F84: 10591.2 | G84: 15 | H84: 198585 | I84: 13239 | J84: 15 | K84: 287948.25 | L84: 19196.55 | M84: 134.9143524 | N84: 2055.093506 | O84: 14.43074544 | P84: 12.46486902 | Q84: 12.46486902 | AA84: 1125 | AC84: 800 | AK84: 105000 | AL84: 5000 | AM84: 10000 | AS84: 0.09 | AT84: 1.5 | AW84: 0.15 | AX84: 0.05
A85: HEV-d | B85: LKW =7,5t | C85: 2021 | D85: 15 | E85: 158868 | F85: 10591.2 | G85: 15 | H85: 198585 | I85: 13239 | J85: 15 | K85: 287948.25 | L85: 19196.55 | M85: 134.9143524 | N85: 2055.093506 | O85: 14.43074544 | P85: 12.46486902 | Q85: 12.46486902 | AA85: 1125 | AC85: 800 | AK85: 105000 | AL85: 5000 | AM85: 10000 | AS85: 0.09 | AT85: 1.5 | AW85: 0.15 | AX85: 0.05
A86: HEV-d | B86: LKW =7,5t | C86: 2022 | D86: 15 | E86: 158868 | F86: 10591.2 | G86: 15 | H86: 198585 | I86: 13239 | J86: 15 | K86: 287948.25 | L86: 19196.55 | M86: 134.9143524 | N86: 2055.093506 | O86: 14.43074544 | P86: 12.46486902 | Q86: 12.46486902 | AA86: 1125 | AC86: 800 | AK86: 105000 | AL86: 5000 | AM86: 10000 | AS86: 0.09 | AT86: 1.5 | AW86: 0.15 | AX86: 0.05
A87: HEV-d | B87: LKW =7,5t | C87: 2023 | D87: 15 | E87: 158868 | F87: 10591.2 | G87: 15 | H87: 198585 | I87: 13239 | J87: 15 | K87: 287948.25 | L87: 19196.55 | M87: 134.9143524 | N87: 2055.093506 | O87: 14.43074544 | P87: 12.46486902 | Q87: 12.46486902 | AA87: 1125 | AC87: 800 | AK87: 105000 | AL87: 5000 | AM87: 10000 | AS87: 0.09 | AT87: 1.5 | AW87: 0.15 | AX87: 0.05
A88: HEV-d | B88: LKW =7,5t | C88: 2024 | D88: 15 | E88: 158868 | F88: 10591.2 | G88: 15 | H88: 198585 | I88: 13239 | J88: 15 | K88: 287948.25 | L88: 19196.55 | M88: 134.9143524 | N88: 2055.093506 | O88: 14.43074544 | P88: 12.46486902 | Q88: 12.46486902 | AA88: 1125 | AC88: 800 | AK88: 105000 | AL88: 5000 | AM88: 10000 | AS88: 0.09 | AT88: 1.5 | AW88: 0.15 | AX88: 0.05
A89: HEV-d | B89: LKW =7,5t | C89: 2025 | D89: 15 | E89: 158868 | F89: 10591.2 | G89: 15 | H89: 198585 | I89: 13239 | J89: 15 | K89: 287948.25 | L89: 19196.55 | M89: 134.9143524 | N89: 2055.093506 | O89: 14.43074544 | P89: 12.46486902 | Q89: 12.46486902 | AA89: 1125 | AC89: 800 | AK89: 105000 | AL89: 5000 | AM89: 10000 | AS89: 0.09 | AT89: 1.5 | AW89: 0.15 | AX89: 0.05
A90: HEV-d | B90: LKW =7,5t | C90: 2026 | D90: 15 | E90: 158868 | F90: 10591.2 | G90: 15 | H90: 198585 | I90: 13239 | J90: 15 | K90: 287948.25 | L90: 19196.55 | M90: 134.9143524 | N90: 2055.093506 | O90: 14.43074544 | P90: 12.46486902 | Q90: 12.46486902 | AA90: 1125 | AC90: 800 | AK90: 105000 | AL90: 5000 | AM90: 10000 | AS90: 0.09 | AT90: 1.5 | AW90: 0.15 | AX90: 0.05
A91: HEV-d | B91: LKW =7,5t | C91: 2027 | D91: 15 | E91: 158868 | F91: 10591.2 | G91: 15 | H91: 198585 | I91: 13239 | J91: 15 | K91: 287948.25 | L91: 19196.55 | M91: 134.9143524 | N91: 2055.093506 | O91: 14.43074544 | P91: 12.46486902 | Q91: 12.46486902 | AA91: 1125 | AC91: 800 | AK91: 105000 | AL91: 5000 | AM91: 10000 | AS91: 0.09 | AT91: 1.5 | AW91: 0.15 | AX91: 0.05
A92: HEV-d | B92: LKW =7,5t | C92: 2028 | D92: 15 | E92: 158868 | F92: 10591.2 | G92: 15 | H92: 198585 | I92: 13239 | J92: 15 | K92: 287948.25 | L92: 19196.55 | M92: 134.9143524 | N92: 2055.093506 | O92: 14.43074544 | P92: 12.46486902 | Q92: 12.46486902 | AA92: 1125 | AC92: 800 | AK92: 105000 | AL92: 5000 | AM92: 10000 | AS92: 0.09 | AT92: 1.5 | AW92: 0.15 | AX92: 0.05
A93: HEV-d | B93: LKW =7,5t | C93: 2029 | D93: 15 | E93: 158868 | F93: 10591.2 | G93: 15 | H93: 198585 | I93: 13239 | J93: 15 | K93: 287948.25 | L93: 19196.55 | M93: 134.9143524 | N93: 2055.093506 | O93: 14.43074544 | P93: 12.46486902 | Q93: 12.46486902 | AA93: 1125 | AC93: 800 | AK93: 105000 | AL93: 5000 | AM93: 10000 | AS93: 0.09 | AT93: 1.5 | AW93: 0.15 | AX93: 0.05
A94: HEV-d | B94: LKW =7,5t | C94: 2030 | D94: 15 | E94: 158868 | F94: 10591.2 | G94: 15 | H94: 198585 | I94: 13239 | J94: 15 | K94: 287948.25 | L94: 19196.55 | M94: 134.9143524 | N94: 2055.093506 | O94: 14.43074544 | P94: 12.46486902 | Q94: 12.46486902 | AA94: 1125 | AC94: 800 | AK94: 105000 | AL94: 5000 | AM94: 10000 | AS94: 0.09 | AT94: 1.5 | AW94: 0.15 | AX94: 0.05
A95: PHEV-d | B95: LKW =7,5t | C95: 2016 | D95: 15 | E95: 158868 | F95: 10591.2 | G95: 15 | H95: 198585 | I95: 13239 | J95: 15 | K95: 287948.25 | L95: 19196.55 | M95: 131.6488647 | N95: 2093.001465 | O95: 14.43074544 | P95: 12.46486902 | Q95: 12.46486902 | U95: 53.26123462 | V95: 58.53962624 | W95: 58.53962624 | AA95: 1125 | AB95: 0.07500001043 | AC95: 800 | AD95: 3 | AE95: 3 | AF95: 3 | AK95: 155000 | AL95: 5000 | AM95: 10000 | AS95: 0.09 | AT95: 1.5 | AW95: 0.15 | AX95: 0.05 | AY95: 0.15 | AZ95: 0.6
A96: PHEV-d | B96: LKW =7,5t | C96: 2017 | D96: 15 | E96: 158868 | F96: 10591.2 | G96: 15 | H96: 198585 | I96: 13239 | J96: 15 | K96: 287948.25 | L96: 19196.55 | M96: 131.6488647 | N96: 2093.001465 | O96: 14.43074544 | P96: 12.46486902 | Q96: 12.46486902 | U96: 53.26123462 | V96: 58.53962624 | W96: 58.53962624 | AA96: 1125 | AB96: 0.07500001043 | AC96: 800 | AD96: 3 | AE96: 3 | AF96: 3 | AK96: 155000 | AL96: 5000 | AM96: 10000 | AS96: 0.09 | AT96: 1.5 | AW96: 0.15 | AX96: 0.05 | AY96: 0.15 | AZ96: 0.6
A97: PHEV-d | B97: LKW =7,5t | C97: 2018 | D97: 15 | E97: 158868 | F97: 10591.2 | G97: 15 | H97: 198585 | I97: 13239 | J97: 15 | K97: 287948.25 | L97: 19196.55 | M97: 131.6488647 | N97: 2093.001465 | O97: 14.43074544 | P97: 12.46486902 | Q97: 12.46486902 | U97: 53.26123462 | V97: 58.53962624 | W97: 58.53962624 | AA97: 1125 | AB97: 0.07500001043 | AC97: 800 | AD97: 3 | AE97: 3 | AF97: 3 | AK97: 155000 | AL97: 5000 | AM97: 10000 | AS97: 0.09 | AT97: 1.5 | AW97: 0.15 | AX97: 0.05 | AY97: 0.15 | AZ97: 0.6
A98: PHEV-d | B98: LKW =7,5t | C98: 2019 | D98: 15 | E98: 158868 | F98: 10591.2 | G98: 15 | H98: 198585 | I98: 13239 | J98: 15 | K98: 287948.25 | L98: 19196.55 | M98: 131.6488647 | N98: 2093.001465 | O98: 14.43074544 | P98: 12.46486902 | Q98: 12.46486902 | U98: 53.26123462 | V98: 58.53962624 | W98: 58.53962624 | AA98: 1125 | AB98: 0.07500001043 | AC98: 800 | AD98: 3 | AE98: 3 | AF98: 3 | AK98: 155000 | AL98: 5000 | AM98: 10000 | AS98: 0.09 | AT98: 1.5 | AW98: 0.15 | AX98: 0.05 | AY98: 0.15 | AZ98: 0.6
A99: PHEV-d | B99: LKW =7,5t | C99: 2020 | D99: 15 | E99: 158868 | F99: 10591.2 | G99: 15 | H99: 198585 | I99: 13239 | J99: 15 | K99: 287948.25 | L99: 19196.55 | M99: 131.6488647 | N99: 2093.001465 | O99: 14.43074544 | P99: 12.46486902 | Q99: 12.46486902 | U99: 53.26123462 | V99: 58.53962624 | W99: 58.53962624 | AA99: 1125 | AB99: 0.07500001043 | AC99: 800 | AD99: 3 | AE99: 3 | AF99: 3 | AK99: 155000 | AL99: 5000 | AM99: 10000 | AS99: 0.09 | AT99: 1.5 | AW99: 0.15 | AX99: 0.05 | AY99: 0.15 | AZ99: 0.6
A100: PHEV-d | B100: LKW =7,5t | C100: 2021 | D100: 15 | E100: 158868 | F100: 10591.2 | G100: 15 | H100: 198585 | I100: 13239 | J100: 15 | K100: 287948.25 | L100: 19196.55 | M100: 131.6488647 | N100: 2093.001465 | O100: 14.43074544 | P100: 12.46486902 | Q100: 12.46486902 | U100: 53.26123462 | V100: 58.53962624 | W100: 58.53962624 | AA100: 1125 | AB100: 0.07500001043 | AC100: 800 | AD100: 3 | AE100: 3 | AF100: 3 | AK100: 155000 | AL100: 5000 | AM100: 10000 | AS100: 0.09 | AT100: 1.5 | AW100: 0.15 | AX100: 0.05 | AY100: 0.15 | AZ100: 0.6
A101: PHEV-d | B101: LKW =7,5t | C101: 2022 | D101: 15 | E101: 158868 | F101: 10591.2 | G101: 15 | H101: 198585 | I101: 13239 | J101: 15 | K101: 287948.25 | L101: 19196.55 | M101: 131.6488647 | N101: 2093.001465 | O101: 14.43074544 | P101: 12.46486902 | Q101: 12.46486902 | U101: 53.26123462 | V101: 58.53962624 | W101: 58.53962624 | AA101: 1125 | AB101: 0.07500001043 | AC101: 800 | AD101: 3 | AE101: 3 | AF101: 3 | AK101: 155000 | AL101: 5000 | AM101: 10000 | AS101: 0.09 | AT101: 1.5 | AW101: 0.15 | AX101: 0.05 | AY101: 0.15 | AZ101: 0.6
A102: PHEV-d | B102: LKW =7,5t | C102: 2023 | D102: 15 | E102: 158868 | F102: 10591.2 | G102: 15 | H102: 198585 | I102: 13239 | J102: 15 | K102: 287948.25 | L102: 19196.55 | M102: 131.6488647 | N102: 2093.001465 | O102: 14.43074544 | P102: 12.46486902 | Q102: 12.46486902 | U102: 53.26123462 | V102: 58.53962624 | W102: 58.53962624 | AA102: 1125 | AB102: 0.07500001043 | AC102: 800 | AD102: 3 | AE102: 3 | AF102: 3 | AK102: 155000 | AL102: 5000 | AM102: 10000 | AS102: 0.09 | AT102: 1.5 | AW102: 0.15 | AX102: 0.05 | AY102: 0.15 | AZ102: 0.6
A103: PHEV-d | B103: LKW =7,5t | C103: 2024 | D103: 15 | E103: 158868 | F103: 10591.2 | G103: 15 | H103: 198585 | I103: 13239 | J103: 15 | K103: 287948.25 | L103: 19196.55 | M103: 131.6488647 | N103: 2093.001465 | O103: 14.43074544 | P103: 12.46486902 | Q103: 12.46486902 | U103: 53.26123462 | V103: 58.53962624 | W103: 58.53962624 | AA103: 1125 | AB103: 0.07500001043 | AC103: 800 | AD103: 3 | AE103: 3 | AF103: 3 | AK103: 155000 | AL103: 5000 | AM103: 10000 | AS103: 0.09 | AT103: 1.5 | AW103: 0.15 | AX103: 0.05 | AY103: 0.15 | AZ103: 0.6
A104: PHEV-d | B104: LKW =7,5t | C104: 2025 | D104: 15 | E104: 158868 | F104: 10591.2 | G104: 15 | H104: 198585 | I104: 13239 | J104: 15 | K104: 287948.25 | L104: 19196.55 | M104: 131.6488647 | N104: 2093.001465 | O104: 14.43074544 | P104: 12.46486902 | Q104: 12.46486902 | U104: 53.26123462 | V104: 58.53962624 | W104: 58.53962624 | AA104: 1125 | AB104: 0.07500001043 | AC104: 800 | AD104: 3 | AE104: 3 | AF104: 3 | AK104: 155000 | AL104: 5000 | AM104: 10000 | AS104: 0.09 | AT104: 1.5 | AW104: 0.15 | AX104: 0.05 | AY104: 0.15 | AZ104: 0.6
A105: PHEV-d | B105: LKW =7,5t | C105: 2026 | D105: 15 | E105: 158868 | F105: 10591.2 | G105: 15 | H105: 198585 | I105: 13239 | J105: 15 | K105: 287948.25 | L105: 19196.55 | M105: 131.6488647 | N105: 2093.001465 | O105: 14.43074544 | P105: 12.46486902 | Q105: 12.46486902 | U105: 53.26123462 | V105: 58.53962624 | W105: 58.53962624 | AA105: 1125 | AB105: 0.07500001043 | AC105: 800 | AD105: 3 | AE105: 3 | AF105: 3 | AK105: 155000 | AL105: 5000 | AM105: 10000 | AS105: 0.09 | AT105: 1.5 | AW105: 0.15 | AX105: 0.05 | AY105: 0.15 | AZ105: 0.6
A106: PHEV-d | B106: LKW =7,5t | C106: 2027 | D106: 15 | E106: 158868 | F106: 10591.2 | G106: 15 | H106: 198585 | I106: 13239 | J106: 15 | K106: 287948.25 | L106: 19196.55 | M106: 131.6488647 | N106: 2093.001465 | O106: 14.43074544 | P106: 12.46486902 | Q106: 12.46486902 | U106: 53.26123462 | V106: 58.53962624 | W106: 58.53962624 | AA106: 1125 | AB106: 0.07500001043 | AC106: 800 | AD106: 3 | AE106: 3 | AF106: 3 | AK106: 155000 | AL106: 5000 | AM106: 10000 | AS106: 0.09 | AT106: 1.5 | AW106: 0.15 | AX106: 0.05 | AY106: 0.15 | AZ106: 0.6
A107: PHEV-d | B107: LKW =7,5t | C107: 2028 | D107: 15 | E107: 158868 | F107: 10591.2 | G107: 15 | H107: 198585 | I107: 13239 | J107: 15 | K107: 287948.25 | L107: 19196.55 | M107: 131.6488647 | N107: 2093.001465 | O107: 14.43074544 | P107: 12.46486902 | Q107: 12.46486902 | U107: 53.26123462 | V107: 58.53962624 | W107: 58.53962624 | AA107: 1125 | AB107: 0.07500001043 | AC107: 800 | AD107: 3 | AE107: 3 | AF107: 3 | AK107: 155000 | AL107: 5000 | AM107: 10000 | AS107: 0.09 | AT107: 1.5 | AW107: 0.15 | AX107: 0.05 | AY107: 0.15 | AZ107: 0.6
A108: PHEV-d | B108: LKW =7,5t | C108: 2029 | D108: 15 | E108: 158868 | F108: 10591.2 | G108: 15 | H108: 198585 | I108: 13239 | J108: 15 | K108: 287948.25 | L108: 19196.55 | M108: 131.6488647 | N108: 2093.001465 | O108: 14.43074544 | P108: 12.46486902 | Q108: 12.46486902 | U108: 53.26123462 | V108: 58.53962624 | W108: 58.53962624 | AA108: 1125 | AB108: 0.07500001043 | AC108: 800 | AD108: 3 | AE108: 3 | AF108: 3 | AK108: 155000 | AL108: 5000 | AM108: 10000 | AS108: 0.09 | AT108: 1.5 | AW108: 0.15 | AX108: 0.05 | AY108: 0.15 | AZ108: 0.6
A109: PHEV-d | B109: LKW =7,5t | C109: 2030 | D109: 15 | E109: 158868 | F109: 10591.2 | G109: 15 | H109: 198585 | I109: 13239 | J109: 15 | K109: 287948.25 | L109: 19196.55 | M109: 131.6488647 | N109: 2093.001465 | O109: 14.43074544 | P109: 12.46486902 | Q109: 12.46486902 | U109: 53.26123462 | V109: 58.53962624 | W109: 58.53962624 | AA109: 1125 | AB109: 0.07500001043 | AC109: 800 | AD109: 3 | AE109: 3 | AF109: 3 | AK109: 155000 | AL109: 5000 | AM109: 10000 | AS109: 0.09 | AT109: 1.5 | AW109: 0.15 | AX109: 0.05 | AY109: 0.15 | AZ109: 0.6
A110: BEV | B110: LKW =7,5t | C110: 2016 | D110: 15 | E110: 158868 | F110: 10591.2 | G110: 15 | H110: 198585 | I110: 13239 | J110: 15 | K110: 287948.25 | L110: 19196.55 | M110: 220 | N110: 2000 | U110: 44.93648145 | V110: 48.89903797 | W110: 48.89903797 | AA110: 1125 | AC110: 150 | AD110: =U110*1.5*1.25 -> 84.25590272 | AE110: =U110*3*1.25 -> 168.5118054 | AF110: =U110*5*1.25 -> 280.8530091 | AG110: 1 | AI110: 3 | AJ110: 0.1 | AK110: 195000 | AL110: 5000 | AM110: 10000 | AN110: 400 | AO110: 15 | AP110: 200 | AQ110: 250 | AR110: 150 | AS110: 0.09 | AW110: 0.15 | AX110: 0.05 | AY110: 0.15 | AZ110: 0.6
A111: BEV | B111: LKW =7,5t | C111: 2017 | D111: 15 | E111: 158868 | F111: 10591.2 | G111: 15 | H111: 198585 | I111: 13239 | J111: 15 | K111: 287948.25 | L111: 19196.55 | M111: 220 | N111: 2000 | U111: 44.93648145 | V111: 48.89903797 | W111: 48.89903797 | AA111: 1125 | AC111: 150 | AD111: =U111*1.5*1.25 -> 84.25590272 | AE111: =U111*3*1.25 -> 168.5118054 | AF111: =U111*5*1.25 -> 280.8530091 | AG111: 1 | AI111: 3 | AJ111: 0.1 | AK111: 195000 | AL111: 5000 | AM111: 10000 | AN111: 400 | AO111: 15 | AP111: 200 | AQ111: 250 | AR111: 150 | AS111: 0.09 | AW111: 0.15 | AX111: 0.05 | AY111: 0.15 | AZ111: 0.6
A112: BEV | B112: LKW =7,5t | C112: 2018 | D112: 15 | E112: 158868 | F112: 10591.2 | G112: 15 | H112: 198585 | I112: 13239 | J112: 15 | K112: 287948.25 | L112: 19196.55 | M112: 220 | N112: 2000 | U112: 44.93648145 | V112: 48.89903797 | W112: 48.89903797 | AA112: 1125 | AC112: 150 | AD112: 84.25590272 | AE112: 168.5118054 | AF112: 280.8530091 | AG112: 1 | AI112: 3 | AJ112: 0.1 | AK112: 195000 | AL112: 5000 | AM112: 10000 | AN112: 400 | AO112: 15 | AP112: 200 | AQ112: 250 | AR112: 150 | AS112: 0.09 | AW112: 0.15 | AX112: 0.05 | AY112: 0.15 | AZ112: 0.6
A113: BEV | B113: LKW =7,5t | C113: 2019 | D113: 15 | E113: 158868 | F113: 10591.2 | G113: 15 | H113: 198585 | I113: 13239 | J113: 15 | K113: 287948.25 | L113: 19196.55 | M113: 220 | N113: 2000 | U113: 44.93648145 | V113: 48.89903797 | W113: 48.89903797 | AA113: 1125 | AC113: 150 | AD113: 84.25590272 | AE113: 168.5118054 | AF113: 280.8530091 | AG113: 1 | AI113: 3 | AJ113: 0.1 | AK113: 195000 | AL113: 5000 | AM113: 10000 | AN113: 400 | AO113: 15 | AP113: 200 | AQ113: 250 | AR113: 150 | AS113: 0.09 | AW113: 0.15 | AX113: 0.05 | AY113: 0.15 | AZ113: 0.6
A114: BEV | B114: LKW =7,5t | C114: 2020 | D114: 15 | E114: 158868 | F114: 10591.2 | G114: 15 | H114: 198585 | I114: 13239 | J114: 15 | K114: 287948.25 | L114: 19196.55 | M114: 220 | N114: 2000 | U114: 44.93648145 | V114: 48.89903797 | W114: 48.89903797 | AA114: 1125 | AC114: 150 | AD114: 84.25590272 | AE114: 168.5118054 | AF114: 280.8530091 | AG114: 1 | AI114: 3 | AJ114: 0.1 | AK114: 195000 | AL114: 5000 | AM114: 10000 | AN114: 400 | AO114: 15 | AP114: 200 | AQ114: 250 | AR114: 150 | AS114: 0.09 | AW114: 0.15 | AX114: 0.05 | AY114: 0.15 | AZ114: 0.6
A115: BEV | B115: LKW =7,5t | C115: 2021 | D115: 15 | E115: 158868 | F115: 10591.2 | G115: 15 | H115: 198585 | I115: 13239 | J115: 15 | K115: 287948.25 | L115: 19196.55 | M115: 220 | N115: 2000 | U115: 44.93648145 | V115: 48.89903797 | W115: 48.89903797 | AA115: 1125 | AC115: 150 | AD115: 84.25590272 | AE115: 168.5118054 | AF115: 280.8530091 | AG115: 1 | AI115: 3 | AJ115: 0.1 | AK115: 195000 | AL115: 5000 | AM115: 10000 | AN115: 400 | AO115: 15 | AP115: 200 | AQ115: 250 | AR115: 150 | AS115: 0.09 | AW115: 0.15 | AX115: 0.05 | AY115: 0.15 | AZ115: 0.6
A116: BEV | B116: LKW =7,5t | C116: 2022 | D116: 15 | E116: 158868 | F116: 10591.2 | G116: 15 | H116: 198585 | I116: 13239 | J116: 15 | K116: 287948.25 | L116: 19196.55 | M116: 220 | N116: 2000 | U116: 44.93648145 | V116: 48.89903797 | W116: 48.89903797 | AA116: 1125 | AC116: 150 | AD116: 84.25590272 | AE116: 168.5118054 | AF116: 280.8530091 | AG116: 1 | AI116: 3 | AJ116: 0.1 | AK116: 195000 | AL116: 5000 | AM116: 10000 | AN116: 400 | AO116: 15 | AP116: 200 | AQ116: 250 | AR116: 150 | AS116: 0.09 | AW116: 0.15 | AX116: 0.05 | AY116: 0.15 | AZ116: 0.6
A117: BEV | B117: LKW =7,5t | C117: 2023 | D117: 15 | E117: 158868 | F117: 10591.2 | G117: 15 | H117: 198585 | I117: 13239 | J117: 15 | K117: 287948.25 | L117: 19196.55 | M117: 220 | N117: 2000 | U117: 44.93648145 | V117: 48.89903797 | W117: 48.89903797 | AA117: 1125 | AC117: 150 | AD117: 84.25590272 | AE117: 168.5118054 | AF117: 280.8530091 | AG117: 1 | AI117: 3 | AJ117: 0.1 | AK117: 195000 | AL117: 5000 | AM117: 10000 | AN117: 400 | AO117: 15 | AP117: 200 | AQ117: 250 | AR117: 150 | AS117: 0.09 | AW117: 0.15 | AX117: 0.05 | AY117: 0.15 | AZ117: 0.6
A118: BEV | B118: LKW =7,5t | C118: 2024 | D118: 15 | E118: 158868 | F118: 10591.2 | G118: 15 | H118: 198585 | I118: 13239 | J118: 15 | K118: 287948.25 | L118: 19196.55 | M118: 220 | N118: 2000 | U118: 44.93648145 | V118: 48.89903797 | W118: 48.89903797 | AA118: 1125 | AC118: 150 | AD118: 84.25590272 | AE118: 168.5118054 | AF118: 280.8530091 | AG118: 1 | AI118: 3 | AJ118: 0.1 | AK118: 195000 | AL118: 5000 | AM118: 10000 | AN118: 400 | AO118: 15 | AP118: 200 | AQ118: 250 | AR118: 150 | AS118: 0.09 | AW118: 0.15 | AX118: 0.05 | AY118: 0.15 | AZ118: 0.6
A119: BEV | B119: LKW =7,5t | C119: 2025 | D119: 15 | E119: 158868 | F119: 10591.2 | G119: 15 | H119: 198585 | I119: 13239 | J119: 15 | K119: 287948.25 | L119: 19196.55 | M119: 220 | N119: 2000 | U119: 44.93648145 | V119: 48.89903797 | W119: 48.89903797 | AA119: 1125 | AC119: 150 | AD119: 84.25590272 | AE119: 168.5118054 | AF119: 280.8530091 | AG119: 1 | AI119: 3 | AJ119: 0.1 | AK119: 195000 | AL119: 5000 | AM119: 10000 | AN119: 400 | AO119: 15 | AP119: 200 | AQ119: 250 | AR119: 150 | AS119: 0.09 | AW119: 0.15 | AX119: 0.05 | AY119: 0.15 | AZ119: 0.6
A120: BEV | B120: LKW =7,5t | C120: 2026 | D120: 15 | E120: 158868 | F120: 10591.2 | G120: 15 | H120: 198585 | I120: 13239 | J120: 15 | K120: 287948.25 | L120: 19196.55 | M120: 220 | N120: 2000 | U120: 44.93648145 | V120: 48.89903797 | W120: 48.89903797 | AA120: 1125 | AC120: 150 | AD120: 84.25590272 | AE120: 168.5118054 | AF120: 280.8530091 | AG120: 1 | AI120: 3 | AJ120: 0.1 | AK120: 195000 | AL120: 5000 | AM120: 10000 | AN120: 400 | AO120: 15 | AP120: 200 | AQ120: 250 | AR120: 150 | AS120: 0.09 | AW120: 0.15 | AX120: 0.05 | AY120: 0.15 | AZ120: 0.6
A121: BEV | B121: LKW =7,5t | C121: 2027 | D121: 15 | E121: 158868 | F121: 10591.2 | G121: 15 | H121: 198585 | I121: 13239 | J121: 15 | K121: 287948.25 | L121: 19196.55 | M121: 220 | N121: 2000 | U121: 44.93648145 | V121: 48.89903797 | W121: 48.89903797 | AA121: 1125 | AC121: 150 | AD121: 84.25590272 | AE121: 168.5118054 | AF121: 280.8530091 | AG121: 1 | AI121: 3 | AJ121: 0.1 | AK121: 195000 | AL121: 5000 | AM121: 10000 | AN121: 400 | AO121: 15 | AP121: 200 | AQ121: 250 | AR121: 150 | AS121: 0.09 | AW121: 0.15 | AX121: 0.05 | AY121: 0.15 | AZ121: 0.6
A122: BEV | B122: LKW =7,5t | C122: 2028 | D122: 15 | E122: 158868 | F122: 10591.2 | G122: 15 | H122: 198585 | I122: 13239 | J122: 15 | K122: 287948.25 | L122: 19196.55 | M122: 220 | N122: 2000 | U122: 44.93648145 | V122: 48.89903797 | W122: 48.89903797 | AA122: 1125 | AC122: 150 | AD122: 84.25590272 | AE122: 168.5118054 | AF122: 280.8530091 | AG122: 1 | AI122: 3 | AJ122: 0.1 | AK122: 195000 | AL122: 5000 | AM122: 10000 | AN122: 400 | AO122: 15 | AP122: 200 | AQ122: 250 | AR122: 150 | AS122: 0.09 | AW122: 0.15 | AX122: 0.05 | AY122: 0.15 | AZ122: 0.6
A123: BEV | B123: LKW =7,5t | C123: 2029 | D123: 15 | E123: 158868 | F123: 10591.2 | G123: 15 | H123: 198585 | I123: 13239 | J123: 15 | K123: 287948.25 | L123: 19196.55 | M123: 220 | N123: 2000 | U123: 44.93648145 | V123: 48.89903797 | W123: 48.89903797 | AA123: 1125 | AC123: 150 | AD123: 84.25590272 | AE123: 168.5118054 | AF123: 280.8530091 | AG123: 1 | AI123: 3 | AJ123: 0.1 | AK123: 195000 | AL123: 5000 | AM123: 10000 | AN123: 400 | AO123: 15 | AP123: 200 | AQ123: 250 | AR123: 150 | AS123: 0.09 | AW123: 0.15 | AX123: 0.05 | AY123: 0.15 | AZ123: 0.6
A124: BEV | B124: LKW =7,5t | C124: 2030 | D124: 15 | E124: 158868 | F124: 10591.2 | G124: 15 | H124: 198585 | I124: 13239 | J124: 15 | K124: 287948.25 | L124: 19196.55 | M124: 220 | N124: 2000 | U124: 44.93648145 | V124: 48.89903797 | W124: 48.89903797 | AA124: 1125 | AC124: 150 | AD124: 84.25590272 | AE124: 168.5118054 | AF124: 280.8530091 | AG124: 1 | AI124: 3 | AJ124: 0.1 | AK124: 195000 | AL124: 5000 | AM124: 10000 | AN124: 400 | AO124: 15 | AP124: 200 | AQ124: 250 | AR124: 150 | AS124: 0.09 | AW124: 0.15 | AX124: 0.05 | AY124: 0.15 | AZ124: 0.6
A125: FCEV | B125: LKW =7,5t | C125: 2016 | D125: 15 | E125: 158868 | F125: 10591.2 | G125: 15 | H125: 198585 | I125: 13239 | J125: 15 | K125: 287948.25 | L125: 19196.55 | M125: 220 | N125: 2115.882812 | R125: 2.426569661 | S125: 2.640547951 | T125: 2.640547951 | AA125: 1125 | AC125: 800 | AH125: 1 | AK125: 335000 | AL125: 5000 | AM125: 10000 | AS125: 0.09 | AU125: 20 | AW125: 0.15 | AX125: 0.05
A126: FCEV | B126: LKW =7,5t | C126: 2017 | D126: 15 | E126: 158868 | F126: 10591.2 | G126: 15 | H126: 198585 | I126: 13239 | J126: 15 | K126: 287948.25 | L126: 19196.55 | M126: 220 | N126: 2115.882812 | R126: 2.426569661 | S126: 2.640547951 | T126: 2.640547951 | AA126: 1125 | AC126: 800 | AH126: 1 | AK126: 335000 | AL126: 5000 | AM126: 10000 | AS126: 0.09 | AU126: 20 | AW126: 0.15 | AX126: 0.05
A127: FCEV | B127: LKW =7,5t | C127: 2018 | D127: 15 | E127: 158868 | F127: 10591.2 | G127: 15 | H127: 198585 | I127: 13239 | J127: 15 | K127: 287948.25 | L127: 19196.55 | M127: 220 | N127: 2115.882812 | R127: 2.426569661 | S127: 2.640547951 | T127: 2.640547951 | AA127: 1125 | AC127: 800 | AH127: 1 | AK127: 335000 | AL127: 5000 | AM127: 10000 | AS127: 0.09 | AU127: 20 | AW127: 0.15 | AX127: 0.05
A128: FCEV | B128: LKW =7,5t | C128: 2019 | D128: 15 | E128: 158868 | F128: 10591.2 | G128: 15 | H128: 198585 | I128: 13239 | J128: 15 | K128: 287948.25 | L128: 19196.55 | M128: 220 | N128: 2115.882812 | R128: 2.426569661 | S128: 2.640547951 | T128: 2.640547951 | AA128: 1125 | AC128: 800 | AH128: 1 | AK128: 335000 | AL128: 5000 | AM128: 10000 | AS128: 0.09 | AU128: 20 | AW128: 0.15 | AX128: 0.05
A129: FCEV | B129: LKW =7,5t | C129: 2020 | D129: 15 | E129: 158868 | F129: 10591.2 | G129: 15 | H129: 198585 | I129: 13239 | J129: 15 | K129: 287948.25 | L129: 19196.55 | M129: 220 | N129: 2115.882812 | R129: 2.426569661 | S129: 2.640547951 | T129: 2.640547951 | AA129: 1125 | AC129: 800 | AH129: 1 | AK129: 335000 | AL129: 5000 | AM129: 10000 | AS129: 0.09 | AU129: 20 | AW129: 0.15 | AX129: 0.05
A130: FCEV | B130: LKW =7,5t | C130: 2021 | D130: 15 | E130: 158868 | F130: 10591.2 | G130: 15 | H130: 198585 | I130: 13239 | J130: 15 | K130: 287948.25 | L130: 19196.55 | M130: 220 | N130: 2115.882812 | R130: 2.426569661 | S130: 2.640547951 | T130: 2.640547951 | AA130: 1125 | AC130: 800 | AH130: 1 | AK130: 335000 | AL130: 5000 | AM130: 10000 | AS130: 0.09 | AU130: 20 | AW130: 0.15 | AX130: 0.05
A131: FCEV | B131: LKW =7,5t | C131: 2022 | D131: 15 | E131: =D131*F131 -> 158868 | F131: =I131*0.8 -> 10591.2 | G131: 15 | H131: =G131*I131 -> 198585 | I131: 13239 | J131: 15 | K131: =J131*L131 -> 287948.25 | L131: =I131*1.45 -> 19196.55 | M131: 220 | N131: 2115.882812 | R131: 2.426569661 | S131: 2.640547951 | T131: 2.640547951 | AA131: 1125 | AC131: 800 | AH131: 1 | AK131: 335000 | AL131: 5000 | AM131: 10000 | AS131: 0.09 | AU131: 20 | AW131: 0.15 | AX131: 0.05
A132: FCEV | B132: LKW =7,5t | C132: 2023 | D132: 15 | E132: 158868 | F132: 10591.2 | G132: 15 | H132: 198585 | I132: 13239 | J132: 15 | K132: 287948.25 | L132: 19196.55 | M132: 220 | N132: 2115.882812 | R132: 2.426569661 | S132: 2.640547951 | T132: 2.640547951 | AA132: 1125 | AC132: 800 | AH132: 1 | AK132: 335000 | AL132: 5000 | AM132: 10000 | AS132: 0.09 | AU132: 20 | AW132: 0.15 | AX132: 0.05
A133: FCEV | B133: LKW =7,5t | C133: 2024 | D133: 15 | E133: 158868 | F133: 10591.2 | G133: 15 | H133: 198585 | I133: 13239 | J133: 15 | K133: 287948.25 | L133: 19196.55 | M133: 220 | N133: 2115.882812 | R133: 2.426569661 | S133: 2.640547951 | T133: 2.640547951 | AA133: 1125 | AC133: 800 | AH133: 1 | AK133: 335000 | AL133: 5000 | AM133: 10000 | AS133: 0.09 | AU133: 20 | AW133: 0.15 | AX133: 0.05
A134: FCEV | B134: LKW =7,5t | C134: 2025 | D134: 15 | E134: 158868 | F134: 10591.2 | G134: 15 | H134: 198585 | I134: 13239 | J134: 15 | K134: 287948.25 | L134: 19196.55 | M134: 220 | N134: 2115.882812 | R134: 2.426569661 | S134: 2.640547951 | T134: 2.640547951 | AA134: 1125 | AC134: 800 | AH134: 1 | AK134: 335000 | AL134: 5000 | AM134: 10000 | AS134: 0.09 | AU134: 20 | AW134: 0.15 | AX134: 0.05
A135: FCEV | B135: LKW =7,5t | C135: 2026 | D135: 15 | E135: 158868 | F135: 10591.2 | G135: 15 | H135: 198585 | I135: 13239 | J135: 15 | K135: 287948.25 | L135: 19196.55 | M135: 220 | N135: 2115.882812 | R135: 2.426569661 | S135: 2.640547951 | T135: 2.640547951 | AA135: 1125 | AC135: 800 | AH135: 1 | AK135: 335000 | AL135: 5000 | AM135: 10000 | AS135: 0.09 | AU135: 20 | AW135: 0.15 | AX135: 0.05
A136: FCEV | B136: LKW =7,5t | C136: 2027 | D136: 15 | E136: 158868 | F136: 10591.2 | G136: 15 | H136: 198585 | I136: 13239 | J136: 15 | K136: 287948.25 | L136: 19196.55 | M136: 220 | N136: 2115.882812 | R136: 2.426569661 | S136: 2.640547951 | T136: 2.640547951 | AA136: 1125 | AC136: 800 | AH136: 1 | AK136: 335000 | AL136: 5000 | AM136: 10000 | AS136: 0.09 | AU136: 20 | AW136: 0.15 | AX136: 0.05
A137: FCEV | B137: LKW =7,5t | C137: 2028 | D137: 15 | E137: 158868 | F137: 10591.2 | G137: 15 | H137: 198585 | I137: 13239 | J137: 15 | K137: 287948.25 | L137: 19196.55 | M137: 220 | N137: 2115.882812 | R137: 2.426569661 | S137: 2.640547951 | T137: 2.640547951 | AA137: 1125 | AC137: 800 | AH137: 1 | AK137: 335000 | AL137: 5000 | AM137: 10000 | AS137: 0.09 | AU137: 20 | AW137: 0.15 | AX137: 0.05
A138: FCEV | B138: LKW =7,5t | C138: 2029 | D138: 15 | E138: 158868 | F138: 10591.2 | G138: 15 | H138: 198585 | I138: 13239 | J138: 15 | K138: 287948.25 | L138: 19196.55 | M138: 220 | N138: 2115.882812 | R138: 2.426569661 | S138: 2.640547951 | T138: 2.640547951 | AA138: 1125 | AC138: 800 | AH138: 1 | AK138: 335000 | AL138: 5000 | AM138: 10000 | AS138: 0.09 | AU138: 20 | AW138: 0.15 | AX138: 0.05
A139: FCEV | B139: LKW =7,5t | C139: 2030 | D139: 15 | E139: 158868 | F139: 10591.2 | G139: 15 | H139: 198585 | I139: 13239 | J139: 15 | K139: 287948.25 | L139: 19196.55 | M139: 220 | N139: 2115.882812 | R139: 2.426569661 | S139: 2.640547951 | T139: 2.640547951 | AA139: 1125 | AC139: 800 | AH139: 1 | AK139: 335000 | AL139: 5000 | AM139: 10000 | AS139: 0.09 | AU139: 20 | AW139: 0.15 | AX139: 0.05
A140: ICEV-d | B140: LKW >12-14t | C140: 2000 | D140: 15 | E140: 450660 | F140: 30044 | G140: 15 | H140: 563325 | I140: 37555 | J140: 15 | K140: 816821.25 | L140: 54454.75 | M140: 190 | N140: 5300 | O140: 24.36971135 | P140: 20.52188185 | Q140: 20.52188185 | AA140: 4500 | AC140: 800 | AK140: 110000 | AL140: 7500 | AM140: 13000 | AS140: 0.09 | AT140: 1.5 | AW140: 0.15 | AX140: 0.05
A141: ICEV-d | B141: LKW >12-14t | C141: 2001 | D141: 15 | E141: 450660 | F141: 30044 | G141: 15 | H141: 563325 | I141: 37555 | J141: 15 | K141: 816821.25 | L141: 54454.75 | M141: 190 | N141: 5300 | O141: 24.36971135 | P141: 20.52188185 | Q141: 20.52188185 | AA141: 4500 | AC141: 800 | AK141: 110000 | AL141: 7500 | AM141: 13000 | AS141: 0.09 | AT141: 1.5 | AW141: 0.15 | AX141: 0.05
A142: ICEV-d | B142: LKW >12-14t | C142: 2002 | D142: 15 | E142: 450660 | F142: 30044 | G142: 15 | H142: 563325 | I142: 37555 | J142: 15 | K142: 816821.25 | L142: 54454.75 | M142: 190 | N142: 5300 | O142: 24.36971135 | P142: 20.52188185 | Q142: 20.52188185 | AA142: 4500 | AC142: 800 | AK142: 110000 | AL142: 7500 | AM142: 13000 | AS142: 0.09 | AT142: 1.5 | AW142: 0.15 | AX142: 0.05
A143: ICEV-d | B143: LKW >12-14t | C143: 2003 | D143: 15 | E143: 450660 | F143: 30044 | G143: 15 | H143: 563325 | I143: 37555 | J143: 15 | K143: 816821.25 | L143: 54454.75 | M143: 190 | N143: 5300 | O143: 24.36971135 | P143: 20.52188185 | Q143: 20.52188185 | AA143: 4500 | AC143: 800 | AK143: 110000 | AL143: 7500 | AM143: 13000 | AS143: 0.09 | AT143: 1.5 | AW143: 0.15 | AX143: 0.05
A144: ICEV-d | B144: LKW >12-14t | C144: 2004 | D144: 15 | E144: 450660 | F144: 30044 | G144: 15 | H144: 563325 | I144: 37555 | J144: 15 | K144: 816821.25 | L144: 54454.75 | M144: 190 | N144: 5300 | O144: 24.36971135 | P144: 20.52188185 | Q144: 20.52188185 | AA144: 4500 | AC144: 800 | AK144: 110000 | AL144: 7500 | AM144: 13000 | AS144: 0.09 | AT144: 1.5 | AW144: 0.15 | AX144: 0.05
A145: ICEV-d | B145: LKW >12-14t | C145: 2005 | D145: 15 | E145: 450660 | F145: 30044 | G145: 15 | H145: 563325 | I145: 37555 | J145: 15 | K145: 816821.25 | L145: 54454.75 | M145: 190 | N145: 5300 | O145: 24.36971135 | P145: 20.52188185 | Q145: 20.52188185 | AA145: 4500 | AC145: 800 | AK145: 110000 | AL145: 7500 | AM145: 13000 | AS145: 0.09 | AT145: 1.5 | AW145: 0.15 | AX145: 0.05
A146: ICEV-d | B146: LKW >12-14t | C146: 2006 | D146: 15 | E146: 450660 | F146: 30044 | G146: 15 | H146: 563325 | I146: 37555 | J146: 15 | K146: 816821.25 | L146: 54454.75 | M146: 190 | N146: 5300 | O146: 24.36971135 | P146: 20.52188185 | Q146: 20.52188185 | AA146: 4500 | AC146: 800 | AK146: 110000 | AL146: 7500 | AM146: 13000 | AS146: 0.09 | AT146: 1.5 | AW146: 0.15 | AX146: 0.05
A147: ICEV-d | B147: LKW >12-14t | C147: 2007 | D147: 15 | E147: 450660 | F147: 30044 | G147: 15 | H147: 563325 | I147: 37555 | J147: 15 | K147: 816821.25 | L147: 54454.75 | M147: 190 | N147: 5300 | O147: 24.36971135 | P147: 20.52188185 | Q147: 20.52188185 | AA147: 4500 | AC147: 800 | AK147: 110000 | AL147: 7500 | AM147: 13000 | AS147: 0.09 | AT147: 1.5 | AW147: 0.15 | AX147: 0.05
A148: ICEV-d | B148: LKW >12-14t | C148: 2008 | D148: 15 | E148: 450660 | F148: 30044 | G148: 15 | H148: 563325 | I148: 37555 | J148: 15 | K148: 816821.25 | L148: 54454.75 | M148: 190 | N148: 5300 | O148: 24.36971135 | P148: 20.52188185 | Q148: 20.52188185 | AA148: 4500 | AC148: 800 | AK148: 110000 | AL148: 7500 | AM148: 13000 | AS148: 0.09 | AT148: 1.5 | AW148: 0.15 | AX148: 0.05
A149: ICEV-d | B149: LKW >12-14t | C149: 2009 | D149: 15 | E149: 450660 | F149: 30044 | G149: 15 | H149: 563325 | I149: 37555 | J149: 15 | K149: 816821.25 | L149: 54454.75 | M149: 190 | N149: 5300 | O149: 24.36971135 | P149: 20.52188185 | Q149: 20.52188185 | AA149: 4500 | AC149: 800 | AK149: 110000 | AL149: 7500 | AM149: 13000 | AS149: 0.09 | AT149: 1.5 | AW149: 0.15 | AX149: 0.05
A150: ICEV-d | B150: LKW >12-14t | C150: 2010 | D150: 15 | E150: 450660 | F150: 30044 | G150: 15 | H150: 563325 | I150: 37555 | J150: 15 | K150: 816821.25 | L150: 54454.75 | M150: 190 | N150: 5300 | O150: 24.36971135 | P150: 20.52188185 | Q150: 20.52188185 | AA150: 4500 | AC150: 800 | AK150: 110000 | AL150: 7500 | AM150: 13000 | AS150: 0.09 | AT150: 1.5 | AW150: 0.15 | AX150: 0.05
A151: ICEV-d | B151: LKW >12-14t | C151: 2011 | D151: 15 | E151: 450660 | F151: 30044 | G151: 15 | H151: 563325 | I151: 37555 | J151: 15 | K151: 816821.25 | L151: 54454.75 | M151: 190 | N151: 5300 | O151: 24.36971135 | P151: 20.52188185 | Q151: 20.52188185 | AA151: 4500 | AC151: 800 | AK151: 110000 | AL151: 7500 | AM151: 13000 | AS151: 0.09 | AT151: 1.5 | AW151: 0.15 | AX151: 0.05
A152: ICEV-d | B152: LKW >12-14t | C152: 2012 | D152: 15 | E152: 450660 | F152: 30044 | G152: 15 | H152: 563325 | I152: 37555 | J152: 15 | K152: 816821.25 | L152: 54454.75 | M152: 190 | N152: 5300 | O152: 24.36971135 | P152: 20.52188185 | Q152: 20.52188185 | AA152: 4500 | AC152: 800 | AK152: 110000 | AL152: 7500 | AM152: 13000 | AS152: 0.09 | AT152: 1.5 | AW152: 0.15 | AX152: 0.05
A153: ICEV-d | B153: LKW >12-14t | C153: 2013 | D153: 15 | E153: 450660 | F153: 30044 | G153: 15 | H153: 563325 | I153: 37555 | J153: 15 | K153: 816821.25 | L153: 54454.75 | M153: 190 | N153: 5300 | O153: 24.36971135 | P153: 20.52188185 | Q153: 20.52188185 | AA153: 4500 | AC153: 800 | AK153: 110000 | AL153: 7500 | AM153: 13000 | AS153: 0.09 | AT153: 1.5 | AW153: 0.15 | AX153: 0.05
A154: ICEV-d | B154: LKW >12-14t | C154: 2014 | D154: 15 | E154: 450660 | F154: 30044 | G154: 15 | H154: 563325 | I154: 37555 | J154: 15 | K154: 816821.25 | L154: 54454.75 | M154: 190 | N154: 5300 | O154: 24.36971135 | P154: 20.52188185 | Q154: 20.52188185 | AA154: 4500 | AC154: 800 | AK154: 110000 | AL154: 7500 | AM154: 13000 | AS154: 0.09 | AT154: 1.5 | AW154: 0.15 | AX154: 0.05
A155: ICEV-d | B155: LKW >12-14t | C155: 2015 | D155: 15 | E155: 450660 | F155: 30044 | G155: 15 | H155: 563325 | I155: 37555 | J155: 15 | K155: 816821.25 | L155: 54454.75 | M155: 190 | N155: 5300 | O155: 24.36971135 | P155: 20.52188185 | Q155: 20.52188185 | AA155: 4500 | AC155: 800 | AK155: 110000 | AL155: 7500 | AM155: 13000 | AS155: 0.09 | AT155: 1.5 | AW155: 0.15 | AX155: 0.05
A156: ICEV-d | B156: LKW >12-14t | C156: 2016 | D156: 15 | E156: 450660 | F156: 30044 | G156: 15 | H156: 563325 | I156: 37555 | J156: 15 | K156: 816821.25 | L156: 54454.75 | M156: 190 | N156: 5300 | O156: 24.36971135 | P156: 20.52188185 | Q156: 20.52188185 | AA156: 4500 | AC156: 800 | AK156: 110000 | AL156: 7500 | AM156: 13000 | AS156: 0.09 | AT156: 1.5 | AW156: 0.15 | AX156: 0.05
A157: ICEV-d | B157: LKW >12-14t | C157: 2017 | D157: 15 | E157: 450660 | F157: 30044 | G157: 15 | H157: 563325 | I157: 37555 | J157: 15 | K157: 816821.25 | L157: 54454.75 | M157: 190 | N157: 5300 | O157: 24.36971135 | P157: 20.52188185 | Q157: 20.52188185 | AA157: 4500 | AC157: 800 | AK157: 110000 | AL157: 7500 | AM157: 13000 | AS157: 0.09 | AT157: 1.5 | AW157: 0.15 | AX157: 0.05
A158: ICEV-d | B158: LKW >12-14t | C158: 2018 | D158: 15 | E158: 450660 | F158: 30044 | G158: 15 | H158: 563325 | I158: 37555 | J158: 15 | K158: 816821.25 | L158: 54454.75 | M158: 190 | N158: 5300 | O158: 24.36971135 | P158: 20.52188185 | Q158: 20.52188185 | AA158: 4500 | AC158: 800 | AK158: 110000 | AL158: 7500 | AM158: 13000 | AS158: 0.09 | AT158: 1.5 | AW158: 0.15 | AX158: 0.05
A159: ICEV-d | B159: LKW >12-14t | C159: 2019 | D159: 15 | E159: 450660 | F159: 30044 | G159: 15 | H159: 563325 | I159: 37555 | J159: 15 | K159: 816821.25 | L159: 54454.75 | M159: 190 | N159: 5300 | O159: 24.36971135 | P159: 20.52188185 | Q159: 20.52188185 | AA159: 4500 | AC159: 800 | AK159: 110000 | AL159: 7500 | AM159: 13000 | AS159: 0.09 | AT159: 1.5 | AW159: 0.15 | AX159: 0.05
A160: ICEV-d | B160: LKW >12-14t | C160: 2020 | D160: 15 | E160: 450660 | F160: 30044 | G160: 15 | H160: 563325 | I160: 37555 | J160: 15 | K160: 816821.25 | L160: 54454.75 | M160: 190 | N160: 5300 | O160: 24.36971135 | P160: 20.52188185 | Q160: 20.52188185 | AA160: 4500 | AC160: 800 | AK160: 110000 | AL160: 7500 | AM160: 13000 | AS160: 0.09 | AT160: 1.5 | AW160: 0.15 | AX160: 0.05
A161: ICEV-d | B161: LKW >12-14t | C161: 2021 | D161: 15 | E161: 450660 | F161: 30044 | G161: 15 | H161: 563325 | I161: 37555 | J161: 15 | K161: 816821.25 | L161: 54454.75 | M161: 190 | N161: 5300 | O161: 24.36971135 | P161: 20.52188185 | Q161: 20.52188185 | AA161: 4500 | AC161: 800 | AK161: 110000 | AL161: 7500 | AM161: 13000 | AS161: 0.09 | AT161: 1.5 | AW161: 0.15 | AX161: 0.05
A162: ICEV-d | B162: LKW >12-14t | C162: 2022 | D162: 15 | E162: 450660 | F162: 30044 | G162: 15 | H162: 563325 | I162: 37555 | J162: 15 | K162: 816821.25 | L162: 54454.75 | M162: 190 | N162: 5300 | O162: 24.36971135 | P162: 20.52188185 | Q162: 20.52188185 | AA162: 4500 | AC162: 800 | AK162: 110000 | AL162: 7500 | AM162: 13000 | AS162: 0.09 | AT162: 1.5 | AW162: 0.15 | AX162: 0.05
A163: ICEV-d | B163: LKW >12-14t | C163: 2023 | D163: 15 | E163: 450660 | F163: 30044 | G163: 15 | H163: 563325 | I163: 37555 | J163: 15 | K163: 816821.25 | L163: 54454.75 | M163: 190 | N163: 5300 | O163: 24.36971135 | P163: 20.52188185 | Q163: 20.52188185 | AA163: 4500 | AC163: 800 | AK163: 110000 | AL163: 7500 | AM163: 13000 | AS163: 0.09 | AT163: 1.5 | AW163: 0.15 | AX163: 0.05
A164: ICEV-d | B164: LKW >12-14t | C164: 2024 | D164: 15 | E164: 450660 | F164: 30044 | G164: 15 | H164: 563325 | I164: 37555 | J164: 15 | K164: 816821.25 | L164: 54454.75 | M164: 190 | N164: 5300 | O164: 24.36971135 | P164: 20.52188185 | Q164: 20.52188185 | AA164: 4500 | AC164: 800 | AK164: 110000 | AL164: 7500 | AM164: 13000 | AS164: 0.09 | AT164: 1.5 | AW164: 0.15 | AX164: 0.05
A165: ICEV-d | B165: LKW >12-14t | C165: 2025 | D165: 15 | E165: 450660 | F165: 30044 | G165: 15 | H165: 563325 | I165: 37555 | J165: 15 | K165: 816821.25 | L165: 54454.75 | M165: 190 | N165: 5300 | O165: 24.36971135 | P165: 20.52188185 | Q165: 20.52188185 | AA165: 4500 | AC165: 800 | AK165: 110000 | AL165: 7500 | AM165: 13000 | AS165: 0.09 | AT165: 1.5 | AW165: 0.15 | AX165: 0.05
A166: ICEV-d | B166: LKW >12-14t | C166: 2026 | D166: 15 | E166: 450660 | F166: 30044 | G166: 15 | H166: 563325 | I166: 37555 | J166: 15 | K166: 816821.25 | L166: 54454.75 | M166: 190 | N166: 5300 | O166: 24.36971135 | P166: 20.52188185 | Q166: 20.52188185 | AA166: 4500 | AC166: 800 | AK166: 110000 | AL166: 7500 | AM166: 13000 | AS166: 0.09 | AT166: 1.5 | AW166: 0.15 | AX166: 0.05
A167: ICEV-d | B167: LKW >12-14t | C167: 2027 | D167: 15 | E167: 450660 | F167: 30044 | G167: 15 | H167: 563325 | I167: 37555 | J167: 15 | K167: 816821.25 | L167: 54454.75 | M167: 190 | N167: 5300 | O167: 24.36971135 | P167: 20.52188185 | Q167: 20.52188185 | AA167: 4500 | AC167: 800 | AK167: 110000 | AL167: 7500 | AM167: 13000 | AS167: 0.09 | AT167: 1.5 | AW167: 0.15 | AX167: 0.05
A168: ICEV-d | B168: LKW >12-14t | C168: 2028 | D168: 15 | E168: 450660 | F168: 30044 | G168: 15 | H168: 563325 | I168: 37555 | J168: 15 | K168: 816821.25 | L168: 54454.75 | M168: 190 | N168: 5300 | O168: 24.36971135 | P168: 20.52188185 | Q168: 20.52188185 | AA168: 4500 | AC168: 800 | AK168: 110000 | AL168: 7500 | AM168: 13000 | AS168: 0.09 | AT168: 1.5 | AW168: 0.15 | AX168: 0.05
A169: ICEV-d | B169: LKW >12-14t | C169: 2029 | D169: 15 | E169: 450660 | F169: 30044 | G169: 15 | H169: 563325 | I169: 37555 | J169: 15 | K169: 816821.25 | L169: 54454.75 | M169: 190 | N169: 5300 | O169: 24.36971135 | P169: 20.52188185 | Q169: 20.52188185 | AA169: 4500 | AC169: 800 | AK169: 110000 | AL169: 7500 | AM169: 13000 | AS169: 0.09 | AT169: 1.5 | AW169: 0.15 | AX169: 0.05
A170: ICEV-d | B170: LKW >12-14t | C170: 2030 | D170: 15 | E170: 450660 | F170: 30044 | G170: 15 | H170: 563325 | I170: 37555 | J170: 15 | K170: 816821.25 | L170: 54454.75 | M170: 190 | N170: 5300 | O170: 24.36971135 | P170: 20.52188185 | Q170: 20.52188185 | AA170: 4500 | AC170: 800 | AK170: 110000 | AL170: 7500 | AM170: 13000 | AS170: 0.09 | AT170: 1.5 | AW170: 0.15 | AX170: 0.05
A171: ICEV-g | B171: LKW >12-14t | C171: 2000 | D171: 15 | E171: 450660 | F171: 30044 | G171: 15 | H171: 563325 | I171: 37555 | J171: 15 | K171: 816821.25 | L171: 54454.75 | M171: 170 | N171: 5700 | X171: 22.70392368 | Y171: 19.11911412 | Z171: 19.11911412 | AA171: 4500 | AC171: 800 | AK171: 128000 | AL171: 7500 | AM171: 13000 | AS171: 0.09 | AV171: 2.3 | AW171: 0.15 | AX171: 0.05
A172: ICEV-g | B172: LKW >12-14t | C172: 2001 | D172: 15 | E172: 450660 | F172: 30044 | G172: 15 | H172: 563325 | I172: 37555 | J172: 15 | K172: 816821.25 | L172: 54454.75 | M172: 170 | N172: 5700 | X172: 22.70392368 | Y172: 19.11911412 | Z172: 19.11911412 | AA172: 4500 | AC172: 800 | AK172: 128000 | AL172: 7500 | AM172: 13000 | AS172: 0.09 | AV172: 2.3 | AW172: 0.15 | AX172: 0.05
A173: ICEV-g | B173: LKW >12-14t | C173: 2002 | D173: 15 | E173: 450660 | F173: 30044 | G173: 15 | H173: 563325 | I173: 37555 | J173: 15 | K173: 816821.25 | L173: 54454.75 | M173: 170 | N173: 5700 | X173: 22.70392368 | Y173: 19.11911412 | Z173: 19.11911412 | AA173: 4500 | AC173: 800 | AK173: 128000 | AL173: 7500 | AM173: 13000 | AS173: 0.09 | AV173: 2.3 | AW173: 0.15 | AX173: 0.05
A174: ICEV-g | B174: LKW >12-14t | C174: 2003 | D174: 15 | E174: 450660 | F174: 30044 | G174: 15 | H174: 563325 | I174: 37555 | J174: 15 | K174: 816821.25 | L174: 54454.75 | M174: 170 | N174: 5700 | X174: 22.70392368 | Y174: 19.11911412 | Z174: 19.11911412 | AA174: 4500 | AC174: 800 | AK174: 128000 | AL174: 7500 | AM174: 13000 | AS174: 0.09 | AV174: 2.3 | AW174: 0.15 | AX174: 0.05
A175: ICEV-g | B175: LKW >12-14t | C175: 2004 | D175: 15 | E175: 450660 | F175: 30044 | G175: 15 | H175: 563325 | I175: 37555 | J175: 15 | K175: 816821.25 | L175: 54454.75 | M175: 170 | N175: 5700 | X175: 22.70392368 | Y175: 19.11911412 | Z175: 19.11911412 | AA175: 4500 | AC175: 800 | AK175: 128000 | AL175: 7500 | AM175: 13000 | AS175: 0.09 | AV175: 2.3 | AW175: 0.15 | AX175: 0.05
A176: ICEV-g | B176: LKW >12-14t | C176: 2005 | D176: 15 | E176: 450660 | F176: 30044 | G176: 15 | H176: 563325 | I176: 37555 | J176: 15 | K176: 816821.25 | L176: 54454.75 | M176: 170 | N176: 5700 | X176: 22.70392368 | Y176: 19.11911412 | Z176: 19.11911412 | AA176: 4500 | AC176: 800 | AK176: 128000 | AL176: 7500 | AM176: 13000 | AS176: 0.09 | AV176: 2.3 | AW176: 0.15 | AX176: 0.05
A177: ICEV-g | B177: LKW >12-14t | C177: 2006 | D177: 15 | E177: 450660 | F177: 30044 | G177: 15 | H177: 563325 | I177: 37555 | J177: 15 | K177: 816821.25 | L177: 54454.75 | M177: 170 | N177: 5700 | X177: 22.70392368 | Y177: 19.11911412 | Z177: 19.11911412 | AA177: 4500 | AC177: 800 | AK177: 128000 | AL177: 7500 | AM177: 13000 | AS177: 0.09 | AV177: 2.3 | AW177: 0.15 | AX177: 0.05
A178: ICEV-g | B178: LKW >12-14t | C178: 2007 | D178: 15 | E178: 450660 | F178: 30044 | G178: 15 | H178: 563325 | I178: 37555 | J178: 15 | K178: 816821.25 | L178: 54454.75 | M178: 170 | N178: 5700 | X178: 22.70392368 | Y178: 19.11911412 | Z178: 19.11911412 | AA178: 4500 | AC178: 800 | AK178: 128000 | AL178: 7500 | AM178: 13000 | AS178: 0.09 | AV178: 2.3 | AW178: 0.15 | AX178: 0.05
A179: ICEV-g | B179: LKW >12-14t | C179: 2008 | D179: 15 | E179: 450660 | F179: 30044 | G179: 15 | H179: 563325 | I179: 37555 | J179: 15 | K179: 816821.25 | L179: 54454.75 | M179: 170 | N179: 5700 | X179: 22.70392368 | Y179: 19.11911412 | Z179: 19.11911412 | AA179: 4500 | AC179: 800 | AK179: 128000 | AL179: 7500 | AM179: 13000 | AS179: 0.09 | AV179: 2.3 | AW179: 0.15 | AX179: 0.05
A180: ICEV-g | B180: LKW >12-14t | C180: 2009 | D180: 15 | E180: 450660 | F180: 30044 | G180: 15 | H180: 563325 | I180: 37555 | J180: 15 | K180: 816821.25 | L180: 54454.75 | M180: 170 | N180: 5700 | X180: 22.70392368 | Y180: 19.11911412 | Z180: 19.11911412 | AA180: 4500 | AC180: 800 | AK180: 128000 | AL180: 7500 | AM180: 13000 | AS180: 0.09 | AV180: 2.3 | AW180: 0.15 | AX180: 0.05
A181: ICEV-g | B181: LKW >12-14t | C181: 2010 | D181: 15 | E181: 450660 | F181: 30044 | G181: 15 | H181: 563325 | I181: 37555 | J181: 15 | K181: 816821.25 | L181: 54454.75 | M181: 170 | N181: 5700 | X181: 22.70392368 | Y181: 19.11911412 | Z181: 19.11911412 | AA181: 4500 | AC181: 800 | AK181: 128000 | AL181: 7500 | AM181: 13000 | AS181: 0.09 | AV181: 2.3 | AW181: 0.15 | AX181: 0.05
A182: ICEV-g | B182: LKW >12-14t | C182: 2011 | D182: 15 | E182: 450660 | F182: 30044 | G182: 15 | H182: 563325 | I182: 37555 | J182: 15 | K182: 816821.25 | L182: 54454.75 | M182: 170 | N182: 5700 | X182: 22.70392368 | Y182: 19.11911412 | Z182: 19.11911412 | AA182: 4500 | AC182: 800 | AK182: 128000 | AL182: 7500 | AM182: 13000 | AS182: 0.09 | AV182: 2.3 | AW182: 0.15 | AX182: 0.05
A183: ICEV-g | B183: LKW >12-14t | C183: 2012 | D183: 15 | E183: 450660 | F183: 30044 | G183: 15 | H183: 563325 | I183: 37555 | J183: 15 | K183: 816821.25 | L183: 54454.75 | M183: 170 | N183: 5700 | X183: 22.70392368 | Y183: 19.11911412 | Z183: 19.11911412 | AA183: 4500 | AC183: 800 | AK183: 128000 | AL183: 7500 | AM183: 13000 | AS183: 0.09 | AV183: 2.3 | AW183: 0.15 | AX183: 0.05
A184: ICEV-g | B184: LKW >12-14t | C184: 2013 | D184: 15 | E184: 450660 | F184: 30044 | G184: 15 | H184: 563325 | I184: 37555 | J184: 15 | K184: 816821.25 | L184: 54454.75 | M184: 170 | N184: 5700 | X184: 22.70392368 | Y184: 19.11911412 | Z184: 19.11911412 | AA184: 4500 | AC184: 800 | AK184: 128000 | AL184: 7500 | AM184: 13000 | AS184: 0.09 | AV184: 2.3 | AW184: 0.15 | AX184: 0.05
A185: ICEV-g | B185: LKW >12-14t | C185: 2014 | D185: 15 | E185: 450660 | F185: 30044 | G185: 15 | H185: 563325 | I185: 37555 | J185: 15 | K185: 816821.25 | L185: 54454.75 | M185: 170 | N185: 5700 | X185: 22.70392368 | Y185: 19.11911412 | Z185: 19.11911412 | AA185: 4500 | AC185: 800 | AK185: 128000 | AL185: 7500 | AM185: 13000 | AS185: 0.09 | AV185: 2.3 | AW185: 0.15 | AX185: 0.05
A186: ICEV-g | B186: LKW >12-14t | C186: 2015 | D186: 15 | E186: 450660 | F186: 30044 | G186: 15 | H186: 563325 | I186: 37555 | J186: 15 | K186: 816821.25 | L186: 54454.75 | M186: 170 | N186: 5700 | X186: 22.70392368 | Y186: 19.11911412 | Z186: 19.11911412 | AA186: 4500 | AC186: 800 | AK186: 128000 | AL186: 7500 | AM186: 13000 | AS186: 0.09 | AV186: 2.3 | AW186: 0.15 | AX186: 0.05
A187: ICEV-g | B187: LKW >12-14t | C187: 2016 | D187: 15 | E187: 450660 | F187: 30044 | G187: 15 | H187: 563325 | I187: 37555 | J187: 15 | K187: 816821.25 | L187: 54454.75 | M187: 170 | N187: 5700 | X187: 22.70392368 | Y187: 19.11911412 | Z187: 19.11911412 | AA187: 4500 | AC187: 800 | AK187: 128000 | AL187: 7500 | AM187: 13000 | AS187: 0.09 | AV187: 2.3 | AW187: 0.15 | AX187: 0.05
A188: ICEV-g | B188: LKW >12-14t | C188: 2017 | D188: 15 | E188: 450660 | F188: 30044 | G188: 15 | H188: 563325 | I188: 37555 | J188: 15 | K188: 816821.25 | L188: 54454.75 | M188: 170 | N188: 5700 | X188: 22.70392368 | Y188: 19.11911412 | Z188: 19.11911412 | AA188: 4500 | AC188: 800 | AK188: 128000 | AL188: 7500 | AM188: 13000 | AS188: 0.09 | AV188: 2.3 | AW188: 0.15 | AX188: 0.05
A189: ICEV-g | B189: LKW >12-14t | C189: 2018 | D189: 15 | E189: 450660 | F189: 30044 | G189: 15 | H189: 563325 | I189: 37555 | J189: 15 | K189: 816821.25 | L189: 54454.75 | M189: 170 | N189: 5700 | X189: 22.70392368 | Y189: 19.11911412 | Z189: 19.11911412 | AA189: 4500 | AC189: 800 | AK189: 128000 | AL189: 7500 | AM189: 13000 | AS189: 0.09 | AV189: 2.3 | AW189: 0.15 | AX189: 0.05
A190: ICEV-g | B190: LKW >12-14t | C190: 2019 | D190: 15 | E190: 450660 | F190: 30044 | G190: 15 | H190: 563325 | I190: 37555 | J190: 15 | K190: 816821.25 | L190: 54454.75 | M190: 170 | N190: 5700 | X190: 22.70392368 | Y190: 19.11911412 | Z190: 19.11911412 | AA190: 4500 | AC190: 800 | AK190: 128000 | AL190: 7500 | AM190: 13000 | AS190: 0.09 | AV190: 2.3 | AW190: 0.15 | AX190: 0.05
A191: ICEV-g | B191: LKW >12-14t | C191: 2020 | D191: 15 | E191: 450660 | F191: 30044 | G191: 15 | H191: 563325 | I191: 37555 | J191: 15 | K191: 816821.25 | L191: 54454.75 | M191: 170 | N191: 5700 | X191: 22.70392368 | Y191: 19.11911412 | Z191: 19.11911412 | AA191: 4500 | AC191: 800 | AK191: 128000 | AL191: 7500 | AM191: 13000 | AS191: 0.09 | AV191: 2.3 | AW191: 0.15 | AX191: 0.05
A192: ICEV-g | B192: LKW >12-14t | C192: 2021 | D192: 15 | E192: 450660 | F192: 30044 | G192: 15 | H192: 563325 | I192: 37555 | J192: 15 | K192: 816821.25 | L192: 54454.75 | M192: 170 | N192: 5700 | X192: 22.70392368 | Y192: 19.11911412 | Z192: 19.11911412 | AA192: 4500 | AC192: 800 | AK192: 128000 | AL192: 7500 | AM192: 13000 | AS192: 0.09 | AV192: 2.3 | AW192: 0.15 | AX192: 0.05
A193: ICEV-g | B193: LKW >12-14t | C193: 2022 | D193: 15 | E193: 450660 | F193: 30044 | G193: 15 | H193: 563325 | I193: 37555 | J193: 15 | K193: 816821.25 | L193: 54454.75 | M193: 170 | N193: 5700 | X193: 22.70392368 | Y193: 19.11911412 | Z193: 19.11911412 | AA193: 4500 | AC193: 800 | AK193: 128000 | AL193: 7500 | AM193: 13000 | AS193: 0.09 | AV193: 2.3 | AW193: 0.15 | AX193: 0.05
A194: ICEV-g | B194: LKW >12-14t | C194: 2023 | D194: 15 | E194: 450660 | F194: 30044 | G194: 15 | H194: 563325 | I194: 37555 | J194: 15 | K194: 816821.25 | L194: 54454.75 | M194: 170 | N194: 5700 | X194: 22.70392368 | Y194: 19.11911412 | Z194: 19.11911412 | AA194: 4500 | AC194: 800 | AK194: 128000 | AL194: 7500 | AM194: 13000 | AS194: 0.09 | AV194: 2.3 | AW194: 0.15 | AX194: 0.05
A195: ICEV-g | B195: LKW >12-14t | C195: 2024 | D195: 15 | E195: =D195*F195 -> 450660 | F195: =I195*0.8 -> 30044 | G195: 15 | H195: =G195*I195 -> 563325 | I195: 37555 | J195: 15 | K195: =J195*L195 -> 816821.25 | L195: =I195*1.45 -> 54454.75 | M195: 170 | N195: 5700 | X195: 22.70392368 | Y195: 19.11911412 | Z195: 19.11911412 | AA195: 4500 | AC195: 800 | AK195: 128000 | AL195: 7500 | AM195: 13000 | AS195: 0.09 | AV195: 2.3 | AW195: 0.15 | AX195: 0.05
A196: ICEV-g | B196: LKW >12-14t | C196: 2025 | D196: 15 | E196: 450660 | F196: 30044 | G196: 15 | H196: 563325 | I196: 37555 | J196: 15 | K196: 816821.25 | L196: 54454.75 | M196: 170 | N196: 5700 | X196: 22.70392368 | Y196: 19.11911412 | Z196: 19.11911412 | AA196: 4500 | AC196: 800 | AK196: 128000 | AL196: 7500 | AM196: 13000 | AS196: 0.09 | AV196: 2.3 | AW196: 0.15 | AX196: 0.05
A197: ICEV-g | B197: LKW >12-14t | C197: 2026 | D197: 15 | E197: 450660 | F197: 30044 | G197: 15 | H197: 563325 | I197: 37555 | J197: 15 | K197: 816821.25 | L197: 54454.75 | M197: 170 | N197: 5700 | X197: 22.70392368 | Y197: 19.11911412 | Z197: 19.11911412 | AA197: 4500 | AC197: 800 | AK197: 128000 | AL197: 7500 | AM197: 13000 | AS197: 0.09 | AV197: 2.3 | AW197: 0.15 | AX197: 0.05
A198: ICEV-g | B198: LKW >12-14t | C198: 2027 | D198: 15 | E198: 450660 | F198: 30044 | G198: 15 | H198: 563325 | I198: 37555 | J198: 15 | K198: 816821.25 | L198: 54454.75 | M198: 170 | N198: 5700 | X198: 22.70392368 | Y198: 19.11911412 | Z198: 19.11911412 | AA198: 4500 | AC198: 800 | AK198: 128000 | AL198: 7500 | AM198: 13000 | AS198: 0.09 | AV198: 2.3 | AW198: 0.15 | AX198: 0.05
A199: ICEV-g | B199: LKW >12-14t | C199: 2028 | D199: 15 | E199: 450660 | F199: 30044 | G199: 15 | H199: 563325 | I199: 37555 | J199: 15 | K199: 816821.25 | L199: 54454.75 | M199: 170 | N199: 5700 | X199: 22.70392368 | Y199: 19.11911412 | Z199: 19.11911412 | AA199: 4500 | AC199: 800 | AK199: 128000 | AL199: 7500 | AM199: 13000 | AS199: 0.09 | AV199: 2.3 | AW199: 0.15 | AX199: 0.05
A200: ICEV-g | B200: LKW >12-14t | C200: 2029 | D200: 15 | E200: 450660 | F200: 30044 | G200: 15 | H200: 563325 | I200: 37555 | J200: 15 | K200: 816821.25 | L200: 54454.75 | M200: 170 | N200: 5700 | X200: 22.70392368 | Y200: 19.11911412 | Z200: 19.11911412 | AA200: 4500 | AC200: 800 | AK200: 128000 | AL200: 7500 | AM200: 13000 | AS200: 0.09 | AV200: 2.3 | AW200: 0.15 | AX200: 0.05
... 1734 more rows
